Workbook

Sheet Result summary
A1: Customer name | B1: ESPROS
A2: Project name | B2: TOF Estimation Tool
A3: Designer | B3: ESPROS
A6: Parameter | B6: Value | D6: Comments
A7: Operating range | B7: ='Optical power calculation'!E22 -> 5.0 | C7: m @ | D7: ='Optical power calculation'!E23 -> 90 | E7: % reflectivity
A8: FOVh | B8: ='Optical power calculation'!K20 -> 97.6 | C8: ° | D8: on image
A9: FOVv | B9: ='Optical power calculation'!K21 -> 81.2 | C9: °
A10: Illuminated area | B10: ='Optical power calculation'!K15 -> 57.7 | C10: m2 | D10: Illuminated area should be larger than the observed area
A11: Observed area | B11: ='Optical power calculation'!K22 -> 97.9 | C11: m2
A12: F# receiver lens | B12: ='Optical power calculation'!E31 -> 1.2
A13: Integration time | B13: ='Optical power calculation'!K38 -> 981 | C13: µs for | D13: ='Optical power calculation'!E49 -> 110 | E13: LSB
A14: Analog binning gain | B14: ='Optical power calculation'!E43*'Optical power calculation'!E44 -> 1
A15: Digital binning gain | B15: ='Optical power calculation'!E45*'Optical power calculation'!E46*'Optical power calculation'!E47*'Optical power calculation'!E48 -> 1
A16: Modulation frequency | B16: ='Distance noise'!B4 -> 20 | C16: MHz
A17: Relative modulation loss | B17: ='Distance noise'!F5 -> 0.5
A18: # of emitters | B18: ='Optical power calculation'!E15 -> 4
A19: Frame rate | B19: ='Optical power calculation'!E17 -> 30 | C19: fps
A20: Average electrical power consumption | B20: ='Optical power calculation'!K8 -> 4.1 | C20: W
A21: Optical peak power | B21: ='Optical power calculation'!K17 -> 13.4 | C21: W
A22: Duty cycle | B22: ='Optical power calculation'!K9 -> 5.9 | C22: %
A23: Pixel size on target | B23: ='Optical power calculation'!K25 -> 35.7 | C23: mm
A24: Eye safety for cornea/skin | B24: ='Optical power calculation'!K52 -> 22 | C24: W/m2 | D24: max. 100W/m2 IEC-62471
A25: Eye safety for retina | B25: ='Optical power calculation'!K53 -> 11 | C25: mW/mm2/sr | D25: max. 300W/mm2/sr IEC-62471
A27: Comments

Sheet Optical power calculation
A1: Input Data | H1: Results
A3: Emitter | H3: Emitter | N3: Comments
A4: Datasheet | B4: Type | D4: ='Illumination selection'!E6 -> SFH 4725AS A01 | H4: Total radiant intensity @ iNOM | J4: IE TOT | K4: =E7*E15/1000/E8*E14 -> 15.20 | L4: W/sr
B5: Wavelength | D5: λNOM | E5: ='Illumination selection'!G6 -> 940 | F5: nm | H5: Focal length for bare die (only square FOV) | J5: fR | K5: =IF(AND(E12=E11,E9>0,E13=1),E9/K12*E22,"---") -> --- | L5: mm
B6: Emitting half-angle (IE LED = 50%) | D6: φLED | E6: ='Illumination selection'!I6 -> 40 | F6: ± deg | H6: Electrical peak power | J6: PPP | K6: =E14*E15*E16/1000 -> 70.00 | L6: W
B7: Nominal radiant intensity @ iNOM per LED | D7: IE LED | E7: ='Illumination selection'!J6 -> 760.0 | F7: mW/sr | H7: Electrical energy per DCS | J7: IE_DCS | K7: =K6*K38/2/1000 -> 34.336 | L7: mWs | N7: TOF mode (Modulation frequency duty cycle 1:1)
B8: Current for nominal radiant intensity | D8: iNOM | E8: ='Illumination selection'!L6 -> 1,000 | F8: mA | H8: Total electrical power consumption | J8: IE_TOT | K8: =K7*E17*E18/1000 -> 4.120 | L8: W | N8: Average power consumption for the illumination w/o other circuitry
B9: Bare die size (length / width; only square FOV) | D9: bE | E9: ='Illumination selection'!N6 -> 1.300 | F9: mm | H9: Duty cycle | J9: dt | K9: =K38/2*E18/1000000*100*E17 -> 5.89 | L9: % | N9: Duty cycle of the illumination
B10: Lens efficiency | D10: vE | E10: ='Illumination selection'!U6 -> 100 | F10: %
A11: Application | B11: FOV 3 horizontal (round) | D11: FOVH | E11: 90 | F11: deg | H11: Target
B12: FOV 3 vertical | D12: FOVV | E12: 60 | F12: deg | H12: Emitter | I12: Emitter spot width on target | J12: sEW | K12: =IF($E$13=1,2*$E$22*TAN(($E$11/2)/180*PI()),"--- ") -> 10.00 | L12: m
B13: FOV: 1: rectangular, 2: round | E13: 1 | I13: Emitter spot height on target | J13: sEH | K13: =IF(AND($E$13=1,E12>0),2*$E$22*TAN(($E$12/2)/180*PI()),"--- ") -> 5.77 | L13: m
B14: Effective current per emitter | D14: iAPP | E14: 5,000 | F14: mA | I14: Emitter spot diameter | J14: sED | K14: =IF($E$13=2,2*$E$22*TAN(($E$11/2)/180*PI()),"--- ") -> --- | L14: m
B15: Number of emitters | D15: nE | E15: 4 | F15: pcs. | I15: Emitter spot area on object | J15: AER | K15: =IF(E13=1,$K$12*$K$13,PI()*K14*K14/4) -> 57.735 | L15: m2 | N15: This area has to be homogeneously illuminated
B16: Forward voltage @ effective current | D16: VF_APP | E16: 3.50 | F16: V | I16: Irradiance on object | J16: EEO | K16: =IF(E13=1,$E$7/1000*$E$14/$E$8*$E$15*PI()*SIN($E$6/2/180*PI())*SIN($E$6/2/180*PI())*($E$19/100)/(($K$12/2)*($K$13/2)),$E$7/1000*$E$14/$E$8*$E$15*PI()*SIN($E$6/2/180*PI())*SIN($E$6/2/180*PI())*($E$19/100)*4/(PI()*($K$14/2)*($K$14/2))) -> 0.232 | L16: μW/mm2 | N16: Can be used to estimate eye safety. However, the result shows the (peak) irradiance on the optical axis.
B17: Frame rate | D17: RTOF | E17: 30 | F17: fps | I17: Opt. peak power DC in emitter area | J17: PEO | K17: =K16*K15*1000/1000 -> 13.406 | L17: W | N17: The true power value is below this due to the uneven illumination over the area. CW output power for VCSELs.
B18: Number of DCS | D18: nDCS | E18: 4 | H18: Receiver | I18: Image width on target | J18: sRW | K18: =E36*SQRT(K27*K27/((E36*E36)+(E37*E37))) -> 11.425 | L18: m
B19: Lens efficiency | D19: vE | E19: 60 | F19: % | I19: Image height on target | J19: sRH | K19: =K18/E36*E37 -> 8.569 | L19: m
I20: FOV horizontal | J20: FOVH | K20: =2*ATAN(((K18/2)/E22))*(360/(2*PI())) -> 97.61 | L20: deg | N20: Adjust FOV emitter to same value to get correct optical power data.
A21: Object / Target | I21: FOV vertical | J21: FOVV | K21: =2*ATAN(((K19/2)/E22))*(360/(2*PI())) -> 81.19 | L21: deg
A22: Operating distance | D22: dR | E22: 5 | F22: m | I22: FOV area | J22: BRW | K22: =K18*K19 -> 97.901 | L22: m2 | N22: True FOV of this lens with epc660 is H94º and V69º
A23: Remission (reflectivity) of object | D23: ρ | E23: 90 | F23: % | I23: Opt. Power DC in receiver area | J23: BRH | K23: =K22*K16 -> 22.733 | L23: W | N23: The real irradiance value is below this due to the uneven illumination over the area.
I24: Lambert angle on receiver lens | J24: φLR | K24: =2*DEGREES(ATAN(($K$31/2)/($E$22*1000))) -> 0.027 | L24: deg
I25: Pixel size on target (l/w) | J25: sPIX | K25: =K18/E36*1000 -> 35.70 | L25: mm | N25: The object should be 3x larger than the pixel size on target for reliable distance reading
I26: Pixel area on target | J26: APIX | K26: =K25*K25 -> 1,274.75 | L26: mm2
I27: Image diagonal on target | J27: bRD | K27: =2*E22*TAN((E30/2)/180*PI()) -> 14.28 | L27: m
A29: Receiver Lens | H29: Receiver Lens
A30: Datasheet | B30: FOV (diagonal) | D30: FOV | E30: 110.00 | F30: deg | H30: Focal length | J30: fR | K30: =$E$22*SQRT(($E$36*$E$36)+($E$37*$E$37))*$E$38/1000/$K$27 -> 2.80 | L30: mm | N30: Lens FOV adjusted to the correct EFL 3.291mm of the non-linear lens to get correct optical power data
B31: F-number | D31: F# | E31: 1.20 | H31: Lens diameter | J31: DR | K31: =K30/E31 -> 2.33 | L31: mm | N31: Use a high efficiency lens made for TOF in NIR
B32: Lens efficiency | D32: vE | E32: 93 | F32: % | H32: Lens area | J32: AR | K32: =PI()*$K$31*$K$31/4 -> 4.28 | L32: mm2
A34: Photo-receiver | H34: Photo-receiver
A35: Basic imager data | B35: Imager type and mode | D35: epc660 | H35: Irradiance on photo-receiver | J35: ER | K35: =$K$16*($E$23/100)*(PI()*$K$31*$K$31/4)/((4*PI()*$E$22*$E$22*1000*1000)/2)*$K$25*$K$25/($E$38*$E$38/1000/1000)*($E$32/100)*1000 -> 16.87 | L35: nW/mm2
B36: Number of pixels: length | D36: nPL | E36: 320 | H36: Received light power on pixel | J36: ΦPIXEL | K36: =K35*E38*E38/1000 -> 6.748 | L36: pW
B37: Number of pixels: width | D37: nPW | E37: 240 | H37: Irradiance for 1 LSB @ tNOM | J37: ER-LSB | K37: ='Illumination selection'!H6 -> 0.820 | L37: nW/mm2
B38: Basic pixel size (length / width) | D38: bPIXEL | E38: 20 | F38: μm | H38: Integration time | J38: tAPP | K38: =$E$39/$K$35*K37*$E$49/($E$43*$E$44*$E$45*$E$46*$E$47*$E$48*'Distance noise'!F5) -> 981 | L38: μs | N38: Should be less than 1ms for good ambient light performance
B39: Integration time for irradiance 1 LSB @ basic pixel size | D39: tNOM | E39: 100.00 | F39: μs
B40: Irradiance for 1 LSB @ tNOM and 640 nm | D40: ER-LSB | E40: 0.950 | F40: nW/mm2
B41: Irradiance for 1 LSB @ tNOM and 850 nm | D41: ER-LSB | E41: 0.620 | F41: nW/mm2
B42: Irradiance for 1 LSB @ tNOM and 940 nm | D42: ER-LSB | E42: 0.820 | F42: nW/mm2
A43: Application | B43: Analog binning horizontal | D43: BAH | E43: 1 | F43: LSB
B44: Analog binning vertical | D44: BAV | E44: 1 | F44: LSB
B45: Digital binning horizontal | D45: BDH | E45: 1 | F45: LSB
B46: Digital binning vertical | D46: BDV | E46: 1 | F46: LSB
B47: Digital binning sliding window horizontal | D47: BDH | E47: 1 | F47: LSB
B48: Digital binning sliding window vertical | D48: BDV | E48: 1 | F48: LSB
B49: Minimum TOF amplitude (from tab “Distance Noise”) | D49: ER | E49: ='Distance noise'!B12 -> 110 | F49: LSB
A51: Eye safety limits (IEC-62471) | H51: Eye safety calculation (LED only)
A52: Exposure limit cornea and skin | D52: EIR | E52: 100 | F52: W/m2 | H52: Cornea/skin irradiance exposure calculation | J52: Ee | K52: =(E7/E8*E14*E15)/(E54*E54)/1000*K9/100 -> 22 | L52: W/m2
A53: Exposure limit retina | D53: LIR | E53: 300 | F53: mW/mm2/sr | H53: Retina irradiance exposure calculation | J53: LIR | K53: =IF(K37='Illumination selection'!H6,E58,0)*E7/E8*E14*E15*K9/100/POWER((E55+E56)/2,2) -> 11 | L53: mW/mm2/sr
A54: Distance source to eye | D54: d | E54: 0.2 | F54: m
A55: Source length (virtual with lens) | D55: l | E55: ='Illumination selection'!N6*E15 -> 5.2 | F55: mm
A56: Source width (virtual with lens) | D56: w | E56: ='Illumination selection'!O6*E15 -> 5.2 | F56: mm
A57: Thermal stress weighting function @ 850nm | D57: R(λ) | E57: 0.6
A58: Thermal stress weighting function @ 940nm | D58: R(λ) | E58: 0.33
A60: General comments
A61: Cells with letters in bold blue are input cells
A62: Cells in bold black contain calculations results. DO NOT OVERWRITE!
A63: Most important results are surrounded by
A64: A detailed description can be found in the application note “AN-02 Reflected power calculation”. The reflected power calculation is based on the illumination of a pixel on the optical axis.
A65: The eye safety calculation is valid for LED illumination only. ESPROS does not take any responsibility for the eye safety of customers products.

Sheet Distance noise
A1: Input Data | E1: Results | I1: Distance noise graph
A3: Parameter | B3: Value | C3: Unit | E3: Parameter (only factory set inputs) | F3: Value | G3: Unit
A4: Mod. Freq. | B4: 20.0 | C4: MHz | E4: Unambiguity range | F4: =15*10/B4 -> 7.5 | G4: m
A5: Pixel cut-off freq. | B5: 13.0 | C5: MHz | E5: Demodulation loss | F5: =1/SQRT(1+(($B$4/$B$5)*($B$4/$B$5))) -> 0.5 | G5: #
A6: Max. ADC amplitude per basic pixel, no zoom | B6: 2,047 | C6: LSB
A7: Max. “photons” for max. ADC amplitude | B7: 200,000 | C7: e- | E7: No. of max. TOF amplitude “photons” | F7: =$B$7/$B$9*$B$13/$B$6 -> 78,163 | G7: Electrons
A8: Ratio of “photons” of max. TOF amplitude to ambient-light | B8: 8.0 | C8: # | E8: No. of ambient-light “photons” (< 10 Me-) | F8: =$B$7/$B$9*$B$8*$B$13/$B$6 -> 625,305 | G8: Electrons
A9: ADC zoom (typ. 2.5) | B9: 2.5 | C9: #
A10: Lost bits AD conversion | B10: 4 | C10: Bit | E10: Lost bits AD conversion factor | F10: =POWER(2,$B$10) -> 16 | G10: #
A11: Floor noise | B11: 30 | C11: LSBpp
A12: Minimum TOF amplitude | B12: 110 | C12: LSB
A13: Max. TOF amplitude | B13: 2,000 | C13: LSB
A15: Conversion factor Watt to Lux | B15: Value | C15: Unit | E15: Target | F15: Value | G15: Unit
A16: @ 640nm +/-30nm CF640 | B16: 760 | C16: µW/m2/Lux | E16: Modulated irradiance on object Emod | F16: ='Optical power calculation'!K16 -> 0.232 | G16: μW/mm2
A17: @ 850nm +/-30nm CF850 | B17: 580 | C17: µW/m2/Lux | E17: Ambient-light irradiance on object Eamb | F17: =F16*B13/'Optical power calculation'!E49*B8*'Optical power calculation'!E43*'Optical power calculation'!E44*'Optical power calculation'!E45*'Optical power calculation'!E46*'Optical power calculation'!E47 -> 33.775 | G17: μW/mm2
A18: @ 940nm +/-30nm CF940 | B18: 280 | C18: µW/m2/Lux | E18: Ratio ambient light to modulated light | F18: =F17/F16 -> 145 | G18: #
A20: Note to the sensitivity (electrons): Data is based on - 1 LSB = 1.938 mV - CG = 20u V/e- - 2'047 LSB = 3.967 V (4.0V) = 198'354 e- (200 ke-) - Full well of storage gate: 10 Me- | E20: Ambient light on target | F20: Value | G20: Unit
E21: @ 640 nm | F21: =$F$17/B16*1000*1000 -> 44,441 | G21: =IF('Optical power calculation'!E5=640,"Lux","---") -> ---
E22: @ 850 nm | F22: =$F$17/B17*1000*1000 -> 58,233 | G22: =IF('Optical power calculation'!E5=850,"Lux","---") -> ---
E23: @ 940 nm | F23: =$F$17/B18*1000*1000 -> 120,625 | G23: =IF('Optical power calculation'!E5=940,"Lux","---") -> Lux
E26: Min. TOF amplitude accurate | F26: =B12/'Optical power calculation'!E45 -> 110 | G26: LSB
E27: Distance noise, 1σ, single shot @ binned TOF amplitude accurate | F27: ='Support Tables'!G111/SQRT('Optical power calculation'!E45) -> 20.4 | G27: mm
E29: Max. TOF amplitude | F29: =B13*'Optical power calculation'!E45 -> 2,000 | G29: LSB
E30: Distance noise, 1σ, single shot @ digital binned TOF amplitude maximum | F30: ='Support Tables'!G104 -> 4.2 | G30: mm

Sheet Illumination selection
A1: Illumination source selection list – main optical data – other data need to be completed according corresponding datasheet
A3: Sel. | B3: No. | C3: Supplier | D3: Type | E3: P/N | F3: Application | G3: Wavelength | H3: Imager irradiance for 1 LSB @ tNOM | I3: Emitting half-angle (IE LED = 50%) | J3: Nominal radiant intensity @ iNOM per LED | K3: Opt. Power DC 5 in emitter area | L3: Current for nominal radiant intensity | M3: Current maximum, pulsed operation | N3: Bare die size | P3: FOV: 1: rect. 2: round | Q3: FOV 3 horizontal (round) | R3: FOV 3 vertical | S3: Emitter lens focal length | T3: Emitter lens lens area | U3: Emitter lens efficiency
G4: φLED | H4: ER-LSB | I4: φLED | J4: IE LED | K4: PEO | L4: iNOM | M4: iMAX_PULSED | N4: bl | O4: bw | Q4: FOVH | R4: FOVV | S4: fE | T4: AE | U4: vE
G5: nm | H5: nW/mm2 | I5: ± deg | J5: mW/sr | K5: W | L5: mA | M5: mA | N5: mm | O5: mm | Q5: deg | R5: deg | S5: mm | T5: mm2 | U5: %
A6: Sel. | B6: =IF(SUM($A$8:$A$45)=1,OFFSET(B8,SUMPRODUCT($A$8:$A$45,$B$8:$B$45)-1,0,1),IF(SUM($A$8:$A$45)>1,"More than 1","No selection")) -> 14 | C6: =IF(SUM($A$8:$A$45)=1,OFFSET(C8,SUMPRODUCT($A$8:$A$45,$B$8:$B$45)-1,0,1),"No selection") -> Osram | D6: =IF(SUM($A$8:$A$45)=1,OFFSET(D8,SUMPRODUCT($A$8:$A$45,$B$8:$B$45)-1,0,1),"No selection") -> LED | E6: =IF(SUM($A$8:$A$45)=1,OFFSET(E8,SUMPRODUCT($A$8:$A$45,$B$8:$B$45)-1,0,1),"No selection") -> SFH 4725AS A01 | F6: =IF(SUM($A$8:$A$45)=1,OFFSET(F8,SUMPRODUCT($A$8:$A$45,$B$8:$B$45)-1,0,1),"No selection") -> 0 | G6: =IF(SUM($A$8:$A$45)=1,OFFSET(G8,SUMPRODUCT($A$8:$A$45,$B$8:$B$45)-1,0,1),"No selection") -> 940 | H6: =IF(SUM($A$8:$A$45)=1,OFFSET(H8,SUMPRODUCT($A$8:$A$45,$B$8:$B$45)-1,0,1),"No selection") -> 0.820 | I6: =IF(SUM($A$8:$A$45)=1,OFFSET(I8,SUMPRODUCT($A$8:$A$45,$B$8:$B$45)-1,0,1),"No selection") -> 40.0 | J6: =IF(SUM($A$8:$A$45)=1,OFFSET(J8,SUMPRODUCT($A$8:$A$45,$B$8:$B$45)-1,0,1),"No selection") -> 760 | K6: =IF(SUM($A$8:$A$45)=1,OFFSET(K8,SUMPRODUCT($A$8:$A$45,$B$8:$B$45)-1,0,1),"No selection") -> --- | L6: =IF(SUM($A$8:$A$45)=1,OFFSET(L8,SUMPRODUCT($A$8:$A$45,$B$8:$B$45)-1,0,1),"No selection") -> 1,000 | M6: =IF(SUM($A$8:$A$45)=1,OFFSET(M8,SUMPRODUCT($A$8:$A$45,$B$8:$B$45)-1,0,1),"No selection") -> 5,000 | N6: =IF(SUM($A$8:$A$45)=1,OFFSET(N8,SUMPRODUCT($A$8:$A$45,$B$8:$B$45)-1,0,1),"No selection") -> 1.300 | O6: =IF(SUM($A$8:$A$45)=1,OFFSET(O8,SUMPRODUCT($A$8:$A$45,$B$8:$B$45)-1,0,1),"No selection") -> 1.300 | P6: =IF(SUM($A$8:$A$45)=1,OFFSET(P8,SUMPRODUCT($A$8:$A$45,$B$8:$B$45)-1,0,1),"No selection") -> 2 | Q6: =IF(SUM($A$8:$A$45)=1,OFFSET(Q8,SUMPRODUCT($A$8:$A$45,$B$8:$B$45)-1,0,1),"No selection") -> 80.00 | R6: =IF(SUM($A$8:$A$45)=1,OFFSET(R8,SUMPRODUCT($A$8:$A$45,$B$8:$B$45)-1,0,1),"No selection") -> --- | S6: =IF(SUM($A$8:$A$45)=1,OFFSET(S8,SUMPRODUCT($A$8:$A$45,$B$8:$B$45)-1,0,1),"No selection") -> --- | T6: =IF(SUM($A$8:$A$45)=1,OFFSET(T8,SUMPRODUCT($A$8:$A$45,$B$8:$B$45)-1,0,1),"No selection") -> --- | U6: =IF(SUM($A$8:$A$45)=1,OFFSET(U8,SUMPRODUCT($A$8:$A$45,$B$8:$B$45)-1,0,1),"No selection") -> 100
B8: 1 | C8: Osram | D8: LED | E8: SFH 4059-R | F8: --- | G8: 850 | H8: 0.620 | I8: 10.0 | J8: 100 | K8: --- | L8: 70 | M8: 700 | N8: --- | O8: --- | P8: 2 | Q8: =2*I8 -> 20.00 | R8: --- | S8: --- | T8: --- | U8: 100
B9: 2 | C9: Osram | D9: LED | E9: SFH 4059-R – With emitter lens | F9: TOF>range 611 | G9: 850 | H9: 0.620 | I9: 10.0 | J9: 100 | K9: --- | L9: 70 | M9: 700 | N9: --- | O9: --- | P9: 1 | Q9: 1.00 | R9: 1.00 | S9: 50.3 | T9: 196.0 | U9: 11
B10: 3 | C10: Osram | D10: LED | E10: SFH 4258S | G10: 850 | H10: 0.620 | I10: 15.0 | J10: 185 | K10: --- | L10: 100 | M10: 700 | N10: --- | O10: --- | P10: 2 | Q10: 30.00 | R10: --- | S10: --- | T10: --- | U10: 100
B11: 4 | C11: Osram | D11: LED | E11: SFH 4258S – V2 | F11: Selected type | G11: 850 | H11: 0.620 | I11: 15.0 | J11: 103 | K11: --- | L11: 100 | M11: 700 | N11: --- | O11: --- | P11: 2 | Q11: 30.00 | R11: --- | S11: --- | T11: --- | U11: 100
B12: 5 | C12: Osram | D12: LED | E12: SFH 4258S – AW | F12: Selected type | G12: 850 | H12: 0.620 | I12: 15.0 | J12: 150 | K12: --- | L12: 100 | M12: 700 | N12: --- | O12: --- | P12: 2 | Q12: 30.00 | R12: --- | S12: --- | T12: --- | U12: 100
B13: 6 | C13: Osram | D13: LED | E13: SFH 4258S – BW | F13: Selected type | G13: 850 | H13: 0.620 | I13: 15.0 | J13: 240 | K13: --- | L13: 100 | M13: 700 | N13: --- | O13: --- | P13: 2 | Q13: 30.00 | R13: --- | S13: --- | T13: --- | U13: 100
B14: 7 | C14: Osram | D14: LED | E14: SFH 4258S – CW1 | F14: Selected type | G14: 850 | H14: 0.620 | I14: 15.0 | J14: 325 | K14: --- | L14: 100 | M14: 700 | N14: --- | O14: --- | P14: 2 | Q14: 30.00 | R14: --- | S14: --- | T14: --- | U14: 100
B15: 8 | C15: Osram | D15: LED | E15: SFH 4715 | G15: 850 | H15: 0.620 | I15: 45.0 | J15: 250 | K15: --- | L15: 1,000 | M15: 5,000 | N15: 1.3 | O15: 1.3 | P15: 2 | Q15: 90.00 | R15: --- | S15: --- | T15: --- | U15: 100
B16: 9 | C16: Osram | D16: LED | E16: SFH 4715S | G16: 850 | H16: 0.620 | I16: 45.0 | J16: 440 | K16: --- | L16: 1,000 | M16: 5,000 | N16: 1.3 | O16: 1.3 | P16: 2 | Q16: 90.00 | R16: --- | S16: --- | T16: --- | U16: 100
B17: 10 | C17: Osram | D17: LED | E17: SFH 4715AS | G17: 850 | H17: 0.620 | I17: 45.0 | J17: 780 | K17: --- | L17: 1,000 | M17: 3,000 | N17: 1.3 | O17: 1.3 | P17: 2 | Q17: 90.00 | R17: --- | S17: --- | T17: --- | U17: 100
B18: 11 | C18: Osram | D18: LED | E18: SFH 4715AS A01 | G18: 850 | H18: 0.620 | I18: 40.0 | J18: 770 | K18: --- | L18: 1,500 | M18: 5,000 | N18: 1.3 | O18: 1.3 | P18: 2 | Q18: 80.00 | R18: --- | S18: --- | T18: --- | U18: 100
B19: 12 | C19: Osram | D19: LED | E19: SFH 4725 | G19: 940 | H19: 0.820 | I19: 45.0 | J19: 425 | K19: --- | L19: 1,000 | M19: 5,000 | N19: 1.3 | O19: 1.3 | P19: 2 | Q19: 90.00 | R19: --- | S19: --- | T19: --- | U19: 100
B20: 13 | C20: Osram | D20: LED | E20: SFH 4725S | G20: 940 | H20: 0.820 | I20: 40.0 | J20: 760 | K20: --- | L20: 1,000 | M20: 5,000 | N20: 1.3 | O20: 1.3 | P20: 2 | Q20: 80.00 | R20: --- | S20: --- | T20: --- | U20: 100
A21: 1 | B21: 14 | C21: Osram | D21: LED | E21: SFH 4725AS A01 | G21: 940 | H21: 0.820 | I21: 40.0 | J21: 760 | K21: --- | L21: 1,000 | M21: 5,000 | N21: 1.3 | O21: 1.3 | P21: 2 | Q21: 80.00 | R21: --- | S21: --- | T21: --- | U21: 100
B22: 15 | C22: Princeton | D22: VCSEL | E22: PCW-SMV-2-W850-D60-45 | F22: Diffuser | G22: 850 | H22: 0.620 | I22: 4.7 | J22: 104,200 | K22: 2.2 | L22: 2,700 | M22: 5,000 | N22: --- | O22: --- | P22: 1 | Q22: 60.00 | R22: 45 | S22: --- | T22: --- | U22: 100
B23: 16 | C23: Vixar | D23: VCSEL | E23: K0-094M-0000-00002 no diffusor | F23: No diffuser | G23: 940 | H23: 0.820 | I23: 9.0 | J23: 31,000 | K23: 2.4 | L23: 3,000 | M23: 4,500 | N23: --- | O23: --- | P23: 2 | Q23: 18.00 | R23: --- | S23: --- | T23: --- | U23: 100
B24: 17 | C24: Vixar | D24: VCSEL | E24: K0-094M-0000-00002-ALN2835-D60x45 | F24: Diffuser | G24: 940 | H24: 0.820 | I24: 9.0 | J24: 31,000 | K24: 2.4 | L24: 3,000 | M24: 4,500 | N24: --- | O24: --- | P24: 1 | Q24: 60.00 | R24: 45 | S24: --- | T24: --- | U24: 85
B25: 18 | C25: Vixar | D25: VCSEL | E25: K0-094M-0000-00002-ALN2835-D86x60 | F25: Diffuser | G25: 940 | H25: 0.820 | I25: 9.0 | J25: 31,000 | K25: 2.4 | L25: 3,000 | M25: 4,500 | N25: --- | O25: --- | P25: 1 | Q25: 86.00 | R25: 60 | S25: --- | T25: --- | U25: 85
B26: 19 | C26: Vixar | D26: VCSEL | E26: K0-094M-0000-00002-ALN05-D105x90 | F26: Diffuser | G26: 940 | H26: 0.820 | I26: 9.0 | J26: 31,000 | K26: 2.4 | L26: 3,000 | M26: 4,500 | N26: --- | O26: --- | P26: 1 | Q26: 105.00 | R26: 90 | S26: --- | T26: --- | U26: 85
B27: 20 | C27: Lumileds | D27: LED | E27: L1IZ-0850000000000 | F27: --- | G27: 850 | H27: 0.620 | I27: 75.0 | J27: 250 | K27: --- | L27: 1,000 | M27: 3,000 | N27: --- | O27: --- | P27: 2 | Q27: 150.00 | R27: --- | S27: --- | T27: --- | U27: 100
B28: 21 | C28: Lumileds | D28: LED | E28: L1IZ-0940000000000 | F28: --- | G28: 940 | H28: 0.820 | I28: 75.0 | J28: 300 | K28: --- | L28: 1,000 | M28: 3,000 | N28: --- | O28: --- | P28: 2 | Q28: 150.00 | R28: --- | S28: --- | T28: --- | U28: 100
B29: 22 | C29: Lumileds | D29: LED | E29: L1I0-0850060000000 | F29: --- | G29: 850 | H29: 0.620 | I29: 30.0 | J29: 1,150 | K29: --- | L29: 1,000 | M29: 3,000 | N29: --- | O29: --- | P29: 2 | Q29: 60.00 | R29: --- | S29: --- | T29: --- | U29: 100
B30: 23 | C30: Lumileds | D30: LED | E30: L1I0-0850090000000 | F30: --- | G30: 850 | H30: 0.620 | I30: 45.0 | J30: 750 | K30: --- | L30: 1,000 | M30: 3,000 | N30: --- | O30: --- | P30: 2 | Q30: 90.00 | R30: --- | S30: --- | T30: --- | U30: 100
B31: 24 | C31: Lumileds | D31: LED | E31: L1I0-0850150000000 | F31: --- | G31: 850 | H31: 0.620 | I31: 75.0 | J31: 335 | K31: --- | L31: 1,000 | M31: 3,000 | N31: --- | O31: --- | P31: 2 | Q31: 150.00 | R31: --- | S31: --- | T31: --- | U31: 100
B32: 25 | C32: Lumileds | D32: LED | E32: L1I0-0940060000000 | F32: --- | G32: 940 | H32: 0.820 | I32: 30.0 | J32: 1,190 | K32: --- | L32: 1,000 | M32: 3,000 | N32: --- | O32: --- | P32: 2 | Q32: 60.00 | R32: --- | S32: --- | T32: --- | U32: 100
B33: 26 | C33: Lumileds | D33: LED | E33: L1I0-0940090000000 | F33: --- | G33: 940 | H33: 0.820 | I33: 45.0 | J33: 780 | K33: --- | L33: 1,000 | M33: 3,000 | N33: --- | O33: --- | P33: 2 | Q33: 90.00 | R33: --- | S33: --- | T33: --- | U33: 100
B34: 27 | C34: Lumileds | D34: LED | E34: L1I0-0940150000000 | F34: --- | G34: 940 | H34: 0.820 | I34: 75.0 | J34: 350 | K34: --- | L34: 1,000 | M34: 3,000 | N34: --- | O34: --- | P34: 2 | Q34: 150.00 | R34: --- | S34: --- | T34: --- | U34: 100
B35: 28 | C35: Lumileds | D35: LED | E35: L1IZ-A850000000000 | F35: --- | G35: 850 | H35: 0.620 | I35: 75.0 | J35: 250 | K35: --- | L35: 1,000 | M35: 5,000 | N35: --- | O35: --- | P35: 2 | Q35: 150.00 | R35: --- | S35: --- | T35: --- | U35: 100
B36: 29 | C36: Lumileds | D36: LED | E36: L1IZ-A940000000000 | F36: --- | G36: 850 | H36: 0.620 | I36: 75.0 | J36: 300 | K36: --- | L36: 1,000 | M36: 5,000 | N36: --- | O36: --- | P36: 2 | Q36: 150.00 | R36: --- | S36: --- | T36: --- | U36: 100
B37: 30 | C37: Lumileds | D37: LED | E37: L1I0-A850050000000 | F37: --- | G37: 850 | H37: 0.620 | I37: 25.0 | J37: 1,255 | K37: --- | L37: 1,000 | M37: 5,000 | N37: --- | O37: --- | P37: 2 | Q37: 50.00 | R37: --- | S37: --- | T37: --- | U37: 100
B38: 31 | C38: Lumileds | D38: LED | E38: L1I0-A850060000000 | F38: --- | G38: 850 | H38: 0.620 | I38: 30.0 | J38: 1,150 | K38: --- | L38: 1,000 | M38: 5,000 | N38: --- | O38: --- | P38: 2 | Q38: 60.00 | R38: --- | S38: --- | T38: --- | U38: 100
B39: 32 | C39: Lumileds | D39: LED | E39: L1I0-A850090000000 | F39: --- | G39: 850 | H39: 0.620 | I39: 45.0 | J39: 750 | K39: --- | L39: 1,000 | M39: 5,000 | N39: --- | O39: --- | P39: 2 | Q39: 90.00 | R39: --- | S39: --- | T39: --- | U39: 100
B40: 33 | C40: Lumileds | D40: LED | E40: L1I0-A850150000000 | F40: --- | G40: 850 | H40: 0.620 | I40: 75.0 | J40: 335 | K40: --- | L40: 1,000 | M40: 5,000 | N40: --- | O40: --- | P40: 2 | Q40: 150.00 | R40: --- | S40: --- | T40: --- | U40: 100
B41: 34 | C41: Lumileds | D41: LED | E41: L1I0-A940050000000 | F41: --- | G41: 940 | H41: 0.820 | I41: 25.0 | J41: 1,335 | K41: --- | L41: 1,000 | M41: 5,000 | N41: --- | O41: --- | P41: 2 | Q41: 50.00 | R41: --- | S41: --- | T41: --- | U41: 100
B42: 35 | C42: Lumileds | D42: LED | E42: L1I0-A940060000000 | F42: --- | G42: 940 | H42: 0.820 | I42: 30.0 | J42: 1,190 | K42: --- | L42: 1,000 | M42: 5,000 | N42: --- | O42: --- | P42: 2 | Q42: 60.00 | R42: --- | S42: --- | T42: --- | U42: 100
B43: 36 | C43: Lumileds | D43: LED | E43: L1I0-A940090000000 | F43: --- | G43: 940 | H43: 0.820 | I43: 45.0 | J43: 780 | K43: --- | L43: 1,000 | M43: 5,000 | N43: --- | O43: --- | P43: 2 | Q43: 90.00 | R43: --- | S43: --- | T43: --- | U43: 100
B44: 37 | C44: Lumileds | D44: LED | E44: L1I0-A940150000000 | F44: --- | G44: 940 | H44: 0.820 | I44: 75.0 | J44: 350 | K44: --- | L44: 1,000 | M44: 5,000 | N44: --- | O44: --- | P44: 2 | Q44: 150.00 | R44: --- | S44: --- | T44: --- | U44: 100
B45: 38

Sheet Integration time
A1: Input Data | E1: Results
A3: Parameter | B3: Unit | C3: Value | E3: Parameter | F3: Unit | G3: Value | I3: Register use | K3: Final integration time | M3: Register values | P3: in operating mode:
A4: Mod. Freq. | B4: MHz | C4: ='Distance noise'!B4 -> 20.0 | E4: mod_clk | F4: MHz | G4: =C4*4 -> 80.0 | I4: Multiplier int. time | J4: # | M4: Dec | N4: Hex | P4: epc660 mgx0 | Q4: epc660 mgx1 | R4: epc611 others | S4: epc611 U-HDR | T4: epc611 H-HDR | U4: epc611 MBR HDR
E5: mod_clk period | F5: ns | G5: =1/G4*1000 -> 12.5 | I5: Register address | P5: 0xA0 / 0xA1 | Q5: 0xA0 / 0xA1 | R5: 0xA0 / 0xA1 | S5: 0xA0 / 0xA1 | T5: 0xA0 / 0xA1 | U5: 0xA0 / 0xA1
E6: Unambiguity | F6: m | G6: =15*10/C4 -> 7.5 | I6: Repetitions INTM_ | J6: =ROUNDUP(G13/65536,0) -> 2 | M6: =J6 -> 2 | N6: =DEC2HEX(M6,4) -> 0002 | P6: INTM_ | Q6: INTM_ | R6: INTM_ | S6: INTM_ | T6: INTM_ | U6: INTM_
A8: TOF amplitude normalized to 20µm pixel | E8: Min. dist. resolution (4DCS) - normalized to 20µm pixel | F8: cm | G8: =G6*100/(C9*8) -> 0.85 | I8: Int. time counter | J8: # | K8: µs | L8: Ratio | M8: Dec | N8: Hex | P8: Register address / name
A9: Min. TOF amplitude | B9: LSB | C9: ='Distance noise'!B12 -> 110 | I9: Register address | P9: 0xA2 / 0xA3 | Q9: 0x9E / 0x9F | R9: 0xA2 / 0xA3 | S9: 0xE0 – 0xEF | T9: 0xE0 – 0xEF | U9: 0xE0 – 0xEF
A10: Max. TOF amplitude | B10: LSB | C10: ='Distance noise'!B13 -> 2,000 | E10: TOF amplitude ratio | F10: 1: | G10: =IF(C10<C9,"Not feasible",C10/C9) -> 18 | I10: Int. time 1 (max.) | J10: =IF((G13/J6)<8,"Not feasible",ROUNDUP(G13/J6/4,0)*4) -> 39,244 | K10: =J10*$J$6*$G$5/1000 -> 981.100 | M10: =J10-1 -> 39,243 | N10: =DEC2HEX(M10,4) -> 994B | P10: Int_len_ mgx0 | Q10: Int_len_mgx1 | R10: Int_len_ | S10: Int_len_row7 | T10: Int_len_row7, 6 | U10: Int_len_row7 ...4
F11: dB | G11: =IF(C10<C9,"Not feasible",20*LOG(G10)) -> 25.2 | I11: Int. time 2 | J11: =IF(J10<(4*$G$10),0,ROUNDDOWN(J10/$G$10/4,0)*4) -> 2,156 | K11: =IF(J11<4,"Not feasible",J11*$J$6*$G$5/1000) -> 53.900 | L11: =IF(J11=0," ",K10/K11) -> 18.20 | M11: =IF(J11=0," ",J11-1) -> 2,155 | N11: =IF(J11=0," ",DEC2HEX(M11,4)) -> 086B | S11: Int_len_row6 | T11: Int_len_row5, 4 | U11: Int_len_row3 ...0
I12: Int. time 3 | J12: =IF(J11<(4*$G$10),0,ROUNDDOWN(J11/$G$10/4,0)*4) -> 116 | K12: =IF(J12<4,"Not feasible",J12*$J$6*$G$5/1000) -> 2.900 | L12: =IF(J12=0," ",K11/K12) -> 18.59 | M12: =IF(J12=0," ",J12-1) -> 115 | N12: =IF(J12=0," ",DEC2HEX(M12,4)) -> 0073 | S12: Int_len_row5 | T12: Int_len_row3, 2
A13: Integration time | B13: µs | C13: ='Optical power calculation'!K38 -> 981 | E13: Max. int. time counter | F13: # | G13: =ROUNDUP((C13/G5)*1000,0) -> 78,482 | I13: Int. time 4 | J13: =IF(J12<(4*$G$10),0,ROUNDDOWN(J12/$G$10/4,0)*4) -> 4 | K13: =IF(J13<4,"Not feasible",J13*$J$6*$G$5/1000) -> 0.100 | L13: =IF(J13=0," ",K12/K13) -> 29.00 | M13: =IF(J13=0," ",J13-1) -> 3 | N13: =IF(J13=0," ",DEC2HEX(M13,4)) -> 0003 | S13: Int_len_row4 | T13: Int_len_row1, 0
I14: Int. time 5 | J14: =IF(J13<(4*$G$10),0,ROUNDDOWN(J13/$G$10/4,0)*4) -> 0 | K14: =IF(J14<4,"Not feasible",J14*$J$6*$G$5/1000) -> Not feasible | L14: =IF(J14=0," ",K13/K14) ->  | M14: =IF(J14=0," ",J14-1) ->  | N14: =IF(J14=0," ",DEC2HEX(M14,4)) ->  | S14: Int_len_row3
I15: Int. time 6 | J15: =IF(J14<(4*$G$10),0,ROUNDDOWN(J14/$G$10/4,0)*4) -> 0 | K15: =IF(J15<4,"Not feasible",J15*$J$6*$G$5/1000) -> Not feasible | L15: =IF(J15=0," ",K14/K15) ->  | M15: =IF(J15=0," ",J15-1) ->  | N15: =IF(J15=0," ",DEC2HEX(M15,4)) ->  | S15: Int_len_row2
I16: Int. time 7 | J16: =IF(J15<(4*$G$10),0,ROUNDDOWN(J15/$G$10/4,0)*4) -> 0 | K16: =IF(J16<4,"Not feasible",J16*$J$6*$G$5/1000) -> Not feasible | L16: =IF(J16=0," ",K15/K16) ->  | M16: =IF(J16=0," ",J16-1) ->  | N16: =IF(J16=0," ",DEC2HEX(M16,4)) ->  | S16: Int_len_row1
I17: Int. time 8 | J17: =IF(J16<(4*$G$10),0,ROUNDDOWN(J16/$G$10/4,0)*4) -> 0 | K17: =IF(J17<4,"Not feasible",J17*$J$6*$G$5/1000) -> Not feasible | L17: =IF(J17=0," ",K16/K17) ->  | M17: =IF(J17=0," ",J17-1) ->  | N17: =IF(J17=0," ",DEC2HEX(M17,4)) ->  | S17: Int_len_row0

Sheet epc660 frame rate
A1: Input Data | E1: Results | H1: Frame rates 12 bit (only) | M1: Calculations
A3: Parameter | B3: Unit | C3: Value | E3: Parameter (only factory set inputs) | F3: Unit | H3: DCS frame time | I3: Frame rate per integration time | M3: Parameter (only factory set inputs) | N3: Unit | O3: Value
E4: Frame rates per integration time | H4: [ms] | I4: 1 DCS [fps] | J4: 2 DCS [fps] | K4: 4 DCS [fps] | O4: 12 bit
A5: B&W integration time (exposure time) | B5: µs | C5: 10 | E5: B&W integration time (exposure time) | F5: µs | H5: =IF($C$5=0,0,((2*$O$5*$C$11/2/$O$8/$O$9)+$O$6+$O$7+C5)/1000) -> 6.316 | I5: =IF($C$5=0,"---",1000/H5) -> 158.3 | J5: --- | K5: --- | M5: ADC conversion time half row | N5: µs | O5: 26.042
A6: 1. Integration time (exposure time) | B6: µs | C6: 1,000.0 | E6: 1. Integration time (exposure time) | F6: µs | H6: =((2*$O$5*$C$11/2/$O$8/$O$9)+$O$6+$O$7+C6)/1000 -> 7.306 | I6: =1000/H6 -> 136.9 | J6: =I6/2 -> 68.4 | K6: =I6/4 -> 34.2 | M6: Delay last readout until next exposure | N6: µs | O6: 17.000
A7: 2. integration time (exposure time) | B7: µs | C7: 50.0 | E7: 2. integration time (exposure time) | F7: µs | H7: =((2*$O$5*$C$11/2/$O$8/$O$9)+$O$6+$O$7+C7)/1000 -> 6.356 | I7: =1000/H7 -> 157.3 | J7: =I7/2 -> 78.7 | K7: =I7/4 -> 39.3 | M7: Process time | N7: µs | O7: 38.750
A8: 3. Integration time (exposure time) | B8: µs | C8: 2.5 | E8: 3. Integration time (exposure time) | F8: µs | H8: =((2*$O$5*$C$11/2/$O$8/$O$9)+$O$6+$O$7+C8)/1000 -> 6.308 | I8: =1000/H8 -> 158.5 | J8: =I8/2 -> 79.3 | K8: =I8/4 -> 39.6 | M8: Column reduction effectively | N8: # | O8: =IF(C13=2,2,1) -> 1
M9: Row reduction effectively | N9: # | O9: =IF(C15=1,IF(C14=2,2,1),C15) -> 1
A10: ROI columns (max. 160) | B10: # | C10: 320 | E10: Frame rates accumulated | I10: Frame rates accumulated
A11: ROI rows (max. 60) | B11: # | C11: 240 | E11: BW + 1. int. time | F11: µs | I11: =1000/($H$6+$H$5) -> 73.4 | J11: =1000/(2*$H$6+$H$5) -> 47.8 | K11: =1000/(4*$H$6+$H$5) -> 28.1 | M11: Only influence by binning; no influence for the speed due to fact that readout is faster than conversion
A12: Note: Binning and row reduction values must be > 0 | E12: BW + 1. + 2. int. time | F12: µs | I12: =1/((1/I11)+(1/I7)) -> 50.1 | J12: =1/((1/J11)+(1/J7)) -> 29.7 | K12: =1/((1/K11)+(1/K7)) -> 16.4
A13: Analog binning pixel reduction horizontal: yes = 2 | B13: Pixel | C13: ='Optical power calculation'!E43 -> 1 | E13: BW + 1. + 2. + 3. int. time | F13: µs | I13: =1/((1/I12)+(1/I8)) -> 38.0 | J13: =1/((1/J12)+(1/J8)) -> 21.6 | K13: =1/((1/K12)+(1/K8)) -> 11.6
A14: Analog binning pixel reduction vertical: yes = 2 | B14: Pixel | C14: ='Optical power calculation'!E45 -> 1
A15: Row reduction (vertical) = 1 / 2 / 4 / 8 | B15: # | C15: =C14 -> 1

Sheet epc635 frame rate
A1: Input Data | E1: Results | H1: Frame rates 12 bit | M1: Frame rates 8 bit | R1: Calculations
A3: Parameter | B3: Unit | C3: Value | E3: Parameter (only factory set inputs) | F3: Unit | H3: DCS frame time | I3: Frame rate per integration time | M3: DCS frame time | N3: Frame rate per integration time | R3: Parameter (only factory set inputs) | S3: Unit | T3: Value | U3: Value
E4: Frame rates per integration time | H4: [ms] | I4: 1 DCS [fps] | J4: 2 DCS [fps] | K4: 4 DCS [fps] | M4: [ms] | N4: 1 DCS [fps] | O4: 2 DCS [fps] | P4: 4 DCS [fps] | T4: 12 bit | U4: 8 bit
A5: B&W integration time (exposure time) | B5: µs | C5: 10 | E5: B&W integration time (exposure time) | F5: µs | H5: =IF($C$5=0,0,((2*$T$5*$T$9/$T$11/$T$12)+$T$6+$T$7+C5)/1000) -> 1.956 | I5: =IF($C$5=0,"---",1000/H5) -> 511.2 | J5: --- | K5: --- | M5: =IF($C$5=0,0,((2*$U$5*$T$9/$T$11/$T$12)+$U$6+$U$7+C5)/1000) -> 1.536 | N5: =IF($C$5=0,"---",1000/M5) -> 650.9 | O5: --- | P5: --- | R5: ADC conversion time half row | S5: µs | T5: 15.750 | U5: 12.250
A6: 1. Integration time (exposure time) | B6: µs | C6: 1000.0 | E6: 1. Integration time (exposure time) | F6: µs | H6: =((2*$T$5*$T$9/$T$11/$T$12)+$T$6+$T$7+C6)/1000 -> 2.946 | I6: =1000/H6 -> 339.4 | J6: =I6/2 -> 169.7 | K6: =I6/4 -> 84.9 | M6: =((2*$U$5*$T$9/$T$11/$T$12)+$U$6+$U$7+C6)/1000 -> 2.526 | N6: =1000/M6 -> 395.8 | O6: =N6/2 -> 197.9 | P6: =N6/4 -> 99.0 | R6: Delay last readout until next exposure | S6: µs | T6: 17.000 | U6: 17.000
A7: 2. integration time (exposure time) | B7: µs | C7: 50.0 | E7: 2. integration time (exposure time) | F7: µs | H7: =((2*$T$5*$T$9/$T$11/$T$12)+$T$6+$T$7+C7)/1000 -> 1.996 | I7: =1000/H7 -> 500.9 | J7: =I7/2 -> 250.5 | K7: =I7/4 -> 125.2 | M7: =((2*$U$5*$T$9/$T$11/$T$12)+$U$6+$U$7+C7)/1000 -> 1.576 | N7: =1000/M7 -> 634.4 | O7: =N7/2 -> 317.2 | P7: =N7/4 -> 158.6 | R7: Process time | S7: µs | T7: 39.250 | U7: 39.250
A8: 3. Integration time (exposure time) | B8: µs | C8: 2.5 | E8: 3. Integration time (exposure time) | F8: µs | H8: =((2*$T$5*$T$9/$T$11/$T$12)+$T$6+$T$7+C8)/1000 -> 1.949 | I8: =1000/H8 -> 513.1 | J8: =I8/2 -> 256.6 | K8: =I8/4 -> 128.3 | M8: =((2*$U$5*$T$9/$T$11/$T$12)+$U$6+$U$7+C8)/1000 -> 1.529 | N8: =1000/M8 -> 654.1 | O8: =N8/2 -> 327.1 | P8: =N8/4 -> 163.5 | R8: ROI columns (max. 160) | S8: # | T8: 160
R9: ROI rows (max. 60) | S9: # | T9: 60
E10: Frame rates accumulated | I10: Frame rates accumulated | N10: Frame rates accumulated | R10: Row reduction (vertical) = 1 / 2 / 4 / 8 | S10: # | T10: 1
E11: BW + 1. int. time | F11: µs | I11: =1000/($H$6+$H$5) -> 204.0 | J11: =1000/(2*$H$6+$H$5) -> 127.4 | K11: =1000/(4*$H$6+$H$5) -> 72.8 | N11: =1000/($M$6+$M$5) -> 246.2 | O11: =1000/(2*$M$6+$M$5) -> 151.8 | P11: =1000/(4*$M$6+$M$5) -> 85.9 | R11: Column reduction effectively | S11: # | T11: =IF(C11=2,2,1) -> 1
E12: BW + 1. + 2. int. time | F12: µs | I12: =1/((1/I11)+(1/I7)) -> 145.0 | J12: =1/((1/J11)+(1/J7)) -> 84.5 | K12: =1/((1/K11)+(1/K7)) -> 46.0 | N12: =1/((1/N11)+(1/N7)) -> 177.3 | O12: =1/((1/O11)+(1/O7)) -> 102.7 | P12: =1/((1/P11)+(1/P7)) -> 55.7 | R12: Row reduction effectively | S12: # | T12: =IF(T10=1,IF(C12=2,2,1),T10) -> 1
E13: BW + 1. + 2. + 3. int. time | F13: µs | I13: =1/((1/I12)+(1/I8)) -> 113.0 | J13: =1/((1/J12)+(1/J8)) -> 63.5 | K13: =1/((1/K12)+(1/K8)) -> 33.9 | N13: =1/((1/N12)+(1/N8)) -> 139.5 | O13: =1/((1/O12)+(1/O8)) -> 78.1 | P13: =1/((1/P12)+(1/P8)) -> 41.6
R14: Only influence by binning; No influence for the speed due to fact that readout is faster than conversion

Sheet epc611 frame rate
A1: Input Data | E1: Results | P1: Calculations
P3: SPI | Q3: Chip | R3: Chip: | S3: Chip: | T3: SPI: | U3: S + C: | V3: Readout | W3: Exp.:
A4: Parameter | B4: Unit | C4: Value | F4: Shortcut | G4: Description | H4: DCS frame time | I4: Frame rate [fps] | L4: Features | P4: tSHUTTER | Q4: tINIT | R4: tPROC | S4: tCONV_TOT | T4: tLAST_DATA | U4: tPROC_TOT | W4: tINT
H5: [µs] | I5: 1 DCS | J5: 2 DCS | K5: 4 DCS | L5: Bin | M5: Sum | N5: Int. times | P5: [µs] | Q5: [µs] | R5: [µs] | S5: [µs] | T5: [µs] | U5: [µs] | V5: [Bit] | W5: [µs]
A6: B&W integration time (exposure time) | B6: µs | C6: 10 | E6: B&W | F6: GIM | G6: 8x8 pixel grayscale imager | H6: =IF($C$6=0,0,U6+W6) -> 218.8 | I6: =IF($C$6=0,"---",1/H6*1000*1000) -> 4,571 | L6: --- | M6: --- | N6: 1 | P6: =$P$9 -> 1.00 | Q6: =$Q$9 -> 18.00 | R6: =$R$9 -> 38.75 | S6: =4*2*15.625 -> 125.00 | T6: =(8*1.5*2)+2 -> 26.00 | U6: =SUM(P6:T6) -> 209 | V6: 12 | W6: =$C$6 -> 10
A7: 1. Integration time (exposure time) | B7: µs | C7: 1,000.0 | F7: GBI2 | G7: 2x2 pixel gray., bin., ROI | H7: =IF($C$6=0,0,U7+W7) -> 89.4 | I7: =IF($C$6=0,"---",1/H7*1000*1000) -> 11,189 | L7: 4 p | M7: --- | N7: 1 | P7: 1.00 | Q7: 18.00 | R7: 38.75 | S7: =1*15.625 -> 15.63 | T7: =(2*2)+2 -> 6.00 | U7: =SUM(P7:T7) -> 79 | V7: 12 | W7: =$C$6 -> 10
A8: 2. integration time (exposure time) | B8: µs | C8: 50.0
A9: 3. Integration time (exposure time) | B9: µs | C9: 2.5 | E9: 1. int. time (exposure) | F9: TIM | G9: 8x8 pixel 3D TOF imager | H9: =U9+W9 -> 1208.8 | I9: =1/H9*1000*1000 -> 827 | J9: =I9/2 -> 414 | K9: =I9/4 -> 207 | L9: --- | M9: --- | N9: 1 | P9: 1.00 | Q9: 18.00 | R9: 38.75 | S9: =4*2*15.625 -> 125.00 | T9: =(8*1.5*2)+2 -> 26.00 | U9: =SUM(P9:T9) -> 209 | V9: 12 | W9: =$C$7 -> 1000
F10: ULN | G10: Ultra low noise range-finder | H10: =U10+W10 -> 1187.8 | I10: =1/H10*1000*1000 -> 842 | J10: =I10/2 -> 421 | K10: =I10/4 -> 210 | L10: --- | M10: 64 p | N10: 1 | P10: =$P$9 -> 1.00 | Q10: =$Q$9 -> 18.00 | R10: =$R$9 -> 38.75 | S10: =4*2*15.625 -> 125.00 | T10: =3+2 -> 5.00 | U10: =SUM(P10:T10) -> 188 | V10: 18 | W10: =$C$7 -> 1000
F11: UFS | G11: Ultra fast & sens. range-finder | H11: =U11+W11 -> 1077.4 | I11: =1/H11*1000*1000 -> 928 | J11: =I11/2 -> 464 | K11: =I11/4 -> 232 | L11: 4 p | M11: 4 p | N11: 1 | P11: =$P$9 -> 1.00 | Q11: =$Q$9 -> 18.00 | R11: =$R$9 -> 38.75 | S11: =1*15.625 -> 15.63 | T11: =2+2 -> 4.00 | U11: =SUM(P11:T11) -> 77 | V11: 14 | W11: =$C$7 -> 1000
F12: UHD | G12: Ultra HDR range-finder | H12: =U12+W12 -> 1188.8 | I12: =1/H12*1000*1000 -> 841 | J12: =I12/2 -> 421 | K12: =I12/4 -> 210 | L12: --- | M12: 8 p | N12: max. 8 | P12: =$P$9 -> 1.00 | Q12: =$Q$9 -> 18.00 | R12: =$R$9 -> 38.75 | S12: =4*2*15.625 -> 125.00 | T12: =(2*2)+2 -> 6.00 | U12: =SUM(P12:T12) -> 189 | V12: 15 | W12: =$C$7 -> 1000
F13: LNH | G13: Low noise HDR range-finder | H13: =U13+W13 -> 1095.0 | I13: =1/H13*1000*1000 -> 913 | J13: =I13/2 -> 457 | K13: =I13/4 -> 228 | L13: 4 p | M13: 4 p | N13: max. 4 | P13: =$P$9 -> 1.00 | Q13: =$Q$9 -> 18.00 | R13: =$R$9 -> 38.75 | S13: =2*15.625 -> 31.25 | T13: =(2*2)+2 -> 6.00 | U13: =SUM(P13:T13) -> 95 | V13: 14 | W13: =$C$7 -> 1000
A14: GBI2 mode: This mode need to be verified | F14: RBH | G14: Red. blur HDR range-finder | H14: =U14+W14 -> 1103.0 | J14: =1/H14*1000*1000 -> 907 | K14: =J14/2 -> 453 | L14: 4 p | M14: --- | N14: max. 2 | P14: =$P$9 -> 1.00 | Q14: =$Q$9 -> 18.00 | R14: =$R$9 -> 38.75 | S14: =2*15.625 -> 31.25 | T14: =(4*1.5*2)+2 -> 14.00 | U14: =SUM(P14:T14) -> 103 | V14: 12 | W14: =$C$7 -> 1000
F15: NBF | G15: No motion-blur range-finder | H15: =U15+W15 -> 1188.8 | K15: =1/H15*1000*1000 -> 841 | L15: --- | M15: 8 p | N15: 1 | P15: =$P$9 -> 1.00 | Q15: =$Q$9 -> 18.00 | R15: =$R$9 -> 38.75 | S15: =4*2*15.625 -> 125.00 | T15: =(2*2)+2 -> 6.00 | U15: =SUM(P15:T15) -> 189 | V15: 15 | W15: =$C$7 -> 1000
E17: 2. Int. time (exposure) | F17: TIM | G17: 8x8 pixel 3D TOF imager | H17: =U17+W17 -> 258.8 | I17: =1/H17*1000*1000 -> 3,865 | J17: =I17/2 -> 1,932 | K17: =I17/4 -> 966 | P17: 1.00 | Q17: 18.00 | R17: 38.75 | S17: =4*2*15.625 -> 125.00 | T17: =(8*1.5*2)+2 -> 26.00 | U17: =SUM(P17:T17) -> 209 | V17: 12 | W17: =$C$8 -> 50
F18: ULN | G18: Ultra low noise range-finder | H18: =U18+W18 -> 237.8 | I18: =1/H18*1000*1000 -> 4,206 | J18: =I18/2 -> 2,103 | K18: =I18/4 -> 1,052 | P18: =$P$17 -> 1.00 | Q18: =$Q$17 -> 18.00 | R18: =$R$17 -> 38.75 | S18: =4*2*15.625 -> 125.00 | T18: =3+2 -> 5.00 | U18: =SUM(P18:T18) -> 188 | V18: 18 | W18: =$C$8 -> 50
F19: UFS | G19: Ultra fast & sens. range-finder | H19: =U19+W19 -> 127.4 | I19: =1/H19*1000*1000 -> 7,851 | J19: =I19/2 -> 3,925 | K19: =I19/4 -> 1,963 | P19: =$P$17 -> 1.00 | Q19: =$Q$17 -> 18.00 | R19: =$R$17 -> 38.75 | S19: =1*15.625 -> 15.63 | T19: =2+2 -> 4.00 | U19: =SUM(P19:T19) -> 77 | V19: 14 | W19: =$C$8 -> 50
F20: UHD | G20: Ultra HDR range-finder | H20: =U20+W20 -> 238.8 | I20: =1/H20*1000*1000 -> 4,188 | J20: =I20/2 -> 2,094 | K20: =I20/4 -> 1,047 | P20: =$P$17 -> 1.00 | Q20: =$Q$17 -> 18.00 | R20: =$R$17 -> 38.75 | S20: =4*2*15.625 -> 125.00 | T20: =(2*2)+2 -> 6.00 | U20: =SUM(P20:T20) -> 189 | V20: 15 | W20: =$C$8 -> 50
F21: LNH | G21: Low noise HDR range-finder | H21: =U21+W21 -> 145.0 | I21: =1/H21*1000*1000 -> 6,897 | J21: =I21/2 -> 3,448 | K21: =I21/4 -> 1,724 | P21: =$P$17 -> 1.00 | Q21: =$Q$17 -> 18.00 | R21: =$R$17 -> 38.75 | S21: =2*15.625 -> 31.25 | T21: =(2*2)+2 -> 6.00 | U21: =SUM(P21:T21) -> 95 | V21: 14 | W21: =$C$8 -> 50
F22: RBH | G22: Red. blur HDR range-finder | H22: =U22+W22 -> 153.0 | J22: =1/H22*1000*1000 -> 6,536 | K22: =J22/2 -> 3,268 | P22: =$P$17 -> 1.00 | Q22: =$Q$17 -> 18.00 | R22: =$R$17 -> 38.75 | S22: =2*15.625 -> 31.25 | T22: =(4*1.5*2)+2 -> 14.00 | U22: =SUM(P22:T22) -> 103 | V22: 12 | W22: =$C$8 -> 50
F23: NBF | G23: No motion-blur range-finder | H23: =U23+W23 -> 238.8 | K23: =1/H23*1000*1000 -> 4,188 | P23: =$P$17 -> 1.00 | Q23: =$Q$17 -> 18.00 | R23: =$R$17 -> 38.75 | S23: =4*2*15.625 -> 125.00 | T23: =(2*2)+2 -> 6.00 | U23: =SUM(P23:T23) -> 189 | V23: 15 | W23: =$C$8 -> 50
E25: 3. Int. time (exposure) | F25: TIM | G25: 8x8 pixel 3D TOF imager | H25: =U25+W25 -> 211.3 | I25: =1/H25*1000*1000 -> 4,734 | J25: =I25/2 -> 2,367 | K25: =I25/4 -> 1,183 | P25: 1.00 | Q25: 18.00 | R25: 38.75 | S25: =4*2*15.625 -> 125.00 | T25: =(8*1.5*2)+2 -> 26.00 | U25: =SUM(P25:T25) -> 209 | V25: 12 | W25: =$C$9 -> 3
F26: ULN | G26: Ultra low noise range-finder | H26: =U26+W26 -> 190.3 | I26: =1/H26*1000*1000 -> 5,256 | J26: =I26/2 -> 2,628 | K26: =I26/4 -> 1,314 | P26: =$P$17 -> 1.00 | Q26: =$Q$17 -> 18.00 | R26: =$R$17 -> 38.75 | S26: =4*2*15.625 -> 125.00 | T26: =3+2 -> 5.00 | U26: =SUM(P26:T26) -> 188 | V26: 18 | W26: =$C$9 -> 3
F27: UFS | G27: Ultra fast & sens. range-finder | H27: =U27+W27 -> 79.9 | I27: =1/H27*1000*1000 -> 12,520 | J27: =I27/2 -> 6,260 | K27: =I27/4 -> 3,130 | P27: =$P$17 -> 1.00 | Q27: =$Q$17 -> 18.00 | R27: =$R$17 -> 38.75 | S27: =1*15.625 -> 15.63 | T27: =2+2 -> 4.00 | U27: =SUM(P27:T27) -> 77 | V27: 14 | W27: =$C$9 -> 3
F28: UHD | G28: Ultra HDR range-finder | H28: =U28+W28 -> 191.3 | I28: =1/H28*1000*1000 -> 5,229 | J28: =I28/2 -> 2,614 | K28: =I28/4 -> 1,307 | P28: =$P$17 -> 1.00 | Q28: =$Q$17 -> 18.00 | R28: =$R$17 -> 38.75 | S28: =4*2*15.625 -> 125.00 | T28: =(2*2)+2 -> 6.00 | U28: =SUM(P28:T28) -> 189 | V28: 15 | W28: =$C$9 -> 3
F29: LNH | G29: Low noise HDR range-finder | H29: =U29+W29 -> 97.5 | I29: =1/H29*1000*1000 -> 10,256 | J29: =I29/2 -> 5,128 | K29: =I29/4 -> 2,564 | P29: =$P$17 -> 1.00 | Q29: =$Q$17 -> 18.00 | R29: =$R$17 -> 38.75 | S29: =2*15.625 -> 31.25 | T29: =(2*2)+2 -> 6.00 | U29: =SUM(P29:T29) -> 95 | V29: 14 | W29: =$C$9 -> 3
F30: RBH | G30: Red. blur HDR range-finder | H30: =U30+W30 -> 105.5 | J30: =1/H30*1000*1000 -> 9,479 | K30: =J30/2 -> 4,739 | P30: =$P$17 -> 1.00 | Q30: =$Q$17 -> 18.00 | R30: =$R$17 -> 38.75 | S30: =2*15.625 -> 31.25 | T30: =(4*1.5*2)+2 -> 14.00 | U30: =SUM(P30:T30) -> 103 | V30: 12 | W30: =$C$9 -> 3
F31: NBF | G31: No motion-blur range-finder | H31: =U31+W31 -> 191.3 | K31: =1/H31*1000*1000 -> 5,229 | P31: =$P$17 -> 1.00 | Q31: =$Q$17 -> 18.00 | R31: =$R$17 -> 38.75 | S31: =4*2*15.625 -> 125.00 | T31: =(2*2)+2 -> 6.00 | U31: =SUM(P31:T31) -> 189 | V31: 15 | W31: =$C$9 -> 3
E33: B&W + 1. int. time | F33: TIM | G33: 8x8 pixel 3D TOF imager | I33: =1/($H$6+$H9)*1000*1000 -> 701 | J33: =1/($H$6+2*$H9)*1000*1000 -> 379 | K33: =1/($H$6+4*$H9)*1000*1000 -> 198
F34: ULN | G34: Ultra low noise range-finder | I34: =1/($H$7+$H10)*1000*1000 -> 783 | J34: =1/($H$7+2*$H10)*1000*1000 -> 406 | K34: =1/($H$7+4*$H10)*1000*1000 -> 207
F35: UFS | G35: Ultra fast & sens. range-finder | I35: =1/($H$7+$H11)*1000*1000 -> 857 | J35: =1/($H$7+2*$H11)*1000*1000 -> 446 | K35: =1/($H$7+4*$H11)*1000*1000 -> 227
F36: UHD | G36: Ultra HDR range-finder | I36: =1/($H$7+$H12)*1000*1000 -> 782 | J36: =1/($H$7+2*$H12)*1000*1000 -> 405 | K36: =1/($H$7+4*$H12)*1000*1000 -> 206
F37: LNH | G37: Low noise HDR range-finder | I37: =1/($H$7+$H13)*1000*1000 -> 844 | J37: =1/($H$7+2*$H13)*1000*1000 -> 439 | K37: =1/($H$7+2*$H13)*1000*1000 -> 439
F38: RBH | G38: Red. blur HDR range-finder | J38: =1/($H$7+$H14)*1000*1000 -> 839 | K38: =1/($H$7+2*$H14)*1000*1000 -> 436
F39: NBF | G39: No motion-blur range-finder | K39: =1/($H$7+$H15)*1000*1000 -> 782
E41: B&W + 1. + 2. int. time | F41: TIM | G41: 8x8 pixel 3D TOF imager | I41: =1/((1/I17)+(1/I33)) -> 593 | J41: =1/((1/J17)+(1/J33)) -> 317 | K41: =1/((1/K17)+(1/K33)) -> 164
F42: ULN | G42: Ultra low noise range-finder | I42: =1/((1/I18)+(1/I34)) -> 660 | J42: =1/((1/J18)+(1/J34)) -> 340 | K42: =1/((1/K18)+(1/K34)) -> 173
F43: UFS | G43: Ultra fast & sens. range-finder | I43: =1/((1/I19)+(1/I35)) -> 773 | J43: =1/((1/J19)+(1/J35)) -> 400 | K43: =1/((1/K19)+(1/K35)) -> 204
F44: UHD | G44: Ultra HDR range-finder | I44: =1/((1/I20)+(1/I36)) -> 659 | J44: =1/((1/J20)+(1/J36)) -> 340 | K44: =1/((1/K20)+(1/K36)) -> 172
F45: LNH | G45: Low noise HDR range-finder | I45: =1/((1/I21)+(1/I37)) -> 752 | J45: =1/((1/J21)+(1/J37)) -> 389 | K45: =1/((1/K21)+(1/K37)) -> 350
F46: RBH | G46: Red. blur HDR range-finder | J46: =1/((1/J22)+(1/J38)) -> 743 | K46: =1/((1/K22)+(1/K38)) -> 384
F47: NBF | G47: No motion-blur range-finder | K47: =1/((1/K23)+(1/K39)) -> 659
E49: B&W + 1. + 2. + 3. int. time | F49: TIM | G49: 8x8 pixel 3D TOF imager | I49: =1/((1/I25)+(1/I41)) -> 527 | J49: =1/((1/J25)+(1/J41)) -> 280 | K49: =1/((1/K25)+(1/K41)) -> 144
F50: ULN | G50: Ultra low noise range-finder | I50: =1/((1/I26)+(1/I42)) -> 586 | J50: =1/((1/J26)+(1/J42)) -> 301 | K50: =1/((1/K26)+(1/K42)) -> 153
F51: UFS | G51: Ultra fast & sens. range-finder | I51: =1/((1/I27)+(1/I43)) -> 728 | J51: =1/((1/J27)+(1/J43)) -> 376 | K51: =1/((1/K27)+(1/K43)) -> 191
F52: UHD | G52: Ultra HDR range-finder | I52: =1/((1/I28)+(1/I44)) -> 585 | J52: =1/((1/J28)+(1/J44)) -> 301 | K52: =1/((1/K28)+(1/K44)) -> 152
F53: LNH | G53: Low noise HDR range-finder | I53: =1/((1/I29)+(1/I45)) -> 701 | J53: =1/((1/J29)+(1/J45)) -> 362 | K53: =1/((1/K29)+(1/K45)) -> 308
F54: RBH | G54: Red. blur HDR range-finder | J54: =1/((1/J30)+(1/J46)) -> 689 | K54: =1/((1/K30)+(1/K46)) -> 356
F55: NBF | G55: No motion-blur range-finder | K55: =1/((1/K31)+(1/K47)) -> 585

Sheet Support Tables
A1: Graph calculation
C3: Noise sources, max. - min | G3: Dist noise dark (mm) | H3: Dist noise amb (mm) | J3: Table
A4: Step | B4: Amplitude basic | C4: Digitizing (mm) | D4: Photon shot dark (mm) | E4: Photon shot amb (mm) | F4: Floor (mm) | G4: 1 sigma | H4: 1 sigma | J4: Amplitude basic | K4: Dist noise dark (mm) | L4: Dist noise incl. ambient (mm) | M4: Min. TOF amplitude | N4: Max. amplitude
A5: 0 | B5: =A5*20 -> 0 | C5: =('Distance noise'!$F$4*1000/4)/(2*B5/'Distance noise'!$F$10)/SQRT(2) -> 530,330.1 | D5: =('Distance noise'!$F$4*1000/4)/(('Distance noise'!$B$7/'Distance noise'!$B$9)*2*(B5/'Distance noise'!$B$6)*'Distance noise'!$F$5)*SQRT(('Distance noise'!$B$7/'Distance noise'!$B$9)*2*(2*B5/'Distance noise'!$B$6)*'Distance noise'!$F$5)/SQRT(2) -> 2,031.4 | E5: =('Distance noise'!$F$4*1000/4)/(('Distance noise'!$B$7/'Distance noise'!$B$9)*2*(B5/'Distance noise'!$B$6)*'Distance noise'!$F$5)*SQRT(('Distance noise'!$B$7/'Distance noise'!$B$9)*2*((2*B5/'Distance noise'!$B$6)+('Distance noise'!$B$13/'Distance noise'!$B$6*'Distance noise'!$B$8))*'Distance noise'!$F$5)/SQRT(2) -> 1,284,760.4 | F5: =('Distance noise'!$F$4*1000/4)/(2*'Distance noise'!$B$6)*2*'Distance noise'!$B$11/SQRT(2) -> 19.4 | G5: =SQRT((C5*C5)+(D5*D5)+(F5*F5))/5 -> 106,066.8 | H5: =SQRT((C5*C5)+(E5*E5)+(F5*F5))/5 -> 277,982.7 | J5: =B5 -> 0 | K5: =G5 -> 106,066.8 | L5: =H5 -> 277,982.7 | M5: =IF(('Distance noise'!B13-21)<$J5," ",IF(('Distance noise'!$F$26-20)>$J5," ",IF(('Distance noise'!$F$26-1)<$J5,0,1000))) ->  | N5: =IF(('Distance noise'!$B$13-20)>$J5," ",IF(('Distance noise'!$B$13)<$J5,0,1000)) -> 
A6: 1 | B6: =A6*20 -> 20 | C6: =('Distance noise'!$F$4*1000/4)/(2*B6/'Distance noise'!$F$10)/SQRT(2) -> 530.3 | D6: =('Distance noise'!$F$4*1000/4)/(('Distance noise'!$B$7/'Distance noise'!$B$9)*2*(B6/'Distance noise'!$B$6)*'Distance noise'!$F$5)*SQRT(('Distance noise'!$B$7/'Distance noise'!$B$9)*2*(2*B6/'Distance noise'!$B$6)*'Distance noise'!$F$5)/SQRT(2) -> 64.2 | E6: =('Distance noise'!$F$4*1000/4)/(('Distance noise'!$B$7/'Distance noise'!$B$9)*2*(B6/'Distance noise'!$B$6)*'Distance noise'!$F$5)*SQRT(('Distance noise'!$B$7/'Distance noise'!$B$9)*2*((2*B6/'Distance noise'!$B$6)+('Distance noise'!$B$13/'Distance noise'!$B$6*'Distance noise'!$B$8))*'Distance noise'!$F$5)/SQRT(2) -> 1,286.4 | F6: =('Distance noise'!$F$4*1000/4)/(2*'Distance noise'!$B$6)*2*'Distance noise'!$B$11/SQRT(2) -> 19.4 | G6: =SQRT((C6*C6)+(D6*D6)+(F6*F6))/5 -> 106.9 | H6: =SQRT((C6*C6)+(E6*E6)+(F6*F6))/5 -> 278.3 | J6: =B6 -> 20 | K6: =G6 -> 106.9 | L6: =H6 -> 278.3 | M6: =IF(('Distance noise'!$F$29-21)<$J6," ",IF(('Distance noise'!$F$26-20)>$J6," ",IF(('Distance noise'!$F$26-1)<$J6,0,1000))) ->  | N6: =IF(('Distance noise'!$B$13-20)>$J6," ",IF(('Distance noise'!$B$13-1)<$J6,0,1000)) -> 
A7: 2 | B7: =A7*20 -> 40 | C7: =('Distance noise'!$F$4*1000/4)/(2*B7/'Distance noise'!$F$10)/SQRT(2) -> 265.2 | D7: =('Distance noise'!$F$4*1000/4)/(('Distance noise'!$B$7/'Distance noise'!$B$9)*2*(B7/'Distance noise'!$B$6)*'Distance noise'!$F$5)*SQRT(('Distance noise'!$B$7/'Distance noise'!$B$9)*2*(2*B7/'Distance noise'!$B$6)*'Distance noise'!$F$5)/SQRT(2) -> 45.4 | E7: =('Distance noise'!$F$4*1000/4)/(('Distance noise'!$B$7/'Distance noise'!$B$9)*2*(B7/'Distance noise'!$B$6)*'Distance noise'!$F$5)*SQRT(('Distance noise'!$B$7/'Distance noise'!$B$9)*2*((2*B7/'Distance noise'!$B$6)+('Distance noise'!$B$13/'Distance noise'!$B$6*'Distance noise'!$B$8))*'Distance noise'!$F$5)/SQRT(2) -> 644.0 | F7: =('Distance noise'!$F$4*1000/4)/(2*'Distance noise'!$B$6)*2*'Distance noise'!$B$11/SQRT(2) -> 19.4 | G7: =SQRT((C7*C7)+(D7*D7)+(F7*F7))/5 -> 53.9 | H7: =SQRT((C7*C7)+(E7*E7)+(F7*F7))/5 -> 139.3 | J7: =B7 -> 40 | K7: =G7 -> 53.9 | L7: =H7 -> 139.3 | M7: =IF(('Distance noise'!$F$29-21)<$J7," ",IF(('Distance noise'!$F$26-20)>$J7," ",IF(('Distance noise'!$F$26-1)<$J7,0,1000))) ->  | N7: =IF(('Distance noise'!$B$13-20)>$J7," ",IF(('Distance noise'!$B$13-1)<$J7,0,1000)) -> 
A8: 3 | B8: =A8*20 -> 60 | C8: =('Distance noise'!$F$4*1000/4)/(2*B8/'Distance noise'!$F$10)/SQRT(2) -> 176.8 | D8: =('Distance noise'!$F$4*1000/4)/(('Distance noise'!$B$7/'Distance noise'!$B$9)*2*(B8/'Distance noise'!$B$6)*'Distance noise'!$F$5)*SQRT(('Distance noise'!$B$7/'Distance noise'!$B$9)*2*(2*B8/'Distance noise'!$B$6)*'Distance noise'!$F$5)/SQRT(2) -> 37.1 | E8: =('Distance noise'!$F$4*1000/4)/(('Distance noise'!$B$7/'Distance noise'!$B$9)*2*(B8/'Distance noise'!$B$6)*'Distance noise'!$F$5)*SQRT(('Distance noise'!$B$7/'Distance noise'!$B$9)*2*((2*B8/'Distance noise'!$B$6)+('Distance noise'!$B$13/'Distance noise'!$B$6*'Distance noise'!$B$8))*'Distance noise'!$F$5)/SQRT(2) -> 429.9 | F8: =('Distance noise'!$F$4*1000/4)/(2*'Distance noise'!$B$6)*2*'Distance noise'!$B$11/SQRT(2) -> 19.4 | G8: =SQRT((C8*C8)+(D8*D8)+(F8*F8))/5 -> 36.3 | H8: =SQRT((C8*C8)+(E8*E8)+(F8*F8))/5 -> 93.0 | J8: =B8 -> 60 | K8: =G8 -> 36.3 | L8: =H8 -> 93.0 | M8: =IF(('Distance noise'!$F$29-21)<$J8," ",IF(('Distance noise'!$F$26-20)>$J8," ",IF(('Distance noise'!$F$26-1)<$J8,0,1000))) ->  | N8: =IF(('Distance noise'!$B$13-20)>$J8," ",IF(('Distance noise'!$B$13-1)<$J8,0,1000)) -> 
A9: 4 | B9: =A9*20 -> 80 | C9: =('Distance noise'!$F$4*1000/4)/(2*B9/'Distance noise'!$F$10)/SQRT(2) -> 132.6 | D9: =('Distance noise'!$F$4*1000/4)/(('Distance noise'!$B$7/'Distance noise'!$B$9)*2*(B9/'Distance noise'!$B$6)*'Distance noise'!$F$5)*SQRT(('Distance noise'!$B$7/'Distance noise'!$B$9)*2*(2*B9/'Distance noise'!$B$6)*'Distance noise'!$F$5)/SQRT(2) -> 32.1 | E9: =('Distance noise'!$F$4*1000/4)/(('Distance noise'!$B$7/'Distance noise'!$B$9)*2*(B9/'Distance noise'!$B$6)*'Distance noise'!$F$5)*SQRT(('Distance noise'!$B$7/'Distance noise'!$B$9)*2*((2*B9/'Distance noise'!$B$6)+('Distance noise'!$B$13/'Distance noise'!$B$6*'Distance noise'!$B$8))*'Distance noise'!$F$5)/SQRT(2) -> 322.8 | F9: =('Distance noise'!$F$4*1000/4)/(2*'Distance noise'!$B$6)*2*'Distance noise'!$B$11/SQRT(2) -> 19.4 | G9: =SQRT((C9*C9)+(D9*D9)+(F9*F9))/5 -> 27.6 | H9: =SQRT((C9*C9)+(E9*E9)+(F9*F9))/5 -> 69.9 | J9: =B9 -> 80 | K9: =G9 -> 27.6 | L9: =H9 -> 69.9 | M9: =IF(('Distance noise'!$F$29-21)<$J9," ",IF(('Distance noise'!$F$26-20)>$J9," ",IF(('Distance noise'!$F$26-1)<$J9,0,1000))) ->  | N9: =IF(('Distance noise'!$B$13-20)>$J9," ",IF(('Distance noise'!$B$13-1)<$J9,0,1000)) -> 
A10: 5 | B10: =A10*20 -> 100 | C10: =('Distance noise'!$F$4*1000/4)/(2*B10/'Distance noise'!$F$10)/SQRT(2) -> 106.1 | D10: =('Distance noise'!$F$4*1000/4)/(('Distance noise'!$B$7/'Distance noise'!$B$9)*2*(B10/'Distance noise'!$B$6)*'Distance noise'!$F$5)*SQRT(('Distance noise'!$B$7/'Distance noise'!$B$9)*2*(2*B10/'Distance noise'!$B$6)*'Distance noise'!$F$5)/SQRT(2) -> 28.7 | E10: =('Distance noise'!$F$4*1000/4)/(('Distance noise'!$B$7/'Distance noise'!$B$9)*2*(B10/'Distance noise'!$B$6)*'Distance noise'!$F$5)*SQRT(('Distance noise'!$B$7/'Distance noise'!$B$9)*2*((2*B10/'Distance noise'!$B$6)+('Distance noise'!$B$13/'Distance noise'!$B$6*'Distance noise'!$B$8))*'Distance noise'!$F$5)/SQRT(2) -> 258.6 | F10: =('Distance noise'!$F$4*1000/4)/(2*'Distance noise'!$B$6)*2*'Distance noise'!$B$11/SQRT(2) -> 19.4 | G10: =SQRT((C10*C10)+(D10*D10)+(F10*F10))/5 -> 22.3 | H10: =SQRT((C10*C10)+(E10*E10)+(F10*F10))/5 -> 56.0 | J10: =B10 -> 100 | K10: =G10 -> 22.3 | L10: =H10 -> 56.0 | M10: =IF(('Distance noise'!$F$29-21)<$J10," ",IF(('Distance noise'!$F$26-20)>$J10," ",IF(('Distance noise'!$F$26-1)<$J10,0,1000))) -> 1,000 | N10: =IF(('Distance noise'!$B$13-20)>$J10," ",IF(('Distance noise'!$B$13-1)<$J10,0,1000)) -> 
A11: 6 | B11: =A11*20 -> 120 | C11: =('Distance noise'!$F$4*1000/4)/(2*B11/'Distance noise'!$F$10)/SQRT(2) -> 88.4 | D11: =('Distance noise'!$F$4*1000/4)/(('Distance noise'!$B$7/'Distance noise'!$B$9)*2*(B11/'Distance noise'!$B$6)*'Distance noise'!$F$5)*SQRT(('Distance noise'!$B$7/'Distance noise'!$B$9)*2*(2*B11/'Distance noise'!$B$6)*'Distance noise'!$F$5)/SQRT(2) -> 26.2 | E11: =('Distance noise'!$F$4*1000/4)/(('Distance noise'!$B$7/'Distance noise'!$B$9)*2*(B11/'Distance noise'!$B$6)*'Distance noise'!$F$5)*SQRT(('Distance noise'!$B$7/'Distance noise'!$B$9)*2*((2*B11/'Distance noise'!$B$6)+('Distance noise'!$B$13/'Distance noise'!$B$6*'Distance noise'!$B$8))*'Distance noise'!$F$5)/SQRT(2) -> 215.7 | F11: =('Distance noise'!$F$4*1000/4)/(2*'Distance noise'!$B$6)*2*'Distance noise'!$B$11/SQRT(2) -> 19.4 | G11: =SQRT((C11*C11)+(D11*D11)+(F11*F11))/5 -> 18.8 | H11: =SQRT((C11*C11)+(E11*E11)+(F11*F11))/5 -> 46.8 | J11: =B11 -> 120 | K11: =G11 -> 18.8 | L11: =H11 -> 46.8 | M11: =IF(('Distance noise'!$F$29-21)<$J11," ",IF(('Distance noise'!$F$26-20)>$J11," ",IF(('Distance noise'!$F$26-1)<$J11,0,1000))) -> 0 | N11: =IF(('Distance noise'!$B$13-20)>$J11," ",IF(('Distance noise'!$B$13-1)<$J11,0,1000)) -> 
A12: 7 | B12: =A12*20 -> 140 | C12: =('Distance noise'!$F$4*1000/4)/(2*B12/'Distance noise'!$F$10)/SQRT(2) -> 75.8 | D12: =('Distance noise'!$F$4*1000/4)/(('Distance noise'!$B$7/'Distance noise'!$B$9)*2*(B12/'Distance noise'!$B$6)*'Distance noise'!$F$5)*SQRT(('Distance noise'!$B$7/'Distance noise'!$B$9)*2*(2*B12/'Distance noise'!$B$6)*'Distance noise'!$F$5)/SQRT(2) -> 24.3 | E12: =('Distance noise'!$F$4*1000/4)/(('Distance noise'!$B$7/'Distance noise'!$B$9)*2*(B12/'Distance noise'!$B$6)*'Distance noise'!$F$5)*SQRT(('Distance noise'!$B$7/'Distance noise'!$B$9)*2*((2*B12/'Distance noise'!$B$6)+('Distance noise'!$B$13/'Distance noise'!$B$6*'Distance noise'!$B$8))*'Distance noise'!$F$5)/SQRT(2) -> 185.1 | F12: =('Distance noise'!$F$4*1000/4)/(2*'Distance noise'!$B$6)*2*'Distance noise'!$B$11/SQRT(2) -> 19.4 | G12: =SQRT((C12*C12)+(D12*D12)+(F12*F12))/5 -> 16.4 | H12: =SQRT((C12*C12)+(E12*E12)+(F12*F12))/5 -> 40.2 | J12: =B12 -> 140 | K12: =G12 -> 16.4 | L12: =H12 -> 40.2 | M12: =IF(('Distance noise'!$F$29-21)<$J12," ",IF(('Distance noise'!$F$26-20)>$J12," ",IF(('Distance noise'!$F$26-1)<$J12,0,1000))) -> 0 | N12: =IF(('Distance noise'!$B$13-20)>$J12," ",IF(('Distance noise'!$B$13-1)<$J12,0,1000)) -> 
A13: 8 | B13: =A13*20 -> 160 | C13: =('Distance noise'!$F$4*1000/4)/(2*B13/'Distance noise'!$F$10)/SQRT(2) -> 66.3 | D13: =('Distance noise'!$F$4*1000/4)/(('Distance noise'!$B$7/'Distance noise'!$B$9)*2*(B13/'Distance noise'!$B$6)*'Distance noise'!$F$5)*SQRT(('Distance noise'!$B$7/'Distance noise'!$B$9)*2*(2*B13/'Distance noise'!$B$6)*'Distance noise'!$F$5)/SQRT(2) -> 22.7 | E13: =('Distance noise'!$F$4*1000/4)/(('Distance noise'!$B$7/'Distance noise'!$B$9)*2*(B13/'Distance noise'!$B$6)*'Distance noise'!$F$5)*SQRT(('Distance noise'!$B$7/'Distance noise'!$B$9)*2*((2*B13/'Distance noise'!$B$6)+('Distance noise'!$B$13/'Distance noise'!$B$6*'Distance noise'!$B$8))*'Distance noise'!$F$5)/SQRT(2) -> 162.2 | F13: =('Distance noise'!$F$4*1000/4)/(2*'Distance noise'!$B$6)*2*'Distance noise'!$B$11/SQRT(2) -> 19.4 | G13: =SQRT((C13*C13)+(D13*D13)+(F13*F13))/5 -> 14.5 | H13: =SQRT((C13*C13)+(E13*E13)+(F13*F13))/5 -> 35.3 | J13: =B13 -> 160 | K13: =G13 -> 14.5 | L13: =H13 -> 35.3 | M13: =IF(('Distance noise'!$F$29-21)<$J13," ",IF(('Distance noise'!$F$26-20)>$J13," ",IF(('Distance noise'!$F$26-1)<$J13,0,1000))) -> 0 | N13: =IF(('Distance noise'!$B$13-20)>$J13," ",IF(('Distance noise'!$B$13-1)<$J13,0,1000)) -> 
A14: 9 | B14: =A14*20 -> 180 | C14: =('Distance noise'!$F$4*1000/4)/(2*B14/'Distance noise'!$F$10)/SQRT(2) -> 58.9 | D14: =('Distance noise'!$F$4*1000/4)/(('Distance noise'!$B$7/'Distance noise'!$B$9)*2*(B14/'Distance noise'!$B$6)*'Distance noise'!$F$5)*SQRT(('Distance noise'!$B$7/'Distance noise'!$B$9)*2*(2*B14/'Distance noise'!$B$6)*'Distance noise'!$F$5)/SQRT(2) -> 21.4 | E14: =('Distance noise'!$F$4*1000/4)/(('Distance noise'!$B$7/'Distance noise'!$B$9)*2*(B14/'Distance noise'!$B$6)*'Distance noise'!$F$5)*SQRT(('Distance noise'!$B$7/'Distance noise'!$B$9)*2*((2*B14/'Distance noise'!$B$6)+('Distance noise'!$B$13/'Distance noise'!$B$6*'Distance noise'!$B$8))*'Distance noise'!$F$5)/SQRT(2) -> 144.3 | F14: =('Distance noise'!$F$4*1000/4)/(2*'Distance noise'!$B$6)*2*'Distance noise'!$B$11/SQRT(2) -> 19.4 | G14: =SQRT((C14*C14)+(D14*D14)+(F14*F14))/5 -> 13.1 | H14: =SQRT((C14*C14)+(E14*E14)+(F14*F14))/5 -> 31.4 | J14: =B14 -> 180 | K14: =G14 -> 13.1 | L14: =H14 -> 31.4 | M14: =IF(('Distance noise'!$F$29-21)<$J14," ",IF(('Distance noise'!$F$26-20)>$J14," ",IF(('Distance noise'!$F$26-1)<$J14,0,1000))) -> 0 | N14: =IF(('Distance noise'!$B$13-20)>$J14," ",IF(('Distance noise'!$B$13-1)<$J14,0,1000)) -> 
A15: 10 | B15: =A15*20 -> 200 | C15: =('Distance noise'!$F$4*1000/4)/(2*B15/'Distance noise'!$F$10)/SQRT(2) -> 53.0 | D15: =('Distance noise'!$F$4*1000/4)/(('Distance noise'!$B$7/'Distance noise'!$B$9)*2*(B15/'Distance noise'!$B$6)*'Distance noise'!$F$5)*SQRT(('Distance noise'!$B$7/'Distance noise'!$B$9)*2*(2*B15/'Distance noise'!$B$6)*'Distance noise'!$F$5)/SQRT(2) -> 20.3 | E15: =('Distance noise'!$F$4*1000/4)/(('Distance noise'!$B$7/'Distance noise'!$B$9)*2*(B15/'Distance noise'!$B$6)*'Distance noise'!$F$5)*SQRT(('Distance noise'!$B$7/'Distance noise'!$B$9)*2*((2*B15/'Distance noise'!$B$6)+('Distance noise'!$B$13/'Distance noise'!$B$6*'Distance noise'!$B$8))*'Distance noise'!$F$5)/SQRT(2) -> 130.1 | F15: =('Distance noise'!$F$4*1000/4)/(2*'Distance noise'!$B$6)*2*'Distance noise'!$B$11/SQRT(2) -> 19.4 | G15: =SQRT((C15*C15)+(D15*D15)+(F15*F15))/5 -> 12.0 | H15: =SQRT((C15*C15)+(E15*E15)+(F15*F15))/5 -> 28.4 | J15: =B15 -> 200 | K15: =G15 -> 12.0 | L15: =H15 -> 28.4 | M15: =IF(('Distance noise'!$F$29-21)<$J15," ",IF(('Distance noise'!$F$26-20)>$J15," ",IF(('Distance noise'!$F$26-1)<$J15,0,1000))) -> 0 | N15: =IF(('Distance noise'!$B$13-20)>$J15," ",IF(('Distance noise'!$B$13-1)<$J15,0,1000)) -> 
A16: 11 | B16: =A16*20 -> 220 | C16: =('Distance noise'!$F$4*1000/4)/(2*B16/'Distance noise'!$F$10)/SQRT(2) -> 48.2 | D16: =('Distance noise'!$F$4*1000/4)/(('Distance noise'!$B$7/'Distance noise'!$B$9)*2*(B16/'Distance noise'!$B$6)*'Distance noise'!$F$5)*SQRT(('Distance noise'!$B$7/'Distance noise'!$B$9)*2*(2*B16/'Distance noise'!$B$6)*'Distance noise'!$F$5)/SQRT(2) -> 19.4 | E16: =('Distance noise'!$F$4*1000/4)/(('Distance noise'!$B$7/'Distance noise'!$B$9)*2*(B16/'Distance noise'!$B$6)*'Distance noise'!$F$5)*SQRT(('Distance noise'!$B$7/'Distance noise'!$B$9)*2*((2*B16/'Distance noise'!$B$6)+('Distance noise'!$B$13/'Distance noise'!$B$6*'Distance noise'!$B$8))*'Distance noise'!$F$5)/SQRT(2) -> 118.4 | F16: =('Distance noise'!$F$4*1000/4)/(2*'Distance noise'!$B$6)*2*'Distance noise'!$B$11/SQRT(2) -> 19.4 | G16: =SQRT((C16*C16)+(D16*D16)+(F16*F16))/5 -> 11.1 | H16: =SQRT((C16*C16)+(E16*E16)+(F16*F16))/5 -> 25.9 | J16: =B16 -> 220 | K16: =G16 -> 11.1 | L16: =H16 -> 25.9 | M16: =IF(('Distance noise'!$F$29-21)<$J16," ",IF(('Distance noise'!$F$26-20)>$J16," ",IF(('Distance noise'!$F$26-1)<$J16,0,1000))) -> 0 | N16: =IF(('Distance noise'!$B$13-20)>$J16," ",IF(('Distance noise'!$B$13-1)<$J16,0,1000)) -> 
A17: 12 | B17: =A17*20 -> 240 | C17: =('Distance noise'!$F$4*1000/4)/(2*B17/'Distance noise'!$F$10)/SQRT(2) -> 44.2 | D17: =('Distance noise'!$F$4*1000/4)/(('Distance noise'!$B$7/'Distance noise'!$B$9)*2*(B17/'Distance noise'!$B$6)*'Distance noise'!$F$5)*SQRT(('Distance noise'!$B$7/'Distance noise'!$B$9)*2*(2*B17/'Distance noise'!$B$6)*'Distance noise'!$F$5)/SQRT(2) -> 18.5 | E17: =('Distance noise'!$F$4*1000/4)/(('Distance noise'!$B$7/'Distance noise'!$B$9)*2*(B17/'Distance noise'!$B$6)*'Distance noise'!$F$5)*SQRT(('Distance noise'!$B$7/'Distance noise'!$B$9)*2*((2*B17/'Distance noise'!$B$6)+('Distance noise'!$B$13/'Distance noise'!$B$6*'Distance noise'!$B$8))*'Distance noise'!$F$5)/SQRT(2) -> 108.7 | F17: =('Distance noise'!$F$4*1000/4)/(2*'Distance noise'!$B$6)*2*'Distance noise'!$B$11/SQRT(2) -> 19.4 | G17: =SQRT((C17*C17)+(D17*D17)+(F17*F17))/5 -> 10.3 | H17: =SQRT((C17*C17)+(E17*E17)+(F17*F17))/5 -> 23.8 | J17: =B17 -> 240 | K17: =G17 -> 10.3 | L17: =H17 -> 23.8 | M17: =IF(('Distance noise'!$F$29-21)<$J17," ",IF(('Distance noise'!$F$26-20)>$J17," ",IF(('Distance noise'!$F$26-1)<$J17,0,1000))) -> 0 | N17: =IF(('Distance noise'!$B$13-20)>$J17," ",IF(('Distance noise'!$B$13-1)<$J17,0,1000)) -> 
A18: 13 | B18: =A18*20 -> 260 | C18: =('Distance noise'!$F$4*1000/4)/(2*B18/'Distance noise'!$F$10)/SQRT(2) -> 40.8 | D18: =('Distance noise'!$F$4*1000/4)/(('Distance noise'!$B$7/'Distance noise'!$B$9)*2*(B18/'Distance noise'!$B$6)*'Distance noise'!$F$5)*SQRT(('Distance noise'!$B$7/'Distance noise'!$B$9)*2*(2*B18/'Distance noise'!$B$6)*'Distance noise'!$F$5)/SQRT(2) -> 17.8 | E18: =('Distance noise'!$F$4*1000/4)/(('Distance noise'!$B$7/'Distance noise'!$B$9)*2*(B18/'Distance noise'!$B$6)*'Distance noise'!$F$5)*SQRT(('Distance noise'!$B$7/'Distance noise'!$B$9)*2*((2*B18/'Distance noise'!$B$6)+('Distance noise'!$B$13/'Distance noise'!$B$6*'Distance noise'!$B$8))*'Distance noise'!$F$5)/SQRT(2) -> 100.4 | F18: =('Distance noise'!$F$4*1000/4)/(2*'Distance noise'!$B$6)*2*'Distance noise'!$B$11/SQRT(2) -> 19.4 | G18: =SQRT((C18*C18)+(D18*D18)+(F18*F18))/5 -> 9.7 | H18: =SQRT((C18*C18)+(E18*E18)+(F18*F18))/5 -> 22.0 | J18: =B18 -> 260 | K18: =G18 -> 9.7 | L18: =H18 -> 22.0 | M18: =IF(('Distance noise'!$F$29-21)<$J18," ",IF(('Distance noise'!$F$26-20)>$J18," ",IF(('Distance noise'!$F$26-1)<$J18,0,1000))) -> 0 | N18: =IF(('Distance noise'!$B$13-20)>$J18," ",IF(('Distance noise'!$B$13-1)<$J18,0,1000)) -> 
A19: 14 | B19: =A19*20 -> 280 | C19: =('Distance noise'!$F$4*1000/4)/(2*B19/'Distance noise'!$F$10)/SQRT(2) -> 37.9 | D19: =('Distance noise'!$F$4*1000/4)/(('Distance noise'!$B$7/'Distance noise'!$B$9)*2*(B19/'Distance noise'!$B$6)*'Distance noise'!$F$5)*SQRT(('Distance noise'!$B$7/'Distance noise'!$B$9)*2*(2*B19/'Distance noise'!$B$6)*'Distance noise'!$F$5)/SQRT(2) -> 17.2 | E19: =('Distance noise'!$F$4*1000/4)/(('Distance noise'!$B$7/'Distance noise'!$B$9)*2*(B19/'Distance noise'!$B$6)*'Distance noise'!$F$5)*SQRT(('Distance noise'!$B$7/'Distance noise'!$B$9)*2*((2*B19/'Distance noise'!$B$6)+('Distance noise'!$B$13/'Distance noise'!$B$6*'Distance noise'!$B$8))*'Distance noise'!$F$5)/SQRT(2) -> 93.4 | F19: =('Distance noise'!$F$4*1000/4)/(2*'Distance noise'!$B$6)*2*'Distance noise'!$B$11/SQRT(2) -> 19.4 | G19: =SQRT((C19*C19)+(D19*D19)+(F19*F19))/5 -> 9.2 | H19: =SQRT((C19*C19)+(E19*E19)+(F19*F19))/5 -> 20.5 | J19: =B19 -> 280 | K19: =G19 -> 9.2 | L19: =H19 -> 20.5 | M19: =IF(('Distance noise'!$F$29-21)<$J19," ",IF(('Distance noise'!$F$26-20)>$J19," ",IF(('Distance noise'!$F$26-1)<$J19,0,1000))) -> 0 | N19: =IF(('Distance noise'!$B$13-20)>$J19," ",IF(('Distance noise'!$B$13-1)<$J19,0,1000)) -> 
A20: 15 | B20: =A20*20 -> 300 | C20: =('Distance noise'!$F$4*1000/4)/(2*B20/'Distance noise'!$F$10)/SQRT(2) -> 35.4 | D20: =('Distance noise'!$F$4*1000/4)/(('Distance noise'!$B$7/'Distance noise'!$B$9)*2*(B20/'Distance noise'!$B$6)*'Distance noise'!$F$5)*SQRT(('Distance noise'!$B$7/'Distance noise'!$B$9)*2*(2*B20/'Distance noise'!$B$6)*'Distance noise'!$F$5)/SQRT(2) -> 16.6 | E20: =('Distance noise'!$F$4*1000/4)/(('Distance noise'!$B$7/'Distance noise'!$B$9)*2*(B20/'Distance noise'!$B$6)*'Distance noise'!$F$5)*SQRT(('Distance noise'!$B$7/'Distance noise'!$B$9)*2*((2*B20/'Distance noise'!$B$6)+('Distance noise'!$B$13/'Distance noise'!$B$6*'Distance noise'!$B$8))*'Distance noise'!$F$5)/SQRT(2) -> 87.2 | F20: =('Distance noise'!$F$4*1000/4)/(2*'Distance noise'!$B$6)*2*'Distance noise'!$B$11/SQRT(2) -> 19.4 | G20: =SQRT((C20*C20)+(D20*D20)+(F20*F20))/5 -> 8.7 | H20: =SQRT((C20*C20)+(E20*E20)+(F20*F20))/5 -> 19.2 | J20: =B20 -> 300 | K20: =G20 -> 8.7 | L20: =H20 -> 19.2 | M20: =IF(('Distance noise'!$F$29-21)<$J20," ",IF(('Distance noise'!$F$26-20)>$J20," ",IF(('Distance noise'!$F$26-1)<$J20,0,1000))) -> 0 | N20: =IF(('Distance noise'!$B$13-20)>$J20," ",IF(('Distance noise'!$B$13-1)<$J20,0,1000)) -> 
A21: 16 | B21: =A21*20 -> 320 | C21: =('Distance noise'!$F$4*1000/4)/(2*B21/'Distance noise'!$F$10)/SQRT(2) -> 33.1 | D21: =('Distance noise'!$F$4*1000/4)/(('Distance noise'!$B$7/'Distance noise'!$B$9)*2*(B21/'Distance noise'!$B$6)*'Distance noise'!$F$5)*SQRT(('Distance noise'!$B$7/'Distance noise'!$B$9)*2*(2*B21/'Distance noise'!$B$6)*'Distance noise'!$F$5)/SQRT(2) -> 16.1 | E21: =('Distance noise'!$F$4*1000/4)/(('Distance noise'!$B$7/'Distance noise'!$B$9)*2*(B21/'Distance noise'!$B$6)*'Distance noise'!$F$5)*SQRT(('Distance noise'!$B$7/'Distance noise'!$B$9)*2*((2*B21/'Distance noise'!$B$6)+('Distance noise'!$B$13/'Distance noise'!$B$6*'Distance noise'!$B$8))*'Distance noise'!$F$5)/SQRT(2) -> 81.9 | F21: =('Distance noise'!$F$4*1000/4)/(2*'Distance noise'!$B$6)*2*'Distance noise'!$B$11/SQRT(2) -> 19.4 | G21: =SQRT((C21*C21)+(D21*D21)+(F21*F21))/5 -> 8.3 | H21: =SQRT((C21*C21)+(E21*E21)+(F21*F21))/5 -> 18.1 | J21: =B21 -> 320 | K21: =G21 -> 8.3 | L21: =H21 -> 18.1 | M21: =IF(('Distance noise'!$F$29-21)<$J21," ",IF(('Distance noise'!$F$26-20)>$J21," ",IF(('Distance noise'!$F$26-1)<$J21,0,1000))) -> 0 | N21: =IF(('Distance noise'!$B$13-20)>$J21," ",IF(('Distance noise'!$B$13-1)<$J21,0,1000)) -> 
A22: 17 | B22: =A22*20 -> 340 | C22: =('Distance noise'!$F$4*1000/4)/(2*B22/'Distance noise'!$F$10)/SQRT(2) -> 31.2 | D22: =('Distance noise'!$F$4*1000/4)/(('Distance noise'!$B$7/'Distance noise'!$B$9)*2*(B22/'Distance noise'!$B$6)*'Distance noise'!$F$5)*SQRT(('Distance noise'!$B$7/'Distance noise'!$B$9)*2*(2*B22/'Distance noise'!$B$6)*'Distance noise'!$F$5)/SQRT(2) -> 15.6 | E22: =('Distance noise'!$F$4*1000/4)/(('Distance noise'!$B$7/'Distance noise'!$B$9)*2*(B22/'Distance noise'!$B$6)*'Distance noise'!$F$5)*SQRT(('Distance noise'!$B$7/'Distance noise'!$B$9)*2*((2*B22/'Distance noise'!$B$6)+('Distance noise'!$B$13/'Distance noise'!$B$6*'Distance noise'!$B$8))*'Distance noise'!$F$5)/SQRT(2) -> 77.2 | F22: =('Distance noise'!$F$4*1000/4)/(2*'Distance noise'!$B$6)*2*'Distance noise'!$B$11/SQRT(2) -> 19.4 | G22: =SQRT((C22*C22)+(D22*D22)+(F22*F22))/5 -> 8.0 | H22: =SQRT((C22*C22)+(E22*E22)+(F22*F22))/5 -> 17.1 | J22: =B22 -> 340 | K22: =G22 -> 8.0 | L22: =H22 -> 17.1 | M22: =IF(('Distance noise'!$F$29-21)<$J22," ",IF(('Distance noise'!$F$26-20)>$J22," ",IF(('Distance noise'!$F$26-1)<$J22,0,1000))) -> 0 | N22: =IF(('Distance noise'!$B$13-20)>$J22," ",IF(('Distance noise'!$B$13-1)<$J22,0,1000)) -> 
A23: 18 | B23: =A23*20 -> 360 | C23: =('Distance noise'!$F$4*1000/4)/(2*B23/'Distance noise'!$F$10)/SQRT(2) -> 29.5 | D23: =('Distance noise'!$F$4*1000/4)/(('Distance noise'!$B$7/'Distance noise'!$B$9)*2*(B23/'Distance noise'!$B$6)*'Distance noise'!$F$5)*SQRT(('Distance noise'!$B$7/'Distance noise'!$B$9)*2*(2*B23/'Distance noise'!$B$6)*'Distance noise'!$F$5)/SQRT(2) -> 15.1 | E23: =('Distance noise'!$F$4*1000/4)/(('Distance noise'!$B$7/'Distance noise'!$B$9)*2*(B23/'Distance noise'!$B$6)*'Distance noise'!$F$5)*SQRT(('Distance noise'!$B$7/'Distance noise'!$B$9)*2*((2*B23/'Distance noise'!$B$6)+('Distance noise'!$B$13/'Distance noise'!$B$6*'Distance noise'!$B$8))*'Distance noise'!$F$5)/SQRT(2) -> 73.0 | F23: =('Distance noise'!$F$4*1000/4)/(2*'Distance noise'!$B$6)*2*'Distance noise'!$B$11/SQRT(2) -> 19.4 | G23: =SQRT((C23*C23)+(D23*D23)+(F23*F23))/5 -> 7.7 | H23: =SQRT((C23*C23)+(E23*E23)+(F23*F23))/5 -> 16.2 | J23: =B23 -> 360 | K23: =G23 -> 7.7 | L23: =H23 -> 16.2 | M23: =IF(('Distance noise'!$F$29-21)<$J23," ",IF(('Distance noise'!$F$26-20)>$J23," ",IF(('Distance noise'!$F$26-1)<$J23,0,1000))) -> 0 | N23: =IF(('Distance noise'!$B$13-20)>$J23," ",IF(('Distance noise'!$B$13-1)<$J23,0,1000)) -> 
A24: 19 | B24: =A24*20 -> 380 | C24: =('Distance noise'!$F$4*1000/4)/(2*B24/'Distance noise'!$F$10)/SQRT(2) -> 27.9 | D24: =('Distance noise'!$F$4*1000/4)/(('Distance noise'!$B$7/'Distance noise'!$B$9)*2*(B24/'Distance noise'!$B$6)*'Distance noise'!$F$5)*SQRT(('Distance noise'!$B$7/'Distance noise'!$B$9)*2*(2*B24/'Distance noise'!$B$6)*'Distance noise'!$F$5)/SQRT(2) -> 14.7 | E24: =('Distance noise'!$F$4*1000/4)/(('Distance noise'!$B$7/'Distance noise'!$B$9)*2*(B24/'Distance noise'!$B$6)*'Distance noise'!$F$5)*SQRT(('Distance noise'!$B$7/'Distance noise'!$B$9)*2*((2*B24/'Distance noise'!$B$6)+('Distance noise'!$B$13/'Distance noise'!$B$6*'Distance noise'!$B$8))*'Distance noise'!$F$5)/SQRT(2) -> 69.2 | F24: =('Distance noise'!$F$4*1000/4)/(2*'Distance noise'!$B$6)*2*'Distance noise'!$B$11/SQRT(2) -> 19.4 | G24: =SQRT((C24*C24)+(D24*D24)+(F24*F24))/5 -> 7.4 | H24: =SQRT((C24*C24)+(E24*E24)+(F24*F24))/5 -> 15.4 | J24: =B24 -> 380 | K24: =G24 -> 7.4 | L24: =H24 -> 15.4 | M24: =IF(('Distance noise'!$F$29-21)<$J24," ",IF(('Distance noise'!$F$26-20)>$J24," ",IF(('Distance noise'!$F$26-1)<$J24,0,1000))) -> 0 | N24: =IF(('Distance noise'!$B$13-20)>$J24," ",IF(('Distance noise'!$B$13-1)<$J24,0,1000)) -> 
A25: 20 | B25: =A25*20 -> 400 | C25: =('Distance noise'!$F$4*1000/4)/(2*B25/'Distance noise'!$F$10)/SQRT(2) -> 26.5 | D25: =('Distance noise'!$F$4*1000/4)/(('Distance noise'!$B$7/'Distance noise'!$B$9)*2*(B25/'Distance noise'!$B$6)*'Distance noise'!$F$5)*SQRT(('Distance noise'!$B$7/'Distance noise'!$B$9)*2*(2*B25/'Distance noise'!$B$6)*'Distance noise'!$F$5)/SQRT(2) -> 14.4 | E25: =('Distance noise'!$F$4*1000/4)/(('Distance noise'!$B$7/'Distance noise'!$B$9)*2*(B25/'Distance noise'!$B$6)*'Distance noise'!$F$5)*SQRT(('Distance noise'!$B$7/'Distance noise'!$B$9)*2*((2*B25/'Distance noise'!$B$6)+('Distance noise'!$B$13/'Distance noise'!$B$6*'Distance noise'!$B$8))*'Distance noise'!$F$5)/SQRT(2) -> 65.8 | F25: =('Distance noise'!$F$4*1000/4)/(2*'Distance noise'!$B$6)*2*'Distance noise'!$B$11/SQRT(2) -> 19.4 | G25: =SQRT((C25*C25)+(D25*D25)+(F25*F25))/5 -> 7.2 | H25: =SQRT((C25*C25)+(E25*E25)+(F25*F25))/5 -> 14.7 | J25: =B25 -> 400 | K25: =G25 -> 7.2 | L25: =H25 -> 14.7 | M25: =IF(('Distance noise'!$F$29-21)<$J25," ",IF(('Distance noise'!$F$26-20)>$J25," ",IF(('Distance noise'!$F$26-1)<$J25,0,1000))) -> 0 | N25: =IF(('Distance noise'!$B$13-20)>$J25," ",IF(('Distance noise'!$B$13-1)<$J25,0,1000)) -> 
A26: 21 | B26: =A26*20 -> 420 | C26: =('Distance noise'!$F$4*1000/4)/(2*B26/'Distance noise'!$F$10)/SQRT(2) -> 25.3 | D26: =('Distance noise'!$F$4*1000/4)/(('Distance noise'!$B$7/'Distance noise'!$B$9)*2*(B26/'Distance noise'!$B$6)*'Distance noise'!$F$5)*SQRT(('Distance noise'!$B$7/'Distance noise'!$B$9)*2*(2*B26/'Distance noise'!$B$6)*'Distance noise'!$F$5)/SQRT(2) -> 14.0 | E26: =('Distance noise'!$F$4*1000/4)/(('Distance noise'!$B$7/'Distance noise'!$B$9)*2*(B26/'Distance noise'!$B$6)*'Distance noise'!$F$5)*SQRT(('Distance noise'!$B$7/'Distance noise'!$B$9)*2*((2*B26/'Distance noise'!$B$6)+('Distance noise'!$B$13/'Distance noise'!$B$6*'Distance noise'!$B$8))*'Distance noise'!$F$5)/SQRT(2) -> 62.8 | F26: =('Distance noise'!$F$4*1000/4)/(2*'Distance noise'!$B$6)*2*'Distance noise'!$B$11/SQRT(2) -> 19.4 | G26: =SQRT((C26*C26)+(D26*D26)+(F26*F26))/5 -> 7.0 | H26: =SQRT((C26*C26)+(E26*E26)+(F26*F26))/5 -> 14.1 | J26: =B26 -> 420 | K26: =G26 -> 7.0 | L26: =H26 -> 14.1 | M26: =IF(('Distance noise'!$F$29-21)<$J26," ",IF(('Distance noise'!$F$26-20)>$J26," ",IF(('Distance noise'!$F$26-1)<$J26,0,1000))) -> 0 | N26: =IF(('Distance noise'!$B$13-20)>$J26," ",IF(('Distance noise'!$B$13-1)<$J26,0,1000)) -> 
A27: 22 | B27: =A27*20 -> 440 | C27: =('Distance noise'!$F$4*1000/4)/(2*B27/'Distance noise'!$F$10)/SQRT(2) -> 24.1 | D27: =('Distance noise'!$F$4*1000/4)/(('Distance noise'!$B$7/'Distance noise'!$B$9)*2*(B27/'Distance noise'!$B$6)*'Distance noise'!$F$5)*SQRT(('Distance noise'!$B$7/'Distance noise'!$B$9)*2*(2*B27/'Distance noise'!$B$6)*'Distance noise'!$F$5)/SQRT(2) -> 13.7 | E27: =('Distance noise'!$F$4*1000/4)/(('Distance noise'!$B$7/'Distance noise'!$B$9)*2*(B27/'Distance noise'!$B$6)*'Distance noise'!$F$5)*SQRT(('Distance noise'!$B$7/'Distance noise'!$B$9)*2*((2*B27/'Distance noise'!$B$6)+('Distance noise'!$B$13/'Distance noise'!$B$6*'Distance noise'!$B$8))*'Distance noise'!$F$5)/SQRT(2) -> 60.0 | F27: =('Distance noise'!$F$4*1000/4)/(2*'Distance noise'!$B$6)*2*'Distance noise'!$B$11/SQRT(2) -> 19.4 | G27: =SQRT((C27*C27)+(D27*D27)+(F27*F27))/5 -> 6.8 | H27: =SQRT((C27*C27)+(E27*E27)+(F27*F27))/5 -> 13.5 | J27: =B27 -> 440 | K27: =G27 -> 6.8 | L27: =H27 -> 13.5 | M27: =IF(('Distance noise'!$F$29-21)<$J27," ",IF(('Distance noise'!$F$26-20)>$J27," ",IF(('Distance noise'!$F$26-1)<$J27,0,1000))) -> 0 | N27: =IF(('Distance noise'!$B$13-20)>$J27," ",IF(('Distance noise'!$B$13-1)<$J27,0,1000)) -> 
A28: 23 | B28: =A28*20 -> 460 | C28: =('Distance noise'!$F$4*1000/4)/(2*B28/'Distance noise'!$F$10)/SQRT(2) -> 23.1 | D28: =('Distance noise'!$F$4*1000/4)/(('Distance noise'!$B$7/'Distance noise'!$B$9)*2*(B28/'Distance noise'!$B$6)*'Distance noise'!$F$5)*SQRT(('Distance noise'!$B$7/'Distance noise'!$B$9)*2*(2*B28/'Distance noise'!$B$6)*'Distance noise'!$F$5)/SQRT(2) -> 13.4 | E28: =('Distance noise'!$F$4*1000/4)/(('Distance noise'!$B$7/'Distance noise'!$B$9)*2*(B28/'Distance noise'!$B$6)*'Distance noise'!$F$5)*SQRT(('Distance noise'!$B$7/'Distance noise'!$B$9)*2*((2*B28/'Distance noise'!$B$6)+('Distance noise'!$B$13/'Distance noise'!$B$6*'Distance noise'!$B$8))*'Distance noise'!$F$5)/SQRT(2) -> 57.4 | F28: =('Distance noise'!$F$4*1000/4)/(2*'Distance noise'!$B$6)*2*'Distance noise'!$B$11/SQRT(2) -> 19.4 | G28: =SQRT((C28*C28)+(D28*D28)+(F28*F28))/5 -> 6.6 | H28: =SQRT((C28*C28)+(E28*E28)+(F28*F28))/5 -> 13.0 | J28: =B28 -> 460 | K28: =G28 -> 6.6 | L28: =H28 -> 13.0 | M28: =IF(('Distance noise'!$F$29-21)<$J28," ",IF(('Distance noise'!$F$26-20)>$J28," ",IF(('Distance noise'!$F$26-1)<$J28,0,1000))) -> 0 | N28: =IF(('Distance noise'!$B$13-20)>$J28," ",IF(('Distance noise'!$B$13-1)<$J28,0,1000)) -> 
A29: 24 | B29: =A29*20 -> 480 | C29: =('Distance noise'!$F$4*1000/4)/(2*B29/'Distance noise'!$F$10)/SQRT(2) -> 22.1 | D29: =('Distance noise'!$F$4*1000/4)/(('Distance noise'!$B$7/'Distance noise'!$B$9)*2*(B29/'Distance noise'!$B$6)*'Distance noise'!$F$5)*SQRT(('Distance noise'!$B$7/'Distance noise'!$B$9)*2*(2*B29/'Distance noise'!$B$6)*'Distance noise'!$F$5)/SQRT(2) -> 13.1 | E29: =('Distance noise'!$F$4*1000/4)/(('Distance noise'!$B$7/'Distance noise'!$B$9)*2*(B29/'Distance noise'!$B$6)*'Distance noise'!$F$5)*SQRT(('Distance noise'!$B$7/'Distance noise'!$B$9)*2*((2*B29/'Distance noise'!$B$6)+('Distance noise'!$B$13/'Distance noise'!$B$6*'Distance noise'!$B$8))*'Distance noise'!$F$5)/SQRT(2) -> 55.1 | F29: =('Distance noise'!$F$4*1000/4)/(2*'Distance noise'!$B$6)*2*'Distance noise'!$B$11/SQRT(2) -> 19.4 | G29: =SQRT((C29*C29)+(D29*D29)+(F29*F29))/5 -> 6.4 | H29: =SQRT((C29*C29)+(E29*E29)+(F29*F29))/5 -> 12.5 | J29: =B29 -> 480 | K29: =G29 -> 6.4 | L29: =H29 -> 12.5 | M29: =IF(('Distance noise'!$F$29-21)<$J29," ",IF(('Distance noise'!$F$26-20)>$J29," ",IF(('Distance noise'!$F$26-1)<$J29,0,1000))) -> 0 | N29: =IF(('Distance noise'!$B$13-20)>$J29," ",IF(('Distance noise'!$B$13-1)<$J29,0,1000)) -> 
A30: 25 | B30: =A30*20 -> 500 | C30: =('Distance noise'!$F$4*1000/4)/(2*B30/'Distance noise'!$F$10)/SQRT(2) -> 21.2 | D30: =('Distance noise'!$F$4*1000/4)/(('Distance noise'!$B$7/'Distance noise'!$B$9)*2*(B30/'Distance noise'!$B$6)*'Distance noise'!$F$5)*SQRT(('Distance noise'!$B$7/'Distance noise'!$B$9)*2*(2*B30/'Distance noise'!$B$6)*'Distance noise'!$F$5)/SQRT(2) -> 12.8 | E30: =('Distance noise'!$F$4*1000/4)/(('Distance noise'!$B$7/'Distance noise'!$B$9)*2*(B30/'Distance noise'!$B$6)*'Distance noise'!$F$5)*SQRT(('Distance noise'!$B$7/'Distance noise'!$B$9)*2*((2*B30/'Distance noise'!$B$6)+('Distance noise'!$B$13/'Distance noise'!$B$6*'Distance noise'!$B$8))*'Distance noise'!$F$5)/SQRT(2) -> 53.0 | F30: =('Distance noise'!$F$4*1000/4)/(2*'Distance noise'!$B$6)*2*'Distance noise'!$B$11/SQRT(2) -> 19.4 | G30: =SQRT((C30*C30)+(D30*D30)+(F30*F30))/5 -> 6.3 | H30: =SQRT((C30*C30)+(E30*E30)+(F30*F30))/5 -> 12.1 | J30: =B30 -> 500 | K30: =G30 -> 6.3 | L30: =H30 -> 12.1 | M30: =IF(('Distance noise'!$F$29-21)<$J30," ",IF(('Distance noise'!$F$26-20)>$J30," ",IF(('Distance noise'!$F$26-1)<$J30,0,1000))) -> 0 | N30: =IF(('Distance noise'!$B$13-20)>$J30," ",IF(('Distance noise'!$B$13-1)<$J30,0,1000)) -> 
A31: 26 | B31: =A31*20 -> 520 | C31: =('Distance noise'!$F$4*1000/4)/(2*B31/'Distance noise'!$F$10)/SQRT(2) -> 20.4 | D31: =('Distance noise'!$F$4*1000/4)/(('Distance noise'!$B$7/'Distance noise'!$B$9)*2*(B31/'Distance noise'!$B$6)*'Distance noise'!$F$5)*SQRT(('Distance noise'!$B$7/'Distance noise'!$B$9)*2*(2*B31/'Distance noise'!$B$6)*'Distance noise'!$F$5)/SQRT(2) -> 12.6 | E31: =('Distance noise'!$F$4*1000/4)/(('Distance noise'!$B$7/'Distance noise'!$B$9)*2*(B31/'Distance noise'!$B$6)*'Distance noise'!$F$5)*SQRT(('Distance noise'!$B$7/'Distance noise'!$B$9)*2*((2*B31/'Distance noise'!$B$6)+('Distance noise'!$B$13/'Distance noise'!$B$6*'Distance noise'!$B$8))*'Distance noise'!$F$5)/SQRT(2) -> 51.0 | F31: =('Distance noise'!$F$4*1000/4)/(2*'Distance noise'!$B$6)*2*'Distance noise'!$B$11/SQRT(2) -> 19.4 | G31: =SQRT((C31*C31)+(D31*D31)+(F31*F31))/5 -> 6.2 | H31: =SQRT((C31*C31)+(E31*E31)+(F31*F31))/5 -> 11.7 | J31: =B31 -> 520 | K31: =G31 -> 6.2 | L31: =H31 -> 11.7 | M31: =IF(('Distance noise'!$F$29-21)<$J31," ",IF(('Distance noise'!$F$26-20)>$J31," ",IF(('Distance noise'!$F$26-1)<$J31,0,1000))) -> 0 | N31: =IF(('Distance noise'!$B$13-20)>$J31," ",IF(('Distance noise'!$B$13-1)<$J31,0,1000)) -> 
A32: 27 | B32: =A32*20 -> 540 | C32: =('Distance noise'!$F$4*1000/4)/(2*B32/'Distance noise'!$F$10)/SQRT(2) -> 19.6 | D32: =('Distance noise'!$F$4*1000/4)/(('Distance noise'!$B$7/'Distance noise'!$B$9)*2*(B32/'Distance noise'!$B$6)*'Distance noise'!$F$5)*SQRT(('Distance noise'!$B$7/'Distance noise'!$B$9)*2*(2*B32/'Distance noise'!$B$6)*'Distance noise'!$F$5)/SQRT(2) -> 12.4 | E32: =('Distance noise'!$F$4*1000/4)/(('Distance noise'!$B$7/'Distance noise'!$B$9)*2*(B32/'Distance noise'!$B$6)*'Distance noise'!$F$5)*SQRT(('Distance noise'!$B$7/'Distance noise'!$B$9)*2*((2*B32/'Distance noise'!$B$6)+('Distance noise'!$B$13/'Distance noise'!$B$6*'Distance noise'!$B$8))*'Distance noise'!$F$5)/SQRT(2) -> 49.2 | F32: =('Distance noise'!$F$4*1000/4)/(2*'Distance noise'!$B$6)*2*'Distance noise'!$B$11/SQRT(2) -> 19.4 | G32: =SQRT((C32*C32)+(D32*D32)+(F32*F32))/5 -> 6.1 | H32: =SQRT((C32*C32)+(E32*E32)+(F32*F32))/5 -> 11.3 | J32: =B32 -> 540 | K32: =G32 -> 6.1 | L32: =H32 -> 11.3 | M32: =IF(('Distance noise'!$F$29-21)<$J32," ",IF(('Distance noise'!$F$26-20)>$J32," ",IF(('Distance noise'!$F$26-1)<$J32,0,1000))) -> 0 | N32: =IF(('Distance noise'!$B$13-20)>$J32," ",IF(('Distance noise'!$B$13-1)<$J32,0,1000)) -> 
A33: 28 | B33: =A33*20 -> 560 | C33: =('Distance noise'!$F$4*1000/4)/(2*B33/'Distance noise'!$F$10)/SQRT(2) -> 18.9 | D33: =('Distance noise'!$F$4*1000/4)/(('Distance noise'!$B$7/'Distance noise'!$B$9)*2*(B33/'Distance noise'!$B$6)*'Distance noise'!$F$5)*SQRT(('Distance noise'!$B$7/'Distance noise'!$B$9)*2*(2*B33/'Distance noise'!$B$6)*'Distance noise'!$F$5)/SQRT(2) -> 12.1 | E33: =('Distance noise'!$F$4*1000/4)/(('Distance noise'!$B$7/'Distance noise'!$B$9)*2*(B33/'Distance noise'!$B$6)*'Distance noise'!$F$5)*SQRT(('Distance noise'!$B$7/'Distance noise'!$B$9)*2*((2*B33/'Distance noise'!$B$6)+('Distance noise'!$B$13/'Distance noise'!$B$6*'Distance noise'!$B$8))*'Distance noise'!$F$5)/SQRT(2) -> 47.5 | F33: =('Distance noise'!$F$4*1000/4)/(2*'Distance noise'!$B$6)*2*'Distance noise'!$B$11/SQRT(2) -> 19.4 | G33: =SQRT((C33*C33)+(D33*D33)+(F33*F33))/5 -> 5.9 | H33: =SQRT((C33*C33)+(E33*E33)+(F33*F33))/5 -> 10.9 | J33: =B33 -> 560 | K33: =G33 -> 5.9 | L33: =H33 -> 10.9 | M33: =IF(('Distance noise'!$F$29-21)<$J33," ",IF(('Distance noise'!$F$26-20)>$J33," ",IF(('Distance noise'!$F$26-1)<$J33,0,1000))) -> 0 | N33: =IF(('Distance noise'!$B$13-20)>$J33," ",IF(('Distance noise'!$B$13-1)<$J33,0,1000)) -> 
A34: 29 | B34: =A34*20 -> 580 | C34: =('Distance noise'!$F$4*1000/4)/(2*B34/'Distance noise'!$F$10)/SQRT(2) -> 18.3 | D34: =('Distance noise'!$F$4*1000/4)/(('Distance noise'!$B$7/'Distance noise'!$B$9)*2*(B34/'Distance noise'!$B$6)*'Distance noise'!$F$5)*SQRT(('Distance noise'!$B$7/'Distance noise'!$B$9)*2*(2*B34/'Distance noise'!$B$6)*'Distance noise'!$F$5)/SQRT(2) -> 11.9 | E34: =('Distance noise'!$F$4*1000/4)/(('Distance noise'!$B$7/'Distance noise'!$B$9)*2*(B34/'Distance noise'!$B$6)*'Distance noise'!$F$5)*SQRT(('Distance noise'!$B$7/'Distance noise'!$B$9)*2*((2*B34/'Distance noise'!$B$6)+('Distance noise'!$B$13/'Distance noise'!$B$6*'Distance noise'!$B$8))*'Distance noise'!$F$5)/SQRT(2) -> 45.9 | F34: =('Distance noise'!$F$4*1000/4)/(2*'Distance noise'!$B$6)*2*'Distance noise'!$B$11/SQRT(2) -> 19.4 | G34: =SQRT((C34*C34)+(D34*D34)+(F34*F34))/5 -> 5.8 | H34: =SQRT((C34*C34)+(E34*E34)+(F34*F34))/5 -> 10.6 | J34: =B34 -> 580 | K34: =G34 -> 5.8 | L34: =H34 -> 10.6 | M34: =IF(('Distance noise'!$F$29-21)<$J34," ",IF(('Distance noise'!$F$26-20)>$J34," ",IF(('Distance noise'!$F$26-1)<$J34,0,1000))) -> 0 | N34: =IF(('Distance noise'!$B$13-20)>$J34," ",IF(('Distance noise'!$B$13-1)<$J34,0,1000)) -> 
A35: 30 | B35: =A35*20 -> 600 | C35: =('Distance noise'!$F$4*1000/4)/(2*B35/'Distance noise'!$F$10)/SQRT(2) -> 17.7 | D35: =('Distance noise'!$F$4*1000/4)/(('Distance noise'!$B$7/'Distance noise'!$B$9)*2*(B35/'Distance noise'!$B$6)*'Distance noise'!$F$5)*SQRT(('Distance noise'!$B$7/'Distance noise'!$B$9)*2*(2*B35/'Distance noise'!$B$6)*'Distance noise'!$F$5)/SQRT(2) -> 11.7 | E35: =('Distance noise'!$F$4*1000/4)/(('Distance noise'!$B$7/'Distance noise'!$B$9)*2*(B35/'Distance noise'!$B$6)*'Distance noise'!$F$5)*SQRT(('Distance noise'!$B$7/'Distance noise'!$B$9)*2*((2*B35/'Distance noise'!$B$6)+('Distance noise'!$B$13/'Distance noise'!$B$6*'Distance noise'!$B$8))*'Distance noise'!$F$5)/SQRT(2) -> 44.4 | F35: =('Distance noise'!$F$4*1000/4)/(2*'Distance noise'!$B$6)*2*'Distance noise'!$B$11/SQRT(2) -> 19.4 | G35: =SQRT((C35*C35)+(D35*D35)+(F35*F35))/5 -> 5.8 | H35: =SQRT((C35*C35)+(E35*E35)+(F35*F35))/5 -> 10.3 | J35: =B35 -> 600 | K35: =G35 -> 5.8 | L35: =H35 -> 10.3 | M35: =IF(('Distance noise'!$F$29-21)<$J35," ",IF(('Distance noise'!$F$26-20)>$J35," ",IF(('Distance noise'!$F$26-1)<$J35,0,1000))) -> 0 | N35: =IF(('Distance noise'!$B$13-20)>$J35," ",IF(('Distance noise'!$B$13-1)<$J35,0,1000)) -> 
A36: 31 | B36: =A36*20 -> 620 | C36: =('Distance noise'!$F$4*1000/4)/(2*B36/'Distance noise'!$F$10)/SQRT(2) -> 17.1 | D36: =('Distance noise'!$F$4*1000/4)/(('Distance noise'!$B$7/'Distance noise'!$B$9)*2*(B36/'Distance noise'!$B$6)*'Distance noise'!$F$5)*SQRT(('Distance noise'!$B$7/'Distance noise'!$B$9)*2*(2*B36/'Distance noise'!$B$6)*'Distance noise'!$F$5)/SQRT(2) -> 11.5 | E36: =('Distance noise'!$F$4*1000/4)/(('Distance noise'!$B$7/'Distance noise'!$B$9)*2*(B36/'Distance noise'!$B$6)*'Distance noise'!$F$5)*SQRT(('Distance noise'!$B$7/'Distance noise'!$B$9)*2*((2*B36/'Distance noise'!$B$6)+('Distance noise'!$B$13/'Distance noise'!$B$6*'Distance noise'!$B$8))*'Distance noise'!$F$5)/SQRT(2) -> 43.0 | F36: =('Distance noise'!$F$4*1000/4)/(2*'Distance noise'!$B$6)*2*'Distance noise'!$B$11/SQRT(2) -> 19.4 | G36: =SQRT((C36*C36)+(D36*D36)+(F36*F36))/5 -> 5.7 | H36: =SQRT((C36*C36)+(E36*E36)+(F36*F36))/5 -> 10.0 | J36: =B36 -> 620 | K36: =G36 -> 5.7 | L36: =H36 -> 10.0 | M36: =IF(('Distance noise'!$F$29-21)<$J36," ",IF(('Distance noise'!$F$26-20)>$J36," ",IF(('Distance noise'!$F$26-1)<$J36,0,1000))) -> 0 | N36: =IF(('Distance noise'!$B$13-20)>$J36," ",IF(('Distance noise'!$B$13-1)<$J36,0,1000)) -> 
A37: 32 | B37: =A37*20 -> 640 | C37: =('Distance noise'!$F$4*1000/4)/(2*B37/'Distance noise'!$F$10)/SQRT(2) -> 16.6 | D37: =('Distance noise'!$F$4*1000/4)/(('Distance noise'!$B$7/'Distance noise'!$B$9)*2*(B37/'Distance noise'!$B$6)*'Distance noise'!$F$5)*SQRT(('Distance noise'!$B$7/'Distance noise'!$B$9)*2*(2*B37/'Distance noise'!$B$6)*'Distance noise'!$F$5)/SQRT(2) -> 11.4 | E37: =('Distance noise'!$F$4*1000/4)/(('Distance noise'!$B$7/'Distance noise'!$B$9)*2*(B37/'Distance noise'!$B$6)*'Distance noise'!$F$5)*SQRT(('Distance noise'!$B$7/'Distance noise'!$B$9)*2*((2*B37/'Distance noise'!$B$6)+('Distance noise'!$B$13/'Distance noise'!$B$6*'Distance noise'!$B$8))*'Distance noise'!$F$5)/SQRT(2) -> 41.7 | F37: =('Distance noise'!$F$4*1000/4)/(2*'Distance noise'!$B$6)*2*'Distance noise'!$B$11/SQRT(2) -> 19.4 | G37: =SQRT((C37*C37)+(D37*D37)+(F37*F37))/5 -> 5.6 | H37: =SQRT((C37*C37)+(E37*E37)+(F37*F37))/5 -> 9.8 | J37: =B37 -> 640 | K37: =G37 -> 5.6 | L37: =H37 -> 9.8 | M37: =IF(('Distance noise'!$F$29-21)<$J37," ",IF(('Distance noise'!$F$26-20)>$J37," ",IF(('Distance noise'!$F$26-1)<$J37,0,1000))) -> 0 | N37: =IF(('Distance noise'!$B$13-20)>$J37," ",IF(('Distance noise'!$B$13-1)<$J37,0,1000)) -> 
A38: 34 | B38: =A38*20 -> 680 | C38: =('Distance noise'!$F$4*1000/4)/(2*B38/'Distance noise'!$F$10)/SQRT(2) -> 15.6 | D38: =('Distance noise'!$F$4*1000/4)/(('Distance noise'!$B$7/'Distance noise'!$B$9)*2*(B38/'Distance noise'!$B$6)*'Distance noise'!$F$5)*SQRT(('Distance noise'!$B$7/'Distance noise'!$B$9)*2*(2*B38/'Distance noise'!$B$6)*'Distance noise'!$F$5)/SQRT(2) -> 11.0 | E38: =('Distance noise'!$F$4*1000/4)/(('Distance noise'!$B$7/'Distance noise'!$B$9)*2*(B38/'Distance noise'!$B$6)*'Distance noise'!$F$5)*SQRT(('Distance noise'!$B$7/'Distance noise'!$B$9)*2*((2*B38/'Distance noise'!$B$6)+('Distance noise'!$B$13/'Distance noise'!$B$6*'Distance noise'!$B$8))*'Distance noise'!$F$5)/SQRT(2) -> 39.4 | F38: =('Distance noise'!$F$4*1000/4)/(2*'Distance noise'!$B$6)*2*'Distance noise'!$B$11/SQRT(2) -> 19.4 | G38: =SQRT((C38*C38)+(D38*D38)+(F38*F38))/5 -> 5.4 | H38: =SQRT((C38*C38)+(E38*E38)+(F38*F38))/5 -> 9.3 | J38: =B38 -> 680 | K38: =G38 -> 5.4 | L38: =H38 -> 9.3 | M38: =IF(('Distance noise'!$F$29-21)<$J38," ",IF(('Distance noise'!$F$26-20)>$J38," ",IF(('Distance noise'!$F$26-1)<$J38,0,1000))) -> 0 | N38: =IF(('Distance noise'!$B$13-20)>$J38," ",IF(('Distance noise'!$B$13-1)<$J38,0,1000)) -> 
A39: 35 | B39: =A39*20 -> 700 | C39: =('Distance noise'!$F$4*1000/4)/(2*B39/'Distance noise'!$F$10)/SQRT(2) -> 15.2 | D39: =('Distance noise'!$F$4*1000/4)/(('Distance noise'!$B$7/'Distance noise'!$B$9)*2*(B39/'Distance noise'!$B$6)*'Distance noise'!$F$5)*SQRT(('Distance noise'!$B$7/'Distance noise'!$B$9)*2*(2*B39/'Distance noise'!$B$6)*'Distance noise'!$F$5)/SQRT(2) -> 10.9 | E39: =('Distance noise'!$F$4*1000/4)/(('Distance noise'!$B$7/'Distance noise'!$B$9)*2*(B39/'Distance noise'!$B$6)*'Distance noise'!$F$5)*SQRT(('Distance noise'!$B$7/'Distance noise'!$B$9)*2*((2*B39/'Distance noise'!$B$6)+('Distance noise'!$B$13/'Distance noise'!$B$6*'Distance noise'!$B$8))*'Distance noise'!$F$5)/SQRT(2) -> 38.3 | F39: =('Distance noise'!$F$4*1000/4)/(2*'Distance noise'!$B$6)*2*'Distance noise'!$B$11/SQRT(2) -> 19.4 | G39: =SQRT((C39*C39)+(D39*D39)+(F39*F39))/5 -> 5.4 | H39: =SQRT((C39*C39)+(E39*E39)+(F39*F39))/5 -> 9.1 | J39: =B39 -> 700 | K39: =G39 -> 5.4 | L39: =H39 -> 9.1 | M39: =IF(('Distance noise'!$F$29-21)<$J39," ",IF(('Distance noise'!$F$26-20)>$J39," ",IF(('Distance noise'!$F$26-1)<$J39,0,1000))) -> 0 | N39: =IF(('Distance noise'!$B$13-20)>$J39," ",IF(('Distance noise'!$B$13-1)<$J39,0,1000)) -> 
A40: 36 | B40: =A40*20 -> 720 | C40: =('Distance noise'!$F$4*1000/4)/(2*B40/'Distance noise'!$F$10)/SQRT(2) -> 14.7 | D40: =('Distance noise'!$F$4*1000/4)/(('Distance noise'!$B$7/'Distance noise'!$B$9)*2*(B40/'Distance noise'!$B$6)*'Distance noise'!$F$5)*SQRT(('Distance noise'!$B$7/'Distance noise'!$B$9)*2*(2*B40/'Distance noise'!$B$6)*'Distance noise'!$F$5)/SQRT(2) -> 10.7 | E40: =('Distance noise'!$F$4*1000/4)/(('Distance noise'!$B$7/'Distance noise'!$B$9)*2*(B40/'Distance noise'!$B$6)*'Distance noise'!$F$5)*SQRT(('Distance noise'!$B$7/'Distance noise'!$B$9)*2*((2*B40/'Distance noise'!$B$6)+('Distance noise'!$B$13/'Distance noise'!$B$6*'Distance noise'!$B$8))*'Distance noise'!$F$5)/SQRT(2) -> 37.3 | F40: =('Distance noise'!$F$4*1000/4)/(2*'Distance noise'!$B$6)*2*'Distance noise'!$B$11/SQRT(2) -> 19.4 | G40: =SQRT((C40*C40)+(D40*D40)+(F40*F40))/5 -> 5.3 | H40: =SQRT((C40*C40)+(E40*E40)+(F40*F40))/5 -> 8.9 | J40: =B40 -> 720 | K40: =G40 -> 5.3 | L40: =H40 -> 8.9 | M40: =IF(('Distance noise'!$F$29-21)<$J40," ",IF(('Distance noise'!$F$26-20)>$J40," ",IF(('Distance noise'!$F$26-1)<$J40,0,1000))) -> 0 | N40: =IF(('Distance noise'!$B$13-20)>$J40," ",IF(('Distance noise'!$B$13-1)<$J40,0,1000)) -> 
A41: 37 | B41: =A41*20 -> 740 | C41: =('Distance noise'!$F$4*1000/4)/(2*B41/'Distance noise'!$F$10)/SQRT(2) -> 14.3 | D41: =('Distance noise'!$F$4*1000/4)/(('Distance noise'!$B$7/'Distance noise'!$B$9)*2*(B41/'Distance noise'!$B$6)*'Distance noise'!$F$5)*SQRT(('Distance noise'!$B$7/'Distance noise'!$B$9)*2*(2*B41/'Distance noise'!$B$6)*'Distance noise'!$F$5)/SQRT(2) -> 10.6 | E41: =('Distance noise'!$F$4*1000/4)/(('Distance noise'!$B$7/'Distance noise'!$B$9)*2*(B41/'Distance noise'!$B$6)*'Distance noise'!$F$5)*SQRT(('Distance noise'!$B$7/'Distance noise'!$B$9)*2*((2*B41/'Distance noise'!$B$6)+('Distance noise'!$B$13/'Distance noise'!$B$6*'Distance noise'!$B$8))*'Distance noise'!$F$5)/SQRT(2) -> 36.3 | F41: =('Distance noise'!$F$4*1000/4)/(2*'Distance noise'!$B$6)*2*'Distance noise'!$B$11/SQRT(2) -> 19.4 | G41: =SQRT((C41*C41)+(D41*D41)+(F41*F41))/5 -> 5.3 | H41: =SQRT((C41*C41)+(E41*E41)+(F41*F41))/5 -> 8.7 | J41: =B41 -> 740 | K41: =G41 -> 5.3 | L41: =H41 -> 8.7 | M41: =IF(('Distance noise'!$F$29-21)<$J41," ",IF(('Distance noise'!$F$26-20)>$J41," ",IF(('Distance noise'!$F$26-1)<$J41,0,1000))) -> 0 | N41: =IF(('Distance noise'!$B$13-20)>$J41," ",IF(('Distance noise'!$B$13-1)<$J41,0,1000)) -> 
A42: 38 | B42: =A42*20 -> 760 | C42: =('Distance noise'!$F$4*1000/4)/(2*B42/'Distance noise'!$F$10)/SQRT(2) -> 14.0 | D42: =('Distance noise'!$F$4*1000/4)/(('Distance noise'!$B$7/'Distance noise'!$B$9)*2*(B42/'Distance noise'!$B$6)*'Distance noise'!$F$5)*SQRT(('Distance noise'!$B$7/'Distance noise'!$B$9)*2*(2*B42/'Distance noise'!$B$6)*'Distance noise'!$F$5)/SQRT(2) -> 10.4 | E42: =('Distance noise'!$F$4*1000/4)/(('Distance noise'!$B$7/'Distance noise'!$B$9)*2*(B42/'Distance noise'!$B$6)*'Distance noise'!$F$5)*SQRT(('Distance noise'!$B$7/'Distance noise'!$B$9)*2*((2*B42/'Distance noise'!$B$6)+('Distance noise'!$B$13/'Distance noise'!$B$6*'Distance noise'!$B$8))*'Distance noise'!$F$5)/SQRT(2) -> 35.4 | F42: =('Distance noise'!$F$4*1000/4)/(2*'Distance noise'!$B$6)*2*'Distance noise'!$B$11/SQRT(2) -> 19.4 | G42: =SQRT((C42*C42)+(D42*D42)+(F42*F42))/5 -> 5.2 | H42: =SQRT((C42*C42)+(E42*E42)+(F42*F42))/5 -> 8.5 | J42: =B42 -> 760 | K42: =G42 -> 5.2 | L42: =H42 -> 8.5 | M42: =IF(('Distance noise'!$F$29-21)<$J42," ",IF(('Distance noise'!$F$26-20)>$J42," ",IF(('Distance noise'!$F$26-1)<$J42,0,1000))) -> 0 | N42: =IF(('Distance noise'!$B$13-20)>$J42," ",IF(('Distance noise'!$B$13-1)<$J42,0,1000)) -> 
A43: 39 | B43: =A43*20 -> 780 | C43: =('Distance noise'!$F$4*1000/4)/(2*B43/'Distance noise'!$F$10)/SQRT(2) -> 13.6 | D43: =('Distance noise'!$F$4*1000/4)/(('Distance noise'!$B$7/'Distance noise'!$B$9)*2*(B43/'Distance noise'!$B$6)*'Distance noise'!$F$5)*SQRT(('Distance noise'!$B$7/'Distance noise'!$B$9)*2*(2*B43/'Distance noise'!$B$6)*'Distance noise'!$F$5)/SQRT(2) -> 10.3 | E43: =('Distance noise'!$F$4*1000/4)/(('Distance noise'!$B$7/'Distance noise'!$B$9)*2*(B43/'Distance noise'!$B$6)*'Distance noise'!$F$5)*SQRT(('Distance noise'!$B$7/'Distance noise'!$B$9)*2*((2*B43/'Distance noise'!$B$6)+('Distance noise'!$B$13/'Distance noise'!$B$6*'Distance noise'!$B$8))*'Distance noise'!$F$5)/SQRT(2) -> 34.5 | F43: =('Distance noise'!$F$4*1000/4)/(2*'Distance noise'!$B$6)*2*'Distance noise'!$B$11/SQRT(2) -> 19.4 | G43: =SQRT((C43*C43)+(D43*D43)+(F43*F43))/5 -> 5.2 | H43: =SQRT((C43*C43)+(E43*E43)+(F43*F43))/5 -> 8.4 | J43: =B43 -> 780 | K43: =G43 -> 5.2 | L43: =H43 -> 8.4 | M43: =IF(('Distance noise'!$F$29-21)<$J43," ",IF(('Distance noise'!$F$26-20)>$J43," ",IF(('Distance noise'!$F$26-1)<$J43,0,1000))) -> 0 | N43: =IF(('Distance noise'!$B$13-20)>$J43," ",IF(('Distance noise'!$B$13-1)<$J43,0,1000)) -> 
A44: 40 | B44: =A44*20 -> 800 | C44: =('Distance noise'!$F$4*1000/4)/(2*B44/'Distance noise'!$F$10)/SQRT(2) -> 13.3 | D44: =('Distance noise'!$F$4*1000/4)/(('Distance noise'!$B$7/'Distance noise'!$B$9)*2*(B44/'Distance noise'!$B$6)*'Distance noise'!$F$5)*SQRT(('Distance noise'!$B$7/'Distance noise'!$B$9)*2*(2*B44/'Distance noise'!$B$6)*'Distance noise'!$F$5)/SQRT(2) -> 10.2 | E44: =('Distance noise'!$F$4*1000/4)/(('Distance noise'!$B$7/'Distance noise'!$B$9)*2*(B44/'Distance noise'!$B$6)*'Distance noise'!$F$5)*SQRT(('Distance noise'!$B$7/'Distance noise'!$B$9)*2*((2*B44/'Distance noise'!$B$6)+('Distance noise'!$B$13/'Distance noise'!$B$6*'Distance noise'!$B$8))*'Distance noise'!$F$5)/SQRT(2) -> 33.7 | F44: =('Distance noise'!$F$4*1000/4)/(2*'Distance noise'!$B$6)*2*'Distance noise'!$B$11/SQRT(2) -> 19.4 | G44: =SQRT((C44*C44)+(D44*D44)+(F44*F44))/5 -> 5.1 | H44: =SQRT((C44*C44)+(E44*E44)+(F44*F44))/5 -> 8.2 | J44: =B44 -> 800 | K44: =G44 -> 5.1 | L44: =H44 -> 8.2 | M44: =IF(('Distance noise'!$F$29-21)<$J44," ",IF(('Distance noise'!$F$26-20)>$J44," ",IF(('Distance noise'!$F$26-1)<$J44,0,1000))) -> 0 | N44: =IF(('Distance noise'!$B$13-20)>$J44," ",IF(('Distance noise'!$B$13-1)<$J44,0,1000)) -> 
A45: 41 | B45: =A45*20 -> 820 | C45: =('Distance noise'!$F$4*1000/4)/(2*B45/'Distance noise'!$F$10)/SQRT(2) -> 12.9 | D45: =('Distance noise'!$F$4*1000/4)/(('Distance noise'!$B$7/'Distance noise'!$B$9)*2*(B45/'Distance noise'!$B$6)*'Distance noise'!$F$5)*SQRT(('Distance noise'!$B$7/'Distance noise'!$B$9)*2*(2*B45/'Distance noise'!$B$6)*'Distance noise'!$F$5)/SQRT(2) -> 10.0 | E45: =('Distance noise'!$F$4*1000/4)/(('Distance noise'!$B$7/'Distance noise'!$B$9)*2*(B45/'Distance noise'!$B$6)*'Distance noise'!$F$5)*SQRT(('Distance noise'!$B$7/'Distance noise'!$B$9)*2*((2*B45/'Distance noise'!$B$6)+('Distance noise'!$B$13/'Distance noise'!$B$6*'Distance noise'!$B$8))*'Distance noise'!$F$5)/SQRT(2) -> 32.9 | F45: =('Distance noise'!$F$4*1000/4)/(2*'Distance noise'!$B$6)*2*'Distance noise'!$B$11/SQRT(2) -> 19.4 | G45: =SQRT((C45*C45)+(D45*D45)+(F45*F45))/5 -> 5.1 | H45: =SQRT((C45*C45)+(E45*E45)+(F45*F45))/5 -> 8.1 | J45: =B45 -> 820 | K45: =G45 -> 5.1 | L45: =H45 -> 8.1 | M45: =IF(('Distance noise'!$F$29-21)<$J45," ",IF(('Distance noise'!$F$26-20)>$J45," ",IF(('Distance noise'!$F$26-1)<$J45,0,1000))) -> 0 | N45: =IF(('Distance noise'!$B$13-20)>$J45," ",IF(('Distance noise'!$B$13-1)<$J45,0,1000)) -> 
A46: 42 | B46: =A46*20 -> 840 | C46: =('Distance noise'!$F$4*1000/4)/(2*B46/'Distance noise'!$F$10)/SQRT(2) -> 12.6 | D46: =('Distance noise'!$F$4*1000/4)/(('Distance noise'!$B$7/'Distance noise'!$B$9)*2*(B46/'Distance noise'!$B$6)*'Distance noise'!$F$5)*SQRT(('Distance noise'!$B$7/'Distance noise'!$B$9)*2*(2*B46/'Distance noise'!$B$6)*'Distance noise'!$F$5)/SQRT(2) -> 9.9 | E46: =('Distance noise'!$F$4*1000/4)/(('Distance noise'!$B$7/'Distance noise'!$B$9)*2*(B46/'Distance noise'!$B$6)*'Distance noise'!$F$5)*SQRT(('Distance noise'!$B$7/'Distance noise'!$B$9)*2*((2*B46/'Distance noise'!$B$6)+('Distance noise'!$B$13/'Distance noise'!$B$6*'Distance noise'!$B$8))*'Distance noise'!$F$5)/SQRT(2) -> 32.2 | F46: =('Distance noise'!$F$4*1000/4)/(2*'Distance noise'!$B$6)*2*'Distance noise'!$B$11/SQRT(2) -> 19.4 | G46: =SQRT((C46*C46)+(D46*D46)+(F46*F46))/5 -> 5.0 | H46: =SQRT((C46*C46)+(E46*E46)+(F46*F46))/5 -> 7.9 | J46: =B46 -> 840 | K46: =G46 -> 5.0 | L46: =H46 -> 7.9 | M46: =IF(('Distance noise'!$F$29-21)<$J46," ",IF(('Distance noise'!$F$26-20)>$J46," ",IF(('Distance noise'!$F$26-1)<$J46,0,1000))) -> 0 | N46: =IF(('Distance noise'!$B$13-20)>$J46," ",IF(('Distance noise'!$B$13-1)<$J46,0,1000)) -> 
A47: 43 | B47: =A47*20 -> 860 | C47: =('Distance noise'!$F$4*1000/4)/(2*B47/'Distance noise'!$F$10)/SQRT(2) -> 12.3 | D47: =('Distance noise'!$F$4*1000/4)/(('Distance noise'!$B$7/'Distance noise'!$B$9)*2*(B47/'Distance noise'!$B$6)*'Distance noise'!$F$5)*SQRT(('Distance noise'!$B$7/'Distance noise'!$B$9)*2*(2*B47/'Distance noise'!$B$6)*'Distance noise'!$F$5)/SQRT(2) -> 9.8 | E47: =('Distance noise'!$F$4*1000/4)/(('Distance noise'!$B$7/'Distance noise'!$B$9)*2*(B47/'Distance noise'!$B$6)*'Distance noise'!$F$5)*SQRT(('Distance noise'!$B$7/'Distance noise'!$B$9)*2*((2*B47/'Distance noise'!$B$6)+('Distance noise'!$B$13/'Distance noise'!$B$6*'Distance noise'!$B$8))*'Distance noise'!$F$5)/SQRT(2) -> 31.4 | F47: =('Distance noise'!$F$4*1000/4)/(2*'Distance noise'!$B$6)*2*'Distance noise'!$B$11/SQRT(2) -> 19.4 | G47: =SQRT((C47*C47)+(D47*D47)+(F47*F47))/5 -> 5.0 | H47: =SQRT((C47*C47)+(E47*E47)+(F47*F47))/5 -> 7.8 | J47: =B47 -> 860 | K47: =G47 -> 5.0 | L47: =H47 -> 7.8 | M47: =IF(('Distance noise'!$F$29-21)<$J47," ",IF(('Distance noise'!$F$26-20)>$J47," ",IF(('Distance noise'!$F$26-1)<$J47,0,1000))) -> 0 | N47: =IF(('Distance noise'!$B$13-20)>$J47," ",IF(('Distance noise'!$B$13-1)<$J47,0,1000)) -> 
A48: 44 | B48: =A48*20 -> 880 | C48: =('Distance noise'!$F$4*1000/4)/(2*B48/'Distance noise'!$F$10)/SQRT(2) -> 12.1 | D48: =('Distance noise'!$F$4*1000/4)/(('Distance noise'!$B$7/'Distance noise'!$B$9)*2*(B48/'Distance noise'!$B$6)*'Distance noise'!$F$5)*SQRT(('Distance noise'!$B$7/'Distance noise'!$B$9)*2*(2*B48/'Distance noise'!$B$6)*'Distance noise'!$F$5)/SQRT(2) -> 9.7 | E48: =('Distance noise'!$F$4*1000/4)/(('Distance noise'!$B$7/'Distance noise'!$B$9)*2*(B48/'Distance noise'!$B$6)*'Distance noise'!$F$5)*SQRT(('Distance noise'!$B$7/'Distance noise'!$B$9)*2*((2*B48/'Distance noise'!$B$6)+('Distance noise'!$B$13/'Distance noise'!$B$6*'Distance noise'!$B$8))*'Distance noise'!$F$5)/SQRT(2) -> 30.8 | F48: =('Distance noise'!$F$4*1000/4)/(2*'Distance noise'!$B$6)*2*'Distance noise'!$B$11/SQRT(2) -> 19.4 | G48: =SQRT((C48*C48)+(D48*D48)+(F48*F48))/5 -> 5.0 | H48: =SQRT((C48*C48)+(E48*E48)+(F48*F48))/5 -> 7.7 | J48: =B48 -> 880 | K48: =G48 -> 5.0 | L48: =H48 -> 7.7 | M48: =IF(('Distance noise'!$F$29-21)<$J48," ",IF(('Distance noise'!$F$26-20)>$J48," ",IF(('Distance noise'!$F$26-1)<$J48,0,1000))) -> 0 | N48: =IF(('Distance noise'!$B$13-20)>$J48," ",IF(('Distance noise'!$B$13-1)<$J48,0,1000)) -> 
A49: 45 | B49: =A49*20 -> 900 | C49: =('Distance noise'!$F$4*1000/4)/(2*B49/'Distance noise'!$F$10)/SQRT(2) -> 11.8 | D49: =('Distance noise'!$F$4*1000/4)/(('Distance noise'!$B$7/'Distance noise'!$B$9)*2*(B49/'Distance noise'!$B$6)*'Distance noise'!$F$5)*SQRT(('Distance noise'!$B$7/'Distance noise'!$B$9)*2*(2*B49/'Distance noise'!$B$6)*'Distance noise'!$F$5)/SQRT(2) -> 9.6 | E49: =('Distance noise'!$F$4*1000/4)/(('Distance noise'!$B$7/'Distance noise'!$B$9)*2*(B49/'Distance noise'!$B$6)*'Distance noise'!$F$5)*SQRT(('Distance noise'!$B$7/'Distance noise'!$B$9)*2*((2*B49/'Distance noise'!$B$6)+('Distance noise'!$B$13/'Distance noise'!$B$6*'Distance noise'!$B$8))*'Distance noise'!$F$5)/SQRT(2) -> 30.1 | F49: =('Distance noise'!$F$4*1000/4)/(2*'Distance noise'!$B$6)*2*'Distance noise'!$B$11/SQRT(2) -> 19.4 | G49: =SQRT((C49*C49)+(D49*D49)+(F49*F49))/5 -> 4.9 | H49: =SQRT((C49*C49)+(E49*E49)+(F49*F49))/5 -> 7.5 | J49: =B49 -> 900 | K49: =G49 -> 4.9 | L49: =H49 -> 7.5 | M49: =IF(('Distance noise'!$F$29-21)<$J49," ",IF(('Distance noise'!$F$26-20)>$J49," ",IF(('Distance noise'!$F$26-1)<$J49,0,1000))) -> 0 | N49: =IF(('Distance noise'!$B$13-20)>$J49," ",IF(('Distance noise'!$B$13-1)<$J49,0,1000)) -> 
A50: 46 | B50: =A50*20 -> 920 | C50: =('Distance noise'!$F$4*1000/4)/(2*B50/'Distance noise'!$F$10)/SQRT(2) -> 11.5 | D50: =('Distance noise'!$F$4*1000/4)/(('Distance noise'!$B$7/'Distance noise'!$B$9)*2*(B50/'Distance noise'!$B$6)*'Distance noise'!$F$5)*SQRT(('Distance noise'!$B$7/'Distance noise'!$B$9)*2*(2*B50/'Distance noise'!$B$6)*'Distance noise'!$F$5)/SQRT(2) -> 9.5 | E50: =('Distance noise'!$F$4*1000/4)/(('Distance noise'!$B$7/'Distance noise'!$B$9)*2*(B50/'Distance noise'!$B$6)*'Distance noise'!$F$5)*SQRT(('Distance noise'!$B$7/'Distance noise'!$B$9)*2*((2*B50/'Distance noise'!$B$6)+('Distance noise'!$B$13/'Distance noise'!$B$6*'Distance noise'!$B$8))*'Distance noise'!$F$5)/SQRT(2) -> 29.5 | F50: =('Distance noise'!$F$4*1000/4)/(2*'Distance noise'!$B$6)*2*'Distance noise'!$B$11/SQRT(2) -> 19.4 | G50: =SQRT((C50*C50)+(D50*D50)+(F50*F50))/5 -> 4.9 | H50: =SQRT((C50*C50)+(E50*E50)+(F50*F50))/5 -> 7.4 | J50: =B50 -> 920 | K50: =G50 -> 4.9 | L50: =H50 -> 7.4 | M50: =IF(('Distance noise'!$F$29-21)<$J50," ",IF(('Distance noise'!$F$26-20)>$J50," ",IF(('Distance noise'!$F$26-1)<$J50,0,1000))) -> 0 | N50: =IF(('Distance noise'!$B$13-20)>$J50," ",IF(('Distance noise'!$B$13-1)<$J50,0,1000)) -> 
A51: 47 | B51: =A51*20 -> 940 | C51: =('Distance noise'!$F$4*1000/4)/(2*B51/'Distance noise'!$F$10)/SQRT(2) -> 11.3 | D51: =('Distance noise'!$F$4*1000/4)/(('Distance noise'!$B$7/'Distance noise'!$B$9)*2*(B51/'Distance noise'!$B$6)*'Distance noise'!$F$5)*SQRT(('Distance noise'!$B$7/'Distance noise'!$B$9)*2*(2*B51/'Distance noise'!$B$6)*'Distance noise'!$F$5)/SQRT(2) -> 9.4 | E51: =('Distance noise'!$F$4*1000/4)/(('Distance noise'!$B$7/'Distance noise'!$B$9)*2*(B51/'Distance noise'!$B$6)*'Distance noise'!$F$5)*SQRT(('Distance noise'!$B$7/'Distance noise'!$B$9)*2*((2*B51/'Distance noise'!$B$6)+('Distance noise'!$B$13/'Distance noise'!$B$6*'Distance noise'!$B$8))*'Distance noise'!$F$5)/SQRT(2) -> 28.9 | F51: =('Distance noise'!$F$4*1000/4)/(2*'Distance noise'!$B$6)*2*'Distance noise'!$B$11/SQRT(2) -> 19.4 | G51: =SQRT((C51*C51)+(D51*D51)+(F51*F51))/5 -> 4.9 | H51: =SQRT((C51*C51)+(E51*E51)+(F51*F51))/5 -> 7.3 | J51: =B51 -> 940 | K51: =G51 -> 4.9 | L51: =H51 -> 7.3 | M51: =IF(('Distance noise'!$F$29-21)<$J51," ",IF(('Distance noise'!$F$26-20)>$J51," ",IF(('Distance noise'!$F$26-1)<$J51,0,1000))) -> 0 | N51: =IF(('Distance noise'!$B$13-20)>$J51," ",IF(('Distance noise'!$B$13-1)<$J51,0,1000)) -> 
A52: 48 | B52: =A52*20 -> 960 | C52: =('Distance noise'!$F$4*1000/4)/(2*B52/'Distance noise'!$F$10)/SQRT(2) -> 11.0 | D52: =('Distance noise'!$F$4*1000/4)/(('Distance noise'!$B$7/'Distance noise'!$B$9)*2*(B52/'Distance noise'!$B$6)*'Distance noise'!$F$5)*SQRT(('Distance noise'!$B$7/'Distance noise'!$B$9)*2*(2*B52/'Distance noise'!$B$6)*'Distance noise'!$F$5)/SQRT(2) -> 9.3 | E52: =('Distance noise'!$F$4*1000/4)/(('Distance noise'!$B$7/'Distance noise'!$B$9)*2*(B52/'Distance noise'!$B$6)*'Distance noise'!$F$5)*SQRT(('Distance noise'!$B$7/'Distance noise'!$B$9)*2*((2*B52/'Distance noise'!$B$6)+('Distance noise'!$B$13/'Distance noise'!$B$6*'Distance noise'!$B$8))*'Distance noise'!$F$5)/SQRT(2) -> 28.3 | F52: =('Distance noise'!$F$4*1000/4)/(2*'Distance noise'!$B$6)*2*'Distance noise'!$B$11/SQRT(2) -> 19.4 | G52: =SQRT((C52*C52)+(D52*D52)+(F52*F52))/5 -> 4.8 | H52: =SQRT((C52*C52)+(E52*E52)+(F52*F52))/5 -> 7.2 | J52: =B52 -> 960 | K52: =G52 -> 4.8 | L52: =H52 -> 7.2 | M52: =IF(('Distance noise'!$F$29-21)<$J52," ",IF(('Distance noise'!$F$26-20)>$J52," ",IF(('Distance noise'!$F$26-1)<$J52,0,1000))) -> 0 | N52: =IF(('Distance noise'!$B$13-20)>$J52," ",IF(('Distance noise'!$B$13-1)<$J52,0,1000)) -> 
A53: 49 | B53: =A53*20 -> 980 | C53: =('Distance noise'!$F$4*1000/4)/(2*B53/'Distance noise'!$F$10)/SQRT(2) -> 10.8 | D53: =('Distance noise'!$F$4*1000/4)/(('Distance noise'!$B$7/'Distance noise'!$B$9)*2*(B53/'Distance noise'!$B$6)*'Distance noise'!$F$5)*SQRT(('Distance noise'!$B$7/'Distance noise'!$B$9)*2*(2*B53/'Distance noise'!$B$6)*'Distance noise'!$F$5)/SQRT(2) -> 9.2 | E53: =('Distance noise'!$F$4*1000/4)/(('Distance noise'!$B$7/'Distance noise'!$B$9)*2*(B53/'Distance noise'!$B$6)*'Distance noise'!$F$5)*SQRT(('Distance noise'!$B$7/'Distance noise'!$B$9)*2*((2*B53/'Distance noise'!$B$6)+('Distance noise'!$B$13/'Distance noise'!$B$6*'Distance noise'!$B$8))*'Distance noise'!$F$5)/SQRT(2) -> 27.8 | F53: =('Distance noise'!$F$4*1000/4)/(2*'Distance noise'!$B$6)*2*'Distance noise'!$B$11/SQRT(2) -> 19.4 | G53: =SQRT((C53*C53)+(D53*D53)+(F53*F53))/5 -> 4.8 | H53: =SQRT((C53*C53)+(E53*E53)+(F53*F53))/5 -> 7.1 | J53: =B53 -> 980 | K53: =G53 -> 4.8 | L53: =H53 -> 7.1 | M53: =IF(('Distance noise'!$F$29-21)<$J53," ",IF(('Distance noise'!$F$26-20)>$J53," ",IF(('Distance noise'!$F$26-1)<$J53,0,1000))) -> 0 | N53: =IF(('Distance noise'!$B$13-20)>$J53," ",IF(('Distance noise'!$B$13-1)<$J53,0,1000)) -> 
A54: 50 | B54: =A54*20 -> 1,000 | C54: =('Distance noise'!$F$4*1000/4)/(2*B54/'Distance noise'!$F$10)/SQRT(2) -> 10.6 | D54: =('Distance noise'!$F$4*1000/4)/(('Distance noise'!$B$7/'Distance noise'!$B$9)*2*(B54/'Distance noise'!$B$6)*'Distance noise'!$F$5)*SQRT(('Distance noise'!$B$7/'Distance noise'!$B$9)*2*(2*B54/'Distance noise'!$B$6)*'Distance noise'!$F$5)/SQRT(2) -> 9.1 | E54: =('Distance noise'!$F$4*1000/4)/(('Distance noise'!$B$7/'Distance noise'!$B$9)*2*(B54/'Distance noise'!$B$6)*'Distance noise'!$F$5)*SQRT(('Distance noise'!$B$7/'Distance noise'!$B$9)*2*((2*B54/'Distance noise'!$B$6)+('Distance noise'!$B$13/'Distance noise'!$B$6*'Distance noise'!$B$8))*'Distance noise'!$F$5)/SQRT(2) -> 27.3 | F54: =('Distance noise'!$F$4*1000/4)/(2*'Distance noise'!$B$6)*2*'Distance noise'!$B$11/SQRT(2) -> 19.4 | G54: =SQRT((C54*C54)+(D54*D54)+(F54*F54))/5 -> 4.8 | H54: =SQRT((C54*C54)+(E54*E54)+(F54*F54))/5 -> 7.0 | J54: =B54 -> 1,000 | K54: =G54 -> 4.8 | L54: =H54 -> 7.0 | M54: =IF(('Distance noise'!$F$29-21)<$J54," ",IF(('Distance noise'!$F$26-20)>$J54," ",IF(('Distance noise'!$F$26-1)<$J54,0,1000))) -> 0 | N54: =IF(('Distance noise'!$B$13-20)>$J54," ",IF(('Distance noise'!$B$13-1)<$J54,0,1000)) -> 
A55: 51 | B55: =A55*20 -> 1,020 | C55: =('Distance noise'!$F$4*1000/4)/(2*B55/'Distance noise'!$F$10)/SQRT(2) -> 10.4 | D55: =('Distance noise'!$F$4*1000/4)/(('Distance noise'!$B$7/'Distance noise'!$B$9)*2*(B55/'Distance noise'!$B$6)*'Distance noise'!$F$5)*SQRT(('Distance noise'!$B$7/'Distance noise'!$B$9)*2*(2*B55/'Distance noise'!$B$6)*'Distance noise'!$F$5)/SQRT(2) -> 9.0 | E55: =('Distance noise'!$F$4*1000/4)/(('Distance noise'!$B$7/'Distance noise'!$B$9)*2*(B55/'Distance noise'!$B$6)*'Distance noise'!$F$5)*SQRT(('Distance noise'!$B$7/'Distance noise'!$B$9)*2*((2*B55/'Distance noise'!$B$6)+('Distance noise'!$B$13/'Distance noise'!$B$6*'Distance noise'!$B$8))*'Distance noise'!$F$5)/SQRT(2) -> 26.7 | F55: =('Distance noise'!$F$4*1000/4)/(2*'Distance noise'!$B$6)*2*'Distance noise'!$B$11/SQRT(2) -> 19.4 | G55: =SQRT((C55*C55)+(D55*D55)+(F55*F55))/5 -> 4.8 | H55: =SQRT((C55*C55)+(E55*E55)+(F55*F55))/5 -> 6.9 | J55: =B55 -> 1,020 | K55: =G55 -> 4.8 | L55: =H55 -> 6.9 | M55: =IF(('Distance noise'!$F$29-21)<$J55," ",IF(('Distance noise'!$F$26-20)>$J55," ",IF(('Distance noise'!$F$26-1)<$J55,0,1000))) -> 0 | N55: =IF(('Distance noise'!$B$13-20)>$J55," ",IF(('Distance noise'!$B$13-1)<$J55,0,1000)) -> 
A56: 52 | B56: =A56*20 -> 1,040 | C56: =('Distance noise'!$F$4*1000/4)/(2*B56/'Distance noise'!$F$10)/SQRT(2) -> 10.2 | D56: =('Distance noise'!$F$4*1000/4)/(('Distance noise'!$B$7/'Distance noise'!$B$9)*2*(B56/'Distance noise'!$B$6)*'Distance noise'!$F$5)*SQRT(('Distance noise'!$B$7/'Distance noise'!$B$9)*2*(2*B56/'Distance noise'!$B$6)*'Distance noise'!$F$5)/SQRT(2) -> 8.9 | E56: =('Distance noise'!$F$4*1000/4)/(('Distance noise'!$B$7/'Distance noise'!$B$9)*2*(B56/'Distance noise'!$B$6)*'Distance noise'!$F$5)*SQRT(('Distance noise'!$B$7/'Distance noise'!$B$9)*2*((2*B56/'Distance noise'!$B$6)+('Distance noise'!$B$13/'Distance noise'!$B$6*'Distance noise'!$B$8))*'Distance noise'!$F$5)/SQRT(2) -> 26.3 | F56: =('Distance noise'!$F$4*1000/4)/(2*'Distance noise'!$B$6)*2*'Distance noise'!$B$11/SQRT(2) -> 19.4 | G56: =SQRT((C56*C56)+(D56*D56)+(F56*F56))/5 -> 4.7 | H56: =SQRT((C56*C56)+(E56*E56)+(F56*F56))/5 -> 6.8 | J56: =B56 -> 1,040 | K56: =G56 -> 4.7 | L56: =H56 -> 6.8 | M56: =IF(('Distance noise'!$F$29-21)<$J56," ",IF(('Distance noise'!$F$26-20)>$J56," ",IF(('Distance noise'!$F$26-1)<$J56,0,1000))) -> 0 | N56: =IF(('Distance noise'!$B$13-20)>$J56," ",IF(('Distance noise'!$B$13-1)<$J56,0,1000)) -> 
A57: 53 | B57: =A57*20 -> 1,060 | C57: =('Distance noise'!$F$4*1000/4)/(2*B57/'Distance noise'!$F$10)/SQRT(2) -> 10.0 | D57: =('Distance noise'!$F$4*1000/4)/(('Distance noise'!$B$7/'Distance noise'!$B$9)*2*(B57/'Distance noise'!$B$6)*'Distance noise'!$F$5)*SQRT(('Distance noise'!$B$7/'Distance noise'!$B$9)*2*(2*B57/'Distance noise'!$B$6)*'Distance noise'!$F$5)/SQRT(2) -> 8.8 | E57: =('Distance noise'!$F$4*1000/4)/(('Distance noise'!$B$7/'Distance noise'!$B$9)*2*(B57/'Distance noise'!$B$6)*'Distance noise'!$F$5)*SQRT(('Distance noise'!$B$7/'Distance noise'!$B$9)*2*((2*B57/'Distance noise'!$B$6)+('Distance noise'!$B$13/'Distance noise'!$B$6*'Distance noise'!$B$8))*'Distance noise'!$F$5)/SQRT(2) -> 25.8 | F57: =('Distance noise'!$F$4*1000/4)/(2*'Distance noise'!$B$6)*2*'Distance noise'!$B$11/SQRT(2) -> 19.4 | G57: =SQRT((C57*C57)+(D57*D57)+(F57*F57))/5 -> 4.7 | H57: =SQRT((C57*C57)+(E57*E57)+(F57*F57))/5 -> 6.8 | J57: =B57 -> 1,060 | K57: =G57 -> 4.7 | L57: =H57 -> 6.8 | M57: =IF(('Distance noise'!$F$29-21)<$J57," ",IF(('Distance noise'!$F$26-20)>$J57," ",IF(('Distance noise'!$F$26-1)<$J57,0,1000))) -> 0 | N57: =IF(('Distance noise'!$B$13-20)>$J57," ",IF(('Distance noise'!$B$13-1)<$J57,0,1000)) -> 
A58: 54 | B58: =A58*20 -> 1,080 | C58: =('Distance noise'!$F$4*1000/4)/(2*B58/'Distance noise'!$F$10)/SQRT(2) -> 9.8 | D58: =('Distance noise'!$F$4*1000/4)/(('Distance noise'!$B$7/'Distance noise'!$B$9)*2*(B58/'Distance noise'!$B$6)*'Distance noise'!$F$5)*SQRT(('Distance noise'!$B$7/'Distance noise'!$B$9)*2*(2*B58/'Distance noise'!$B$6)*'Distance noise'!$F$5)/SQRT(2) -> 8.7 | E58: =('Distance noise'!$F$4*1000/4)/(('Distance noise'!$B$7/'Distance noise'!$B$9)*2*(B58/'Distance noise'!$B$6)*'Distance noise'!$F$5)*SQRT(('Distance noise'!$B$7/'Distance noise'!$B$9)*2*((2*B58/'Distance noise'!$B$6)+('Distance noise'!$B$13/'Distance noise'!$B$6*'Distance noise'!$B$8))*'Distance noise'!$F$5)/SQRT(2) -> 25.3 | F58: =('Distance noise'!$F$4*1000/4)/(2*'Distance noise'!$B$6)*2*'Distance noise'!$B$11/SQRT(2) -> 19.4 | G58: =SQRT((C58*C58)+(D58*D58)+(F58*F58))/5 -> 4.7 | H58: =SQRT((C58*C58)+(E58*E58)+(F58*F58))/5 -> 6.7 | J58: =B58 -> 1,080 | K58: =G58 -> 4.7 | L58: =H58 -> 6.7 | M58: =IF(('Distance noise'!$F$29-21)<$J58," ",IF(('Distance noise'!$F$26-20)>$J58," ",IF(('Distance noise'!$F$26-1)<$J58,0,1000))) -> 0 | N58: =IF(('Distance noise'!$B$13-20)>$J58," ",IF(('Distance noise'!$B$13-1)<$J58,0,1000)) -> 
A59: 55 | B59: =A59*20 -> 1,100 | C59: =('Distance noise'!$F$4*1000/4)/(2*B59/'Distance noise'!$F$10)/SQRT(2) -> 9.6 | D59: =('Distance noise'!$F$4*1000/4)/(('Distance noise'!$B$7/'Distance noise'!$B$9)*2*(B59/'Distance noise'!$B$6)*'Distance noise'!$F$5)*SQRT(('Distance noise'!$B$7/'Distance noise'!$B$9)*2*(2*B59/'Distance noise'!$B$6)*'Distance noise'!$F$5)/SQRT(2) -> 8.7 | E59: =('Distance noise'!$F$4*1000/4)/(('Distance noise'!$B$7/'Distance noise'!$B$9)*2*(B59/'Distance noise'!$B$6)*'Distance noise'!$F$5)*SQRT(('Distance noise'!$B$7/'Distance noise'!$B$9)*2*((2*B59/'Distance noise'!$B$6)+('Distance noise'!$B$13/'Distance noise'!$B$6*'Distance noise'!$B$8))*'Distance noise'!$F$5)/SQRT(2) -> 24.9 | F59: =('Distance noise'!$F$4*1000/4)/(2*'Distance noise'!$B$6)*2*'Distance noise'!$B$11/SQRT(2) -> 19.4 | G59: =SQRT((C59*C59)+(D59*D59)+(F59*F59))/5 -> 4.7 | H59: =SQRT((C59*C59)+(E59*E59)+(F59*F59))/5 -> 6.6 | J59: =B59 -> 1,100 | K59: =G59 -> 4.7 | L59: =H59 -> 6.6 | M59: =IF(('Distance noise'!$F$29-21)<$J59," ",IF(('Distance noise'!$F$26-20)>$J59," ",IF(('Distance noise'!$F$26-1)<$J59,0,1000))) -> 0 | N59: =IF(('Distance noise'!$B$13-20)>$J59," ",IF(('Distance noise'!$B$13-1)<$J59,0,1000)) -> 
A60: 56 | B60: =A60*20 -> 1,120 | C60: =('Distance noise'!$F$4*1000/4)/(2*B60/'Distance noise'!$F$10)/SQRT(2) -> 9.5 | D60: =('Distance noise'!$F$4*1000/4)/(('Distance noise'!$B$7/'Distance noise'!$B$9)*2*(B60/'Distance noise'!$B$6)*'Distance noise'!$F$5)*SQRT(('Distance noise'!$B$7/'Distance noise'!$B$9)*2*(2*B60/'Distance noise'!$B$6)*'Distance noise'!$F$5)/SQRT(2) -> 8.6 | E60: =('Distance noise'!$F$4*1000/4)/(('Distance noise'!$B$7/'Distance noise'!$B$9)*2*(B60/'Distance noise'!$B$6)*'Distance noise'!$F$5)*SQRT(('Distance noise'!$B$7/'Distance noise'!$B$9)*2*((2*B60/'Distance noise'!$B$6)+('Distance noise'!$B$13/'Distance noise'!$B$6*'Distance noise'!$B$8))*'Distance noise'!$F$5)/SQRT(2) -> 24.5 | F60: =('Distance noise'!$F$4*1000/4)/(2*'Distance noise'!$B$6)*2*'Distance noise'!$B$11/SQRT(2) -> 19.4 | G60: =SQRT((C60*C60)+(D60*D60)+(F60*F60))/5 -> 4.7 | H60: =SQRT((C60*C60)+(E60*E60)+(F60*F60))/5 -> 6.5 | J60: =B60 -> 1,120 | K60: =G60 -> 4.7 | L60: =H60 -> 6.5 | M60: =IF(('Distance noise'!$F$29-21)<$J60," ",IF(('Distance noise'!$F$26-20)>$J60," ",IF(('Distance noise'!$F$26-1)<$J60,0,1000))) -> 0 | N60: =IF(('Distance noise'!$B$13-20)>$J60," ",IF(('Distance noise'!$B$13-1)<$J60,0,1000)) -> 
A61: 57 | B61: =A61*20 -> 1,140 | C61: =('Distance noise'!$F$4*1000/4)/(2*B61/'Distance noise'!$F$10)/SQRT(2) -> 9.3 | D61: =('Distance noise'!$F$4*1000/4)/(('Distance noise'!$B$7/'Distance noise'!$B$9)*2*(B61/'Distance noise'!$B$6)*'Distance noise'!$F$5)*SQRT(('Distance noise'!$B$7/'Distance noise'!$B$9)*2*(2*B61/'Distance noise'!$B$6)*'Distance noise'!$F$5)/SQRT(2) -> 8.5 | E61: =('Distance noise'!$F$4*1000/4)/(('Distance noise'!$B$7/'Distance noise'!$B$9)*2*(B61/'Distance noise'!$B$6)*'Distance noise'!$F$5)*SQRT(('Distance noise'!$B$7/'Distance noise'!$B$9)*2*((2*B61/'Distance noise'!$B$6)+('Distance noise'!$B$13/'Distance noise'!$B$6*'Distance noise'!$B$8))*'Distance noise'!$F$5)/SQRT(2) -> 24.1 | F61: =('Distance noise'!$F$4*1000/4)/(2*'Distance noise'!$B$6)*2*'Distance noise'!$B$11/SQRT(2) -> 19.4 | G61: =SQRT((C61*C61)+(D61*D61)+(F61*F61))/5 -> 4.6 | H61: =SQRT((C61*C61)+(E61*E61)+(F61*F61))/5 -> 6.5 | J61: =B61 -> 1,140 | K61: =G61 -> 4.6 | L61: =H61 -> 6.5 | M61: =IF(('Distance noise'!$F$29-21)<$J61," ",IF(('Distance noise'!$F$26-20)>$J61," ",IF(('Distance noise'!$F$26-1)<$J61,0,1000))) -> 0 | N61: =IF(('Distance noise'!$B$13-20)>$J61," ",IF(('Distance noise'!$B$13-1)<$J61,0,1000)) -> 
A62: 58 | B62: =A62*20 -> 1,160 | C62: =('Distance noise'!$F$4*1000/4)/(2*B62/'Distance noise'!$F$10)/SQRT(2) -> 9.1 | D62: =('Distance noise'!$F$4*1000/4)/(('Distance noise'!$B$7/'Distance noise'!$B$9)*2*(B62/'Distance noise'!$B$6)*'Distance noise'!$F$5)*SQRT(('Distance noise'!$B$7/'Distance noise'!$B$9)*2*(2*B62/'Distance noise'!$B$6)*'Distance noise'!$F$5)/SQRT(2) -> 8.4 | E62: =('Distance noise'!$F$4*1000/4)/(('Distance noise'!$B$7/'Distance noise'!$B$9)*2*(B62/'Distance noise'!$B$6)*'Distance noise'!$F$5)*SQRT(('Distance noise'!$B$7/'Distance noise'!$B$9)*2*((2*B62/'Distance noise'!$B$6)+('Distance noise'!$B$13/'Distance noise'!$B$6*'Distance noise'!$B$8))*'Distance noise'!$F$5)/SQRT(2) -> 23.7 | F62: =('Distance noise'!$F$4*1000/4)/(2*'Distance noise'!$B$6)*2*'Distance noise'!$B$11/SQRT(2) -> 19.4 | G62: =SQRT((C62*C62)+(D62*D62)+(F62*F62))/5 -> 4.6 | H62: =SQRT((C62*C62)+(E62*E62)+(F62*F62))/5 -> 6.4 | J62: =B62 -> 1,160 | K62: =G62 -> 4.6 | L62: =H62 -> 6.4 | M62: =IF(('Distance noise'!$F$29-21)<$J62," ",IF(('Distance noise'!$F$26-20)>$J62," ",IF(('Distance noise'!$F$26-1)<$J62,0,1000))) -> 0 | N62: =IF(('Distance noise'!$B$13-20)>$J62," ",IF(('Distance noise'!$B$13-1)<$J62,0,1000)) -> 
A63: 59 | B63: =A63*20 -> 1,180 | C63: =('Distance noise'!$F$4*1000/4)/(2*B63/'Distance noise'!$F$10)/SQRT(2) -> 9.0 | D63: =('Distance noise'!$F$4*1000/4)/(('Distance noise'!$B$7/'Distance noise'!$B$9)*2*(B63/'Distance noise'!$B$6)*'Distance noise'!$F$5)*SQRT(('Distance noise'!$B$7/'Distance noise'!$B$9)*2*(2*B63/'Distance noise'!$B$6)*'Distance noise'!$F$5)/SQRT(2) -> 8.4 | E63: =('Distance noise'!$F$4*1000/4)/(('Distance noise'!$B$7/'Distance noise'!$B$9)*2*(B63/'Distance noise'!$B$6)*'Distance noise'!$F$5)*SQRT(('Distance noise'!$B$7/'Distance noise'!$B$9)*2*((2*B63/'Distance noise'!$B$6)+('Distance noise'!$B$13/'Distance noise'!$B$6*'Distance noise'!$B$8))*'Distance noise'!$F$5)/SQRT(2) -> 23.3 | F63: =('Distance noise'!$F$4*1000/4)/(2*'Distance noise'!$B$6)*2*'Distance noise'!$B$11/SQRT(2) -> 19.4 | G63: =SQRT((C63*C63)+(D63*D63)+(F63*F63))/5 -> 4.6 | H63: =SQRT((C63*C63)+(E63*E63)+(F63*F63))/5 -> 6.3 | J63: =B63 -> 1,180 | K63: =G63 -> 4.6 | L63: =H63 -> 6.3 | M63: =IF(('Distance noise'!$F$29-21)<$J63," ",IF(('Distance noise'!$F$26-20)>$J63," ",IF(('Distance noise'!$F$26-1)<$J63,0,1000))) -> 0 | N63: =IF(('Distance noise'!$B$13-20)>$J63," ",IF(('Distance noise'!$B$13-1)<$J63,0,1000)) -> 
A64: 60 | B64: =A64*20 -> 1,200 | C64: =('Distance noise'!$F$4*1000/4)/(2*B64/'Distance noise'!$F$10)/SQRT(2) -> 8.8 | D64: =('Distance noise'!$F$4*1000/4)/(('Distance noise'!$B$7/'Distance noise'!$B$9)*2*(B64/'Distance noise'!$B$6)*'Distance noise'!$F$5)*SQRT(('Distance noise'!$B$7/'Distance noise'!$B$9)*2*(2*B64/'Distance noise'!$B$6)*'Distance noise'!$F$5)/SQRT(2) -> 8.3 | E64: =('Distance noise'!$F$4*1000/4)/(('Distance noise'!$B$7/'Distance noise'!$B$9)*2*(B64/'Distance noise'!$B$6)*'Distance noise'!$F$5)*SQRT(('Distance noise'!$B$7/'Distance noise'!$B$9)*2*((2*B64/'Distance noise'!$B$6)+('Distance noise'!$B$13/'Distance noise'!$B$6*'Distance noise'!$B$8))*'Distance noise'!$F$5)/SQRT(2) -> 23.0 | F64: =('Distance noise'!$F$4*1000/4)/(2*'Distance noise'!$B$6)*2*'Distance noise'!$B$11/SQRT(2) -> 19.4 | G64: =SQRT((C64*C64)+(D64*D64)+(F64*F64))/5 -> 4.6 | H64: =SQRT((C64*C64)+(E64*E64)+(F64*F64))/5 -> 6.3 | J64: =B64 -> 1,200 | K64: =G64 -> 4.6 | L64: =H64 -> 6.3 | M64: =IF(('Distance noise'!$F$29-21)<$J64," ",IF(('Distance noise'!$F$26-20)>$J64," ",IF(('Distance noise'!$F$26-1)<$J64,0,1000))) -> 0 | N64: =IF(('Distance noise'!$B$13-20)>$J64," ",IF(('Distance noise'!$B$13-1)<$J64,0,1000)) -> 
A65: 61 | B65: =A65*20 -> 1,220 | C65: =('Distance noise'!$F$4*1000/4)/(2*B65/'Distance noise'!$F$10)/SQRT(2) -> 8.7 | D65: =('Distance noise'!$F$4*1000/4)/(('Distance noise'!$B$7/'Distance noise'!$B$9)*2*(B65/'Distance noise'!$B$6)*'Distance noise'!$F$5)*SQRT(('Distance noise'!$B$7/'Distance noise'!$B$9)*2*(2*B65/'Distance noise'!$B$6)*'Distance noise'!$F$5)/SQRT(2) -> 8.2 | E65: =('Distance noise'!$F$4*1000/4)/(('Distance noise'!$B$7/'Distance noise'!$B$9)*2*(B65/'Distance noise'!$B$6)*'Distance noise'!$F$5)*SQRT(('Distance noise'!$B$7/'Distance noise'!$B$9)*2*((2*B65/'Distance noise'!$B$6)+('Distance noise'!$B$13/'Distance noise'!$B$6*'Distance noise'!$B$8))*'Distance noise'!$F$5)/SQRT(2) -> 22.6 | F65: =('Distance noise'!$F$4*1000/4)/(2*'Distance noise'!$B$6)*2*'Distance noise'!$B$11/SQRT(2) -> 19.4 | G65: =SQRT((C65*C65)+(D65*D65)+(F65*F65))/5 -> 4.6 | H65: =SQRT((C65*C65)+(E65*E65)+(F65*F65))/5 -> 6.2 | J65: =B65 -> 1,220 | K65: =G65 -> 4.6 | L65: =H65 -> 6.2 | M65: =IF(('Distance noise'!$F$29-21)<$J65," ",IF(('Distance noise'!$F$26-20)>$J65," ",IF(('Distance noise'!$F$26-1)<$J65,0,1000))) -> 0 | N65: =IF(('Distance noise'!$B$13-20)>$J65," ",IF(('Distance noise'!$B$13-1)<$J65,0,1000)) -> 
A66: 62 | B66: =A66*20 -> 1,240 | C66: =('Distance noise'!$F$4*1000/4)/(2*B66/'Distance noise'!$F$10)/SQRT(2) -> 8.6 | D66: =('Distance noise'!$F$4*1000/4)/(('Distance noise'!$B$7/'Distance noise'!$B$9)*2*(B66/'Distance noise'!$B$6)*'Distance noise'!$F$5)*SQRT(('Distance noise'!$B$7/'Distance noise'!$B$9)*2*(2*B66/'Distance noise'!$B$6)*'Distance noise'!$F$5)/SQRT(2) -> 8.2 | E66: =('Distance noise'!$F$4*1000/4)/(('Distance noise'!$B$7/'Distance noise'!$B$9)*2*(B66/'Distance noise'!$B$6)*'Distance noise'!$F$5)*SQRT(('Distance noise'!$B$7/'Distance noise'!$B$9)*2*((2*B66/'Distance noise'!$B$6)+('Distance noise'!$B$13/'Distance noise'!$B$6*'Distance noise'!$B$8))*'Distance noise'!$F$5)/SQRT(2) -> 22.3 | F66: =('Distance noise'!$F$4*1000/4)/(2*'Distance noise'!$B$6)*2*'Distance noise'!$B$11/SQRT(2) -> 19.4 | G66: =SQRT((C66*C66)+(D66*D66)+(F66*F66))/5 -> 4.5 | H66: =SQRT((C66*C66)+(E66*E66)+(F66*F66))/5 -> 6.2 | J66: =B66 -> 1,240 | K66: =G66 -> 4.5 | L66: =H66 -> 6.2 | M66: =IF(('Distance noise'!$F$29-21)<$J66," ",IF(('Distance noise'!$F$26-20)>$J66," ",IF(('Distance noise'!$F$26-1)<$J66,0,1000))) -> 0 | N66: =IF(('Distance noise'!$B$13-20)>$J66," ",IF(('Distance noise'!$B$13-1)<$J66,0,1000)) -> 
A67: 63 | B67: =A67*20 -> 1,260 | C67: =('Distance noise'!$F$4*1000/4)/(2*B67/'Distance noise'!$F$10)/SQRT(2) -> 8.4 | D67: =('Distance noise'!$F$4*1000/4)/(('Distance noise'!$B$7/'Distance noise'!$B$9)*2*(B67/'Distance noise'!$B$6)*'Distance noise'!$F$5)*SQRT(('Distance noise'!$B$7/'Distance noise'!$B$9)*2*(2*B67/'Distance noise'!$B$6)*'Distance noise'!$F$5)/SQRT(2) -> 8.1 | E67: =('Distance noise'!$F$4*1000/4)/(('Distance noise'!$B$7/'Distance noise'!$B$9)*2*(B67/'Distance noise'!$B$6)*'Distance noise'!$F$5)*SQRT(('Distance noise'!$B$7/'Distance noise'!$B$9)*2*((2*B67/'Distance noise'!$B$6)+('Distance noise'!$B$13/'Distance noise'!$B$6*'Distance noise'!$B$8))*'Distance noise'!$F$5)/SQRT(2) -> 21.9 | F67: =('Distance noise'!$F$4*1000/4)/(2*'Distance noise'!$B$6)*2*'Distance noise'!$B$11/SQRT(2) -> 19.4 | G67: =SQRT((C67*C67)+(D67*D67)+(F67*F67))/5 -> 4.5 | H67: =SQRT((C67*C67)+(E67*E67)+(F67*F67))/5 -> 6.1 | J67: =B67 -> 1,260 | K67: =G67 -> 4.5 | L67: =H67 -> 6.1 | M67: =IF(('Distance noise'!$F$29-21)<$J67," ",IF(('Distance noise'!$F$26-20)>$J67," ",IF(('Distance noise'!$F$26-1)<$J67,0,1000))) -> 0 | N67: =IF(('Distance noise'!$B$13-20)>$J67," ",IF(('Distance noise'!$B$13-1)<$J67,0,1000)) -> 
A68: 64 | B68: =A68*20 -> 1,280 | C68: =('Distance noise'!$F$4*1000/4)/(2*B68/'Distance noise'!$F$10)/SQRT(2) -> 8.3 | D68: =('Distance noise'!$F$4*1000/4)/(('Distance noise'!$B$7/'Distance noise'!$B$9)*2*(B68/'Distance noise'!$B$6)*'Distance noise'!$F$5)*SQRT(('Distance noise'!$B$7/'Distance noise'!$B$9)*2*(2*B68/'Distance noise'!$B$6)*'Distance noise'!$F$5)/SQRT(2) -> 8.0 | E68: =('Distance noise'!$F$4*1000/4)/(('Distance noise'!$B$7/'Distance noise'!$B$9)*2*(B68/'Distance noise'!$B$6)*'Distance noise'!$F$5)*SQRT(('Distance noise'!$B$7/'Distance noise'!$B$9)*2*((2*B68/'Distance noise'!$B$6)+('Distance noise'!$B$13/'Distance noise'!$B$6*'Distance noise'!$B$8))*'Distance noise'!$F$5)/SQRT(2) -> 21.6 | F68: =('Distance noise'!$F$4*1000/4)/(2*'Distance noise'!$B$6)*2*'Distance noise'!$B$11/SQRT(2) -> 19.4 | G68: =SQRT((C68*C68)+(D68*D68)+(F68*F68))/5 -> 4.5 | H68: =SQRT((C68*C68)+(E68*E68)+(F68*F68))/5 -> 6.0 | J68: =B68 -> 1,280 | K68: =G68 -> 4.5 | L68: =H68 -> 6.0 | M68: =IF(('Distance noise'!$F$29-21)<$J68," ",IF(('Distance noise'!$F$26-20)>$J68," ",IF(('Distance noise'!$F$26-1)<$J68,0,1000))) -> 0 | N68: =IF(('Distance noise'!$B$13-20)>$J68," ",IF(('Distance noise'!$B$13-1)<$J68,0,1000)) -> 
A69: 65 | B69: =A69*20 -> 1,300 | C69: =('Distance noise'!$F$4*1000/4)/(2*B69/'Distance noise'!$F$10)/SQRT(2) -> 8.2 | D69: =('Distance noise'!$F$4*1000/4)/(('Distance noise'!$B$7/'Distance noise'!$B$9)*2*(B69/'Distance noise'!$B$6)*'Distance noise'!$F$5)*SQRT(('Distance noise'!$B$7/'Distance noise'!$B$9)*2*(2*B69/'Distance noise'!$B$6)*'Distance noise'!$F$5)/SQRT(2) -> 8.0 | E69: =('Distance noise'!$F$4*1000/4)/(('Distance noise'!$B$7/'Distance noise'!$B$9)*2*(B69/'Distance noise'!$B$6)*'Distance noise'!$F$5)*SQRT(('Distance noise'!$B$7/'Distance noise'!$B$9)*2*((2*B69/'Distance noise'!$B$6)+('Distance noise'!$B$13/'Distance noise'!$B$6*'Distance noise'!$B$8))*'Distance noise'!$F$5)/SQRT(2) -> 21.3 | F69: =('Distance noise'!$F$4*1000/4)/(2*'Distance noise'!$B$6)*2*'Distance noise'!$B$11/SQRT(2) -> 19.4 | G69: =SQRT((C69*C69)+(D69*D69)+(F69*F69))/5 -> 4.5 | H69: =SQRT((C69*C69)+(E69*E69)+(F69*F69))/5 -> 6.0 | J69: =B69 -> 1,300 | K69: =G69 -> 4.5 | L69: =H69 -> 6.0 | M69: =IF(('Distance noise'!$F$29-21)<$J69," ",IF(('Distance noise'!$F$26-20)>$J69," ",IF(('Distance noise'!$F$26-1)<$J69,0,1000))) -> 0 | N69: =IF(('Distance noise'!$B$13-20)>$J69," ",IF(('Distance noise'!$B$13-1)<$J69,0,1000)) -> 
A70: 66 | B70: =A70*20 -> 1,320 | C70: =('Distance noise'!$F$4*1000/4)/(2*B70/'Distance noise'!$F$10)/SQRT(2) -> 8.0 | D70: =('Distance noise'!$F$4*1000/4)/(('Distance noise'!$B$7/'Distance noise'!$B$9)*2*(B70/'Distance noise'!$B$6)*'Distance noise'!$F$5)*SQRT(('Distance noise'!$B$7/'Distance noise'!$B$9)*2*(2*B70/'Distance noise'!$B$6)*'Distance noise'!$F$5)/SQRT(2) -> 7.9 | E70: =('Distance noise'!$F$4*1000/4)/(('Distance noise'!$B$7/'Distance noise'!$B$9)*2*(B70/'Distance noise'!$B$6)*'Distance noise'!$F$5)*SQRT(('Distance noise'!$B$7/'Distance noise'!$B$9)*2*((2*B70/'Distance noise'!$B$6)+('Distance noise'!$B$13/'Distance noise'!$B$6*'Distance noise'!$B$8))*'Distance noise'!$F$5)/SQRT(2) -> 21.0 | F70: =('Distance noise'!$F$4*1000/4)/(2*'Distance noise'!$B$6)*2*'Distance noise'!$B$11/SQRT(2) -> 19.4 | G70: =SQRT((C70*C70)+(D70*D70)+(F70*F70))/5 -> 4.5 | H70: =SQRT((C70*C70)+(E70*E70)+(F70*F70))/5 -> 5.9 | J70: =B70 -> 1,320 | K70: =G70 -> 4.5 | L70: =H70 -> 5.9 | M70: =IF(('Distance noise'!$F$29-21)<$J70," ",IF(('Distance noise'!$F$26-20)>$J70," ",IF(('Distance noise'!$F$26-1)<$J70,0,1000))) -> 0 | N70: =IF(('Distance noise'!$B$13-20)>$J70," ",IF(('Distance noise'!$B$13-1)<$J70,0,1000)) -> 
A71: 67 | B71: =A71*20 -> 1,340 | C71: =('Distance noise'!$F$4*1000/4)/(2*B71/'Distance noise'!$F$10)/SQRT(2) -> 7.9 | D71: =('Distance noise'!$F$4*1000/4)/(('Distance noise'!$B$7/'Distance noise'!$B$9)*2*(B71/'Distance noise'!$B$6)*'Distance noise'!$F$5)*SQRT(('Distance noise'!$B$7/'Distance noise'!$B$9)*2*(2*B71/'Distance noise'!$B$6)*'Distance noise'!$F$5)/SQRT(2) -> 7.8 | E71: =('Distance noise'!$F$4*1000/4)/(('Distance noise'!$B$7/'Distance noise'!$B$9)*2*(B71/'Distance noise'!$B$6)*'Distance noise'!$F$5)*SQRT(('Distance noise'!$B$7/'Distance noise'!$B$9)*2*((2*B71/'Distance noise'!$B$6)+('Distance noise'!$B$13/'Distance noise'!$B$6*'Distance noise'!$B$8))*'Distance noise'!$F$5)/SQRT(2) -> 20.7 | F71: =('Distance noise'!$F$4*1000/4)/(2*'Distance noise'!$B$6)*2*'Distance noise'!$B$11/SQRT(2) -> 19.4 | G71: =SQRT((C71*C71)+(D71*D71)+(F71*F71))/5 -> 4.5 | H71: =SQRT((C71*C71)+(E71*E71)+(F71*F71))/5 -> 5.9 | J71: =B71 -> 1,340 | K71: =G71 -> 4.5 | L71: =H71 -> 5.9 | M71: =IF(('Distance noise'!$F$29-21)<$J71," ",IF(('Distance noise'!$F$26-20)>$J71," ",IF(('Distance noise'!$F$26-1)<$J71,0,1000))) -> 0 | N71: =IF(('Distance noise'!$B$13-20)>$J71," ",IF(('Distance noise'!$B$13-1)<$J71,0,1000)) -> 
A72: 68 | B72: =A72*20 -> 1,360 | C72: =('Distance noise'!$F$4*1000/4)/(2*B72/'Distance noise'!$F$10)/SQRT(2) -> 7.8 | D72: =('Distance noise'!$F$4*1000/4)/(('Distance noise'!$B$7/'Distance noise'!$B$9)*2*(B72/'Distance noise'!$B$6)*'Distance noise'!$F$5)*SQRT(('Distance noise'!$B$7/'Distance noise'!$B$9)*2*(2*B72/'Distance noise'!$B$6)*'Distance noise'!$F$5)/SQRT(2) -> 7.8 | E72: =('Distance noise'!$F$4*1000/4)/(('Distance noise'!$B$7/'Distance noise'!$B$9)*2*(B72/'Distance noise'!$B$6)*'Distance noise'!$F$5)*SQRT(('Distance noise'!$B$7/'Distance noise'!$B$9)*2*((2*B72/'Distance noise'!$B$6)+('Distance noise'!$B$13/'Distance noise'!$B$6*'Distance noise'!$B$8))*'Distance noise'!$F$5)/SQRT(2) -> 20.4 | F72: =('Distance noise'!$F$4*1000/4)/(2*'Distance noise'!$B$6)*2*'Distance noise'!$B$11/SQRT(2) -> 19.4 | G72: =SQRT((C72*C72)+(D72*D72)+(F72*F72))/5 -> 4.5 | H72: =SQRT((C72*C72)+(E72*E72)+(F72*F72))/5 -> 5.9 | J72: =B72 -> 1,360 | K72: =G72 -> 4.5 | L72: =H72 -> 5.9 | M72: =IF(('Distance noise'!$F$29-21)<$J72," ",IF(('Distance noise'!$F$26-20)>$J72," ",IF(('Distance noise'!$F$26-1)<$J72,0,1000))) -> 0 | N72: =IF(('Distance noise'!$B$13-20)>$J72," ",IF(('Distance noise'!$B$13-1)<$J72,0,1000)) -> 
A73: 69 | B73: =A73*20 -> 1,380 | C73: =('Distance noise'!$F$4*1000/4)/(2*B73/'Distance noise'!$F$10)/SQRT(2) -> 7.7 | D73: =('Distance noise'!$F$4*1000/4)/(('Distance noise'!$B$7/'Distance noise'!$B$9)*2*(B73/'Distance noise'!$B$6)*'Distance noise'!$F$5)*SQRT(('Distance noise'!$B$7/'Distance noise'!$B$9)*2*(2*B73/'Distance noise'!$B$6)*'Distance noise'!$F$5)/SQRT(2) -> 7.7 | E73: =('Distance noise'!$F$4*1000/4)/(('Distance noise'!$B$7/'Distance noise'!$B$9)*2*(B73/'Distance noise'!$B$6)*'Distance noise'!$F$5)*SQRT(('Distance noise'!$B$7/'Distance noise'!$B$9)*2*((2*B73/'Distance noise'!$B$6)+('Distance noise'!$B$13/'Distance noise'!$B$6*'Distance noise'!$B$8))*'Distance noise'!$F$5)/SQRT(2) -> 20.2 | F73: =('Distance noise'!$F$4*1000/4)/(2*'Distance noise'!$B$6)*2*'Distance noise'!$B$11/SQRT(2) -> 19.4 | G73: =SQRT((C73*C73)+(D73*D73)+(F73*F73))/5 -> 4.5 | H73: =SQRT((C73*C73)+(E73*E73)+(F73*F73))/5 -> 5.8 | J73: =B73 -> 1,380 | K73: =G73 -> 4.5 | L73: =H73 -> 5.8 | M73: =IF(('Distance noise'!$F$29-21)<$J73," ",IF(('Distance noise'!$F$26-20)>$J73," ",IF(('Distance noise'!$F$26-1)<$J73,0,1000))) -> 0 | N73: =IF(('Distance noise'!$B$13-20)>$J73," ",IF(('Distance noise'!$B$13-1)<$J73,0,1000)) -> 
A74: 70 | B74: =A74*20 -> 1,400 | C74: =('Distance noise'!$F$4*1000/4)/(2*B74/'Distance noise'!$F$10)/SQRT(2) -> 7.6 | D74: =('Distance noise'!$F$4*1000/4)/(('Distance noise'!$B$7/'Distance noise'!$B$9)*2*(B74/'Distance noise'!$B$6)*'Distance noise'!$F$5)*SQRT(('Distance noise'!$B$7/'Distance noise'!$B$9)*2*(2*B74/'Distance noise'!$B$6)*'Distance noise'!$F$5)/SQRT(2) -> 7.7 | E74: =('Distance noise'!$F$4*1000/4)/(('Distance noise'!$B$7/'Distance noise'!$B$9)*2*(B74/'Distance noise'!$B$6)*'Distance noise'!$F$5)*SQRT(('Distance noise'!$B$7/'Distance noise'!$B$9)*2*((2*B74/'Distance noise'!$B$6)+('Distance noise'!$B$13/'Distance noise'!$B$6*'Distance noise'!$B$8))*'Distance noise'!$F$5)/SQRT(2) -> 19.9 | F74: =('Distance noise'!$F$4*1000/4)/(2*'Distance noise'!$B$6)*2*'Distance noise'!$B$11/SQRT(2) -> 19.4 | G74: =SQRT((C74*C74)+(D74*D74)+(F74*F74))/5 -> 4.4 | H74: =SQRT((C74*C74)+(E74*E74)+(F74*F74))/5 -> 5.8 | J74: =B74 -> 1,400 | K74: =G74 -> 4.4 | L74: =H74 -> 5.8 | M74: =IF(('Distance noise'!$F$29-21)<$J74," ",IF(('Distance noise'!$F$26-20)>$J74," ",IF(('Distance noise'!$F$26-1)<$J74,0,1000))) -> 0 | N74: =IF(('Distance noise'!$B$13-20)>$J74," ",IF(('Distance noise'!$B$13-1)<$J74,0,1000)) -> 
A75: 71 | B75: =A75*20 -> 1,420 | C75: =('Distance noise'!$F$4*1000/4)/(2*B75/'Distance noise'!$F$10)/SQRT(2) -> 7.5 | D75: =('Distance noise'!$F$4*1000/4)/(('Distance noise'!$B$7/'Distance noise'!$B$9)*2*(B75/'Distance noise'!$B$6)*'Distance noise'!$F$5)*SQRT(('Distance noise'!$B$7/'Distance noise'!$B$9)*2*(2*B75/'Distance noise'!$B$6)*'Distance noise'!$F$5)/SQRT(2) -> 7.6 | E75: =('Distance noise'!$F$4*1000/4)/(('Distance noise'!$B$7/'Distance noise'!$B$9)*2*(B75/'Distance noise'!$B$6)*'Distance noise'!$F$5)*SQRT(('Distance noise'!$B$7/'Distance noise'!$B$9)*2*((2*B75/'Distance noise'!$B$6)+('Distance noise'!$B$13/'Distance noise'!$B$6*'Distance noise'!$B$8))*'Distance noise'!$F$5)/SQRT(2) -> 19.6 | F75: =('Distance noise'!$F$4*1000/4)/(2*'Distance noise'!$B$6)*2*'Distance noise'!$B$11/SQRT(2) -> 19.4 | G75: =SQRT((C75*C75)+(D75*D75)+(F75*F75))/5 -> 4.4 | H75: =SQRT((C75*C75)+(E75*E75)+(F75*F75))/5 -> 5.7 | J75: =B75 -> 1,420 | K75: =G75 -> 4.4 | L75: =H75 -> 5.7 | M75: =IF(('Distance noise'!$F$29-21)<$J75," ",IF(('Distance noise'!$F$26-20)>$J75," ",IF(('Distance noise'!$F$26-1)<$J75,0,1000))) -> 0 | N75: =IF(('Distance noise'!$B$13-20)>$J75," ",IF(('Distance noise'!$B$13-1)<$J75,0,1000)) -> 
A76: 72 | B76: =A76*20 -> 1,440 | C76: =('Distance noise'!$F$4*1000/4)/(2*B76/'Distance noise'!$F$10)/SQRT(2) -> 7.4 | D76: =('Distance noise'!$F$4*1000/4)/(('Distance noise'!$B$7/'Distance noise'!$B$9)*2*(B76/'Distance noise'!$B$6)*'Distance noise'!$F$5)*SQRT(('Distance noise'!$B$7/'Distance noise'!$B$9)*2*(2*B76/'Distance noise'!$B$6)*'Distance noise'!$F$5)/SQRT(2) -> 7.6 | E76: =('Distance noise'!$F$4*1000/4)/(('Distance noise'!$B$7/'Distance noise'!$B$9)*2*(B76/'Distance noise'!$B$6)*'Distance noise'!$F$5)*SQRT(('Distance noise'!$B$7/'Distance noise'!$B$9)*2*((2*B76/'Distance noise'!$B$6)+('Distance noise'!$B$13/'Distance noise'!$B$6*'Distance noise'!$B$8))*'Distance noise'!$F$5)/SQRT(2) -> 19.4 | F76: =('Distance noise'!$F$4*1000/4)/(2*'Distance noise'!$B$6)*2*'Distance noise'!$B$11/SQRT(2) -> 19.4 | G76: =SQRT((C76*C76)+(D76*D76)+(F76*F76))/5 -> 4.4 | H76: =SQRT((C76*C76)+(E76*E76)+(F76*F76))/5 -> 5.7 | J76: =B76 -> 1,440 | K76: =G76 -> 4.4 | L76: =H76 -> 5.7 | M76: =IF(('Distance noise'!$F$29-21)<$J76," ",IF(('Distance noise'!$F$26-20)>$J76," ",IF(('Distance noise'!$F$26-1)<$J76,0,1000))) -> 0 | N76: =IF(('Distance noise'!$B$13-20)>$J76," ",IF(('Distance noise'!$B$13-1)<$J76,0,1000)) -> 
A77: 73 | B77: =A77*20 -> 1,460 | C77: =('Distance noise'!$F$4*1000/4)/(2*B77/'Distance noise'!$F$10)/SQRT(2) -> 7.3 | D77: =('Distance noise'!$F$4*1000/4)/(('Distance noise'!$B$7/'Distance noise'!$B$9)*2*(B77/'Distance noise'!$B$6)*'Distance noise'!$F$5)*SQRT(('Distance noise'!$B$7/'Distance noise'!$B$9)*2*(2*B77/'Distance noise'!$B$6)*'Distance noise'!$F$5)/SQRT(2) -> 7.5 | E77: =('Distance noise'!$F$4*1000/4)/(('Distance noise'!$B$7/'Distance noise'!$B$9)*2*(B77/'Distance noise'!$B$6)*'Distance noise'!$F$5)*SQRT(('Distance noise'!$B$7/'Distance noise'!$B$9)*2*((2*B77/'Distance noise'!$B$6)+('Distance noise'!$B$13/'Distance noise'!$B$6*'Distance noise'!$B$8))*'Distance noise'!$F$5)/SQRT(2) -> 19.1 | F77: =('Distance noise'!$F$4*1000/4)/(2*'Distance noise'!$B$6)*2*'Distance noise'!$B$11/SQRT(2) -> 19.4 | G77: =SQRT((C77*C77)+(D77*D77)+(F77*F77))/5 -> 4.4 | H77: =SQRT((C77*C77)+(E77*E77)+(F77*F77))/5 -> 5.6 | J77: =B77 -> 1,460 | K77: =G77 -> 4.4 | L77: =H77 -> 5.6 | M77: =IF(('Distance noise'!$F$29-21)<$J77," ",IF(('Distance noise'!$F$26-20)>$J77," ",IF(('Distance noise'!$F$26-1)<$J77,0,1000))) -> 0 | N77: =IF(('Distance noise'!$B$13-20)>$J77," ",IF(('Distance noise'!$B$13-1)<$J77,0,1000)) -> 
A78: 74 | B78: =A78*20 -> 1,480 | C78: =('Distance noise'!$F$4*1000/4)/(2*B78/'Distance noise'!$F$10)/SQRT(2) -> 7.2 | D78: =('Distance noise'!$F$4*1000/4)/(('Distance noise'!$B$7/'Distance noise'!$B$9)*2*(B78/'Distance noise'!$B$6)*'Distance noise'!$F$5)*SQRT(('Distance noise'!$B$7/'Distance noise'!$B$9)*2*(2*B78/'Distance noise'!$B$6)*'Distance noise'!$F$5)/SQRT(2) -> 7.5 | E78: =('Distance noise'!$F$4*1000/4)/(('Distance noise'!$B$7/'Distance noise'!$B$9)*2*(B78/'Distance noise'!$B$6)*'Distance noise'!$F$5)*SQRT(('Distance noise'!$B$7/'Distance noise'!$B$9)*2*((2*B78/'Distance noise'!$B$6)+('Distance noise'!$B$13/'Distance noise'!$B$6*'Distance noise'!$B$8))*'Distance noise'!$F$5)/SQRT(2) -> 18.9 | F78: =('Distance noise'!$F$4*1000/4)/(2*'Distance noise'!$B$6)*2*'Distance noise'!$B$11/SQRT(2) -> 19.4 | G78: =SQRT((C78*C78)+(D78*D78)+(F78*F78))/5 -> 4.4 | H78: =SQRT((C78*C78)+(E78*E78)+(F78*F78))/5 -> 5.6 | J78: =B78 -> 1,480 | K78: =G78 -> 4.4 | L78: =H78 -> 5.6 | M78: =IF(('Distance noise'!$F$29-21)<$J78," ",IF(('Distance noise'!$F$26-20)>$J78," ",IF(('Distance noise'!$F$26-1)<$J78,0,1000))) -> 0 | N78: =IF(('Distance noise'!$B$13-20)>$J78," ",IF(('Distance noise'!$B$13-1)<$J78,0,1000)) -> 
A79: 75 | B79: =A79*20 -> 1,500 | C79: =('Distance noise'!$F$4*1000/4)/(2*B79/'Distance noise'!$F$10)/SQRT(2) -> 7.1 | D79: =('Distance noise'!$F$4*1000/4)/(('Distance noise'!$B$7/'Distance noise'!$B$9)*2*(B79/'Distance noise'!$B$6)*'Distance noise'!$F$5)*SQRT(('Distance noise'!$B$7/'Distance noise'!$B$9)*2*(2*B79/'Distance noise'!$B$6)*'Distance noise'!$F$5)/SQRT(2) -> 7.4 | E79: =('Distance noise'!$F$4*1000/4)/(('Distance noise'!$B$7/'Distance noise'!$B$9)*2*(B79/'Distance noise'!$B$6)*'Distance noise'!$F$5)*SQRT(('Distance noise'!$B$7/'Distance noise'!$B$9)*2*((2*B79/'Distance noise'!$B$6)+('Distance noise'!$B$13/'Distance noise'!$B$6*'Distance noise'!$B$8))*'Distance noise'!$F$5)/SQRT(2) -> 18.7 | F79: =('Distance noise'!$F$4*1000/4)/(2*'Distance noise'!$B$6)*2*'Distance noise'!$B$11/SQRT(2) -> 19.4 | G79: =SQRT((C79*C79)+(D79*D79)+(F79*F79))/5 -> 4.4 | H79: =SQRT((C79*C79)+(E79*E79)+(F79*F79))/5 -> 5.6 | J79: =B79 -> 1,500 | K79: =G79 -> 4.4 | L79: =H79 -> 5.6 | M79: =IF(('Distance noise'!$F$29-21)<$J79," ",IF(('Distance noise'!$F$26-20)>$J79," ",IF(('Distance noise'!$F$26-1)<$J79,0,1000))) -> 0 | N79: =IF(('Distance noise'!$B$13-20)>$J79," ",IF(('Distance noise'!$B$13-1)<$J79,0,1000)) -> 
A80: 76 | B80: =A80*20 -> 1,520 | C80: =('Distance noise'!$F$4*1000/4)/(2*B80/'Distance noise'!$F$10)/SQRT(2) -> 7.0 | D80: =('Distance noise'!$F$4*1000/4)/(('Distance noise'!$B$7/'Distance noise'!$B$9)*2*(B80/'Distance noise'!$B$6)*'Distance noise'!$F$5)*SQRT(('Distance noise'!$B$7/'Distance noise'!$B$9)*2*(2*B80/'Distance noise'!$B$6)*'Distance noise'!$F$5)/SQRT(2) -> 7.4 | E80: =('Distance noise'!$F$4*1000/4)/(('Distance noise'!$B$7/'Distance noise'!$B$9)*2*(B80/'Distance noise'!$B$6)*'Distance noise'!$F$5)*SQRT(('Distance noise'!$B$7/'Distance noise'!$B$9)*2*((2*B80/'Distance noise'!$B$6)+('Distance noise'!$B$13/'Distance noise'!$B$6*'Distance noise'!$B$8))*'Distance noise'!$F$5)/SQRT(2) -> 18.4 | F80: =('Distance noise'!$F$4*1000/4)/(2*'Distance noise'!$B$6)*2*'Distance noise'!$B$11/SQRT(2) -> 19.4 | G80: =SQRT((C80*C80)+(D80*D80)+(F80*F80))/5 -> 4.4 | H80: =SQRT((C80*C80)+(E80*E80)+(F80*F80))/5 -> 5.5 | J80: =B80 -> 1,520 | K80: =G80 -> 4.4 | L80: =H80 -> 5.5 | M80: =IF(('Distance noise'!$F$29-21)<$J80," ",IF(('Distance noise'!$F$26-20)>$J80," ",IF(('Distance noise'!$F$26-1)<$J80,0,1000))) -> 0 | N80: =IF(('Distance noise'!$B$13-20)>$J80," ",IF(('Distance noise'!$B$13-1)<$J80,0,1000)) -> 
A81: 77 | B81: =A81*20 -> 1,540 | C81: =('Distance noise'!$F$4*1000/4)/(2*B81/'Distance noise'!$F$10)/SQRT(2) -> 6.9 | D81: =('Distance noise'!$F$4*1000/4)/(('Distance noise'!$B$7/'Distance noise'!$B$9)*2*(B81/'Distance noise'!$B$6)*'Distance noise'!$F$5)*SQRT(('Distance noise'!$B$7/'Distance noise'!$B$9)*2*(2*B81/'Distance noise'!$B$6)*'Distance noise'!$F$5)/SQRT(2) -> 7.3 | E81: =('Distance noise'!$F$4*1000/4)/(('Distance noise'!$B$7/'Distance noise'!$B$9)*2*(B81/'Distance noise'!$B$6)*'Distance noise'!$F$5)*SQRT(('Distance noise'!$B$7/'Distance noise'!$B$9)*2*((2*B81/'Distance noise'!$B$6)+('Distance noise'!$B$13/'Distance noise'!$B$6*'Distance noise'!$B$8))*'Distance noise'!$F$5)/SQRT(2) -> 18.2 | F81: =('Distance noise'!$F$4*1000/4)/(2*'Distance noise'!$B$6)*2*'Distance noise'!$B$11/SQRT(2) -> 19.4 | G81: =SQRT((C81*C81)+(D81*D81)+(F81*F81))/5 -> 4.4 | H81: =SQRT((C81*C81)+(E81*E81)+(F81*F81))/5 -> 5.5 | J81: =B81 -> 1,540 | K81: =G81 -> 4.4 | L81: =H81 -> 5.5 | M81: =IF(('Distance noise'!$F$29-21)<$J81," ",IF(('Distance noise'!$F$26-20)>$J81," ",IF(('Distance noise'!$F$26-1)<$J81,0,1000))) -> 0 | N81: =IF(('Distance noise'!$B$13-20)>$J81," ",IF(('Distance noise'!$B$13-1)<$J81,0,1000)) -> 
A82: 78 | B82: =A82*20 -> 1,560 | C82: =('Distance noise'!$F$4*1000/4)/(2*B82/'Distance noise'!$F$10)/SQRT(2) -> 6.8 | D82: =('Distance noise'!$F$4*1000/4)/(('Distance noise'!$B$7/'Distance noise'!$B$9)*2*(B82/'Distance noise'!$B$6)*'Distance noise'!$F$5)*SQRT(('Distance noise'!$B$7/'Distance noise'!$B$9)*2*(2*B82/'Distance noise'!$B$6)*'Distance noise'!$F$5)/SQRT(2) -> 7.3 | E82: =('Distance noise'!$F$4*1000/4)/(('Distance noise'!$B$7/'Distance noise'!$B$9)*2*(B82/'Distance noise'!$B$6)*'Distance noise'!$F$5)*SQRT(('Distance noise'!$B$7/'Distance noise'!$B$9)*2*((2*B82/'Distance noise'!$B$6)+('Distance noise'!$B$13/'Distance noise'!$B$6*'Distance noise'!$B$8))*'Distance noise'!$F$5)/SQRT(2) -> 18.0 | F82: =('Distance noise'!$F$4*1000/4)/(2*'Distance noise'!$B$6)*2*'Distance noise'!$B$11/SQRT(2) -> 19.4 | G82: =SQRT((C82*C82)+(D82*D82)+(F82*F82))/5 -> 4.4 | H82: =SQRT((C82*C82)+(E82*E82)+(F82*F82))/5 -> 5.5 | J82: =B82 -> 1,560 | K82: =G82 -> 4.4 | L82: =H82 -> 5.5 | M82: =IF(('Distance noise'!$F$29-21)<$J82," ",IF(('Distance noise'!$F$26-20)>$J82," ",IF(('Distance noise'!$F$26-1)<$J82,0,1000))) -> 0 | N82: =IF(('Distance noise'!$B$13-20)>$J82," ",IF(('Distance noise'!$B$13-1)<$J82,0,1000)) -> 
A83: 79 | B83: =A83*20 -> 1,580 | C83: =('Distance noise'!$F$4*1000/4)/(2*B83/'Distance noise'!$F$10)/SQRT(2) -> 6.7 | D83: =('Distance noise'!$F$4*1000/4)/(('Distance noise'!$B$7/'Distance noise'!$B$9)*2*(B83/'Distance noise'!$B$6)*'Distance noise'!$F$5)*SQRT(('Distance noise'!$B$7/'Distance noise'!$B$9)*2*(2*B83/'Distance noise'!$B$6)*'Distance noise'!$F$5)/SQRT(2) -> 7.2 | E83: =('Distance noise'!$F$4*1000/4)/(('Distance noise'!$B$7/'Distance noise'!$B$9)*2*(B83/'Distance noise'!$B$6)*'Distance noise'!$F$5)*SQRT(('Distance noise'!$B$7/'Distance noise'!$B$9)*2*((2*B83/'Distance noise'!$B$6)+('Distance noise'!$B$13/'Distance noise'!$B$6*'Distance noise'!$B$8))*'Distance noise'!$F$5)/SQRT(2) -> 17.8 | F83: =('Distance noise'!$F$4*1000/4)/(2*'Distance noise'!$B$6)*2*'Distance noise'!$B$11/SQRT(2) -> 19.4 | G83: =SQRT((C83*C83)+(D83*D83)+(F83*F83))/5 -> 4.4 | H83: =SQRT((C83*C83)+(E83*E83)+(F83*F83))/5 -> 5.4 | J83: =B83 -> 1,580 | K83: =G83 -> 4.4 | L83: =H83 -> 5.4 | M83: =IF(('Distance noise'!$F$29-21)<$J83," ",IF(('Distance noise'!$F$26-20)>$J83," ",IF(('Distance noise'!$F$26-1)<$J83,0,1000))) -> 0 | N83: =IF(('Distance noise'!$B$13-20)>$J83," ",IF(('Distance noise'!$B$13-1)<$J83,0,1000)) -> 
A84: 80 | B84: =A84*20 -> 1,600 | C84: =('Distance noise'!$F$4*1000/4)/(2*B84/'Distance noise'!$F$10)/SQRT(2) -> 6.6 | D84: =('Distance noise'!$F$4*1000/4)/(('Distance noise'!$B$7/'Distance noise'!$B$9)*2*(B84/'Distance noise'!$B$6)*'Distance noise'!$F$5)*SQRT(('Distance noise'!$B$7/'Distance noise'!$B$9)*2*(2*B84/'Distance noise'!$B$6)*'Distance noise'!$F$5)/SQRT(2) -> 7.2 | E84: =('Distance noise'!$F$4*1000/4)/(('Distance noise'!$B$7/'Distance noise'!$B$9)*2*(B84/'Distance noise'!$B$6)*'Distance noise'!$F$5)*SQRT(('Distance noise'!$B$7/'Distance noise'!$B$9)*2*((2*B84/'Distance noise'!$B$6)+('Distance noise'!$B$13/'Distance noise'!$B$6*'Distance noise'!$B$8))*'Distance noise'!$F$5)/SQRT(2) -> 17.6 | F84: =('Distance noise'!$F$4*1000/4)/(2*'Distance noise'!$B$6)*2*'Distance noise'!$B$11/SQRT(2) -> 19.4 | G84: =SQRT((C84*C84)+(D84*D84)+(F84*F84))/5 -> 4.4 | H84: =SQRT((C84*C84)+(E84*E84)+(F84*F84))/5 -> 5.4 | J84: =B84 -> 1,600 | K84: =G84 -> 4.4 | L84: =H84 -> 5.4 | M84: =IF(('Distance noise'!$F$29-21)<$J84," ",IF(('Distance noise'!$F$26-20)>$J84," ",IF(('Distance noise'!$F$26-1)<$J84,0,1000))) -> 0 | N84: =IF(('Distance noise'!$B$13-20)>$J84," ",IF(('Distance noise'!$B$13-1)<$J84,0,1000)) -> 
A85: 81 | B85: =A85*20 -> 1,620 | C85: =('Distance noise'!$F$4*1000/4)/(2*B85/'Distance noise'!$F$10)/SQRT(2) -> 6.5 | D85: =('Distance noise'!$F$4*1000/4)/(('Distance noise'!$B$7/'Distance noise'!$B$9)*2*(B85/'Distance noise'!$B$6)*'Distance noise'!$F$5)*SQRT(('Distance noise'!$B$7/'Distance noise'!$B$9)*2*(2*B85/'Distance noise'!$B$6)*'Distance noise'!$F$5)/SQRT(2) -> 7.1 | E85: =('Distance noise'!$F$4*1000/4)/(('Distance noise'!$B$7/'Distance noise'!$B$9)*2*(B85/'Distance noise'!$B$6)*'Distance noise'!$F$5)*SQRT(('Distance noise'!$B$7/'Distance noise'!$B$9)*2*((2*B85/'Distance noise'!$B$6)+('Distance noise'!$B$13/'Distance noise'!$B$6*'Distance noise'!$B$8))*'Distance noise'!$F$5)/SQRT(2) -> 17.4 | F85: =('Distance noise'!$F$4*1000/4)/(2*'Distance noise'!$B$6)*2*'Distance noise'!$B$11/SQRT(2) -> 19.4 | G85: =SQRT((C85*C85)+(D85*D85)+(F85*F85))/5 -> 4.3 | H85: =SQRT((C85*C85)+(E85*E85)+(F85*F85))/5 -> 5.4 | J85: =B85 -> 1,620 | K85: =G85 -> 4.3 | L85: =H85 -> 5.4 | M85: =IF(('Distance noise'!$F$29-21)<$J85," ",IF(('Distance noise'!$F$26-20)>$J85," ",IF(('Distance noise'!$F$26-1)<$J85,0,1000))) -> 0 | N85: =IF(('Distance noise'!$B$13-20)>$J85," ",IF(('Distance noise'!$B$13-1)<$J85,0,1000)) -> 
A86: 82 | B86: =A86*20 -> 1,640 | C86: =('Distance noise'!$F$4*1000/4)/(2*B86/'Distance noise'!$F$10)/SQRT(2) -> 6.5 | D86: =('Distance noise'!$F$4*1000/4)/(('Distance noise'!$B$7/'Distance noise'!$B$9)*2*(B86/'Distance noise'!$B$6)*'Distance noise'!$F$5)*SQRT(('Distance noise'!$B$7/'Distance noise'!$B$9)*2*(2*B86/'Distance noise'!$B$6)*'Distance noise'!$F$5)/SQRT(2) -> 7.1 | E86: =('Distance noise'!$F$4*1000/4)/(('Distance noise'!$B$7/'Distance noise'!$B$9)*2*(B86/'Distance noise'!$B$6)*'Distance noise'!$F$5)*SQRT(('Distance noise'!$B$7/'Distance noise'!$B$9)*2*((2*B86/'Distance noise'!$B$6)+('Distance noise'!$B$13/'Distance noise'!$B$6*'Distance noise'!$B$8))*'Distance noise'!$F$5)/SQRT(2) -> 17.2 | F86: =('Distance noise'!$F$4*1000/4)/(2*'Distance noise'!$B$6)*2*'Distance noise'!$B$11/SQRT(2) -> 19.4 | G86: =SQRT((C86*C86)+(D86*D86)+(F86*F86))/5 -> 4.3 | H86: =SQRT((C86*C86)+(E86*E86)+(F86*F86))/5 -> 5.3 | J86: =B86 -> 1,640 | K86: =G86 -> 4.3 | L86: =H86 -> 5.3 | M86: =IF(('Distance noise'!$F$29-21)<$J86," ",IF(('Distance noise'!$F$26-20)>$J86," ",IF(('Distance noise'!$F$26-1)<$J86,0,1000))) -> 0 | N86: =IF(('Distance noise'!$B$13-20)>$J86," ",IF(('Distance noise'!$B$13-1)<$J86,0,1000)) -> 
A87: 83 | B87: =A87*20 -> 1,660 | C87: =('Distance noise'!$F$4*1000/4)/(2*B87/'Distance noise'!$F$10)/SQRT(2) -> 6.4 | D87: =('Distance noise'!$F$4*1000/4)/(('Distance noise'!$B$7/'Distance noise'!$B$9)*2*(B87/'Distance noise'!$B$6)*'Distance noise'!$F$5)*SQRT(('Distance noise'!$B$7/'Distance noise'!$B$9)*2*(2*B87/'Distance noise'!$B$6)*'Distance noise'!$F$5)/SQRT(2) -> 7.1 | E87: =('Distance noise'!$F$4*1000/4)/(('Distance noise'!$B$7/'Distance noise'!$B$9)*2*(B87/'Distance noise'!$B$6)*'Distance noise'!$F$5)*SQRT(('Distance noise'!$B$7/'Distance noise'!$B$9)*2*((2*B87/'Distance noise'!$B$6)+('Distance noise'!$B$13/'Distance noise'!$B$6*'Distance noise'!$B$8))*'Distance noise'!$F$5)/SQRT(2) -> 17.0 | F87: =('Distance noise'!$F$4*1000/4)/(2*'Distance noise'!$B$6)*2*'Distance noise'!$B$11/SQRT(2) -> 19.4 | G87: =SQRT((C87*C87)+(D87*D87)+(F87*F87))/5 -> 4.3 | H87: =SQRT((C87*C87)+(E87*E87)+(F87*F87))/5 -> 5.3 | J87: =B87 -> 1,660 | K87: =G87 -> 4.3 | L87: =H87 -> 5.3 | M87: =IF(('Distance noise'!$F$29-21)<$J87," ",IF(('Distance noise'!$F$26-20)>$J87," ",IF(('Distance noise'!$F$26-1)<$J87,0,1000))) -> 0 | N87: =IF(('Distance noise'!$B$13-20)>$J87," ",IF(('Distance noise'!$B$13-1)<$J87,0,1000)) -> 
A88: 84 | B88: =A88*20 -> 1,680 | C88: =('Distance noise'!$F$4*1000/4)/(2*B88/'Distance noise'!$F$10)/SQRT(2) -> 6.3 | D88: =('Distance noise'!$F$4*1000/4)/(('Distance noise'!$B$7/'Distance noise'!$B$9)*2*(B88/'Distance noise'!$B$6)*'Distance noise'!$F$5)*SQRT(('Distance noise'!$B$7/'Distance noise'!$B$9)*2*(2*B88/'Distance noise'!$B$6)*'Distance noise'!$F$5)/SQRT(2) -> 7.0 | E88: =('Distance noise'!$F$4*1000/4)/(('Distance noise'!$B$7/'Distance noise'!$B$9)*2*(B88/'Distance noise'!$B$6)*'Distance noise'!$F$5)*SQRT(('Distance noise'!$B$7/'Distance noise'!$B$9)*2*((2*B88/'Distance noise'!$B$6)+('Distance noise'!$B$13/'Distance noise'!$B$6*'Distance noise'!$B$8))*'Distance noise'!$F$5)/SQRT(2) -> 16.8 | F88: =('Distance noise'!$F$4*1000/4)/(2*'Distance noise'!$B$6)*2*'Distance noise'!$B$11/SQRT(2) -> 19.4 | G88: =SQRT((C88*C88)+(D88*D88)+(F88*F88))/5 -> 4.3 | H88: =SQRT((C88*C88)+(E88*E88)+(F88*F88))/5 -> 5.3 | J88: =B88 -> 1,680 | K88: =G88 -> 4.3 | L88: =H88 -> 5.3 | M88: =IF(('Distance noise'!$F$29-21)<$J88," ",IF(('Distance noise'!$F$26-20)>$J88," ",IF(('Distance noise'!$F$26-1)<$J88,0,1000))) -> 0 | N88: =IF(('Distance noise'!$B$13-20)>$J88," ",IF(('Distance noise'!$B$13-1)<$J88,0,1000)) -> 
A89: 85 | B89: =A89*20 -> 1,700 | C89: =('Distance noise'!$F$4*1000/4)/(2*B89/'Distance noise'!$F$10)/SQRT(2) -> 6.2 | D89: =('Distance noise'!$F$4*1000/4)/(('Distance noise'!$B$7/'Distance noise'!$B$9)*2*(B89/'Distance noise'!$B$6)*'Distance noise'!$F$5)*SQRT(('Distance noise'!$B$7/'Distance noise'!$B$9)*2*(2*B89/'Distance noise'!$B$6)*'Distance noise'!$F$5)/SQRT(2) -> 7.0 | E89: =('Distance noise'!$F$4*1000/4)/(('Distance noise'!$B$7/'Distance noise'!$B$9)*2*(B89/'Distance noise'!$B$6)*'Distance noise'!$F$5)*SQRT(('Distance noise'!$B$7/'Distance noise'!$B$9)*2*((2*B89/'Distance noise'!$B$6)+('Distance noise'!$B$13/'Distance noise'!$B$6*'Distance noise'!$B$8))*'Distance noise'!$F$5)/SQRT(2) -> 16.6 | F89: =('Distance noise'!$F$4*1000/4)/(2*'Distance noise'!$B$6)*2*'Distance noise'!$B$11/SQRT(2) -> 19.4 | G89: =SQRT((C89*C89)+(D89*D89)+(F89*F89))/5 -> 4.3 | H89: =SQRT((C89*C89)+(E89*E89)+(F89*F89))/5 -> 5.3 | J89: =B89 -> 1,700 | K89: =G89 -> 4.3 | L89: =H89 -> 5.3 | M89: =IF(('Distance noise'!$F$29-21)<$J89," ",IF(('Distance noise'!$F$26-20)>$J89," ",IF(('Distance noise'!$F$26-1)<$J89,0,1000))) -> 0 | N89: =IF(('Distance noise'!$B$13-20)>$J89," ",IF(('Distance noise'!$B$13-1)<$J89,0,1000)) -> 
A90: 86 | B90: =A90*20 -> 1,720 | C90: =('Distance noise'!$F$4*1000/4)/(2*B90/'Distance noise'!$F$10)/SQRT(2) -> 6.2 | D90: =('Distance noise'!$F$4*1000/4)/(('Distance noise'!$B$7/'Distance noise'!$B$9)*2*(B90/'Distance noise'!$B$6)*'Distance noise'!$F$5)*SQRT(('Distance noise'!$B$7/'Distance noise'!$B$9)*2*(2*B90/'Distance noise'!$B$6)*'Distance noise'!$F$5)/SQRT(2) -> 6.9 | E90: =('Distance noise'!$F$4*1000/4)/(('Distance noise'!$B$7/'Distance noise'!$B$9)*2*(B90/'Distance noise'!$B$6)*'Distance noise'!$F$5)*SQRT(('Distance noise'!$B$7/'Distance noise'!$B$9)*2*((2*B90/'Distance noise'!$B$6)+('Distance noise'!$B$13/'Distance noise'!$B$6*'Distance noise'!$B$8))*'Distance noise'!$F$5)/SQRT(2) -> 16.5 | F90: =('Distance noise'!$F$4*1000/4)/(2*'Distance noise'!$B$6)*2*'Distance noise'!$B$11/SQRT(2) -> 19.4 | G90: =SQRT((C90*C90)+(D90*D90)+(F90*F90))/5 -> 4.3 | H90: =SQRT((C90*C90)+(E90*E90)+(F90*F90))/5 -> 5.2 | J90: =B90 -> 1,720 | K90: =G90 -> 4.3 | L90: =H90 -> 5.2 | M90: =IF(('Distance noise'!$F$29-21)<$J90," ",IF(('Distance noise'!$F$26-20)>$J90," ",IF(('Distance noise'!$F$26-1)<$J90,0,1000))) -> 0 | N90: =IF(('Distance noise'!$B$13-20)>$J90," ",IF(('Distance noise'!$B$13-1)<$J90,0,1000)) -> 
A91: 87 | B91: =A91*20 -> 1,740 | C91: =('Distance noise'!$F$4*1000/4)/(2*B91/'Distance noise'!$F$10)/SQRT(2) -> 6.1 | D91: =('Distance noise'!$F$4*1000/4)/(('Distance noise'!$B$7/'Distance noise'!$B$9)*2*(B91/'Distance noise'!$B$6)*'Distance noise'!$F$5)*SQRT(('Distance noise'!$B$7/'Distance noise'!$B$9)*2*(2*B91/'Distance noise'!$B$6)*'Distance noise'!$F$5)/SQRT(2) -> 6.9 | E91: =('Distance noise'!$F$4*1000/4)/(('Distance noise'!$B$7/'Distance noise'!$B$9)*2*(B91/'Distance noise'!$B$6)*'Distance noise'!$F$5)*SQRT(('Distance noise'!$B$7/'Distance noise'!$B$9)*2*((2*B91/'Distance noise'!$B$6)+('Distance noise'!$B$13/'Distance noise'!$B$6*'Distance noise'!$B$8))*'Distance noise'!$F$5)/SQRT(2) -> 16.3 | F91: =('Distance noise'!$F$4*1000/4)/(2*'Distance noise'!$B$6)*2*'Distance noise'!$B$11/SQRT(2) -> 19.4 | G91: =SQRT((C91*C91)+(D91*D91)+(F91*F91))/5 -> 4.3 | H91: =SQRT((C91*C91)+(E91*E91)+(F91*F91))/5 -> 5.2 | J91: =B91 -> 1,740 | K91: =G91 -> 4.3 | L91: =H91 -> 5.2 | M91: =IF(('Distance noise'!$F$29-21)<$J91," ",IF(('Distance noise'!$F$26-20)>$J91," ",IF(('Distance noise'!$F$26-1)<$J91,0,1000))) -> 0 | N91: =IF(('Distance noise'!$B$13-20)>$J91," ",IF(('Distance noise'!$B$13-1)<$J91,0,1000)) -> 
A92: 88 | B92: =A92*20 -> 1,760 | C92: =('Distance noise'!$F$4*1000/4)/(2*B92/'Distance noise'!$F$10)/SQRT(2) -> 6.0 | D92: =('Distance noise'!$F$4*1000/4)/(('Distance noise'!$B$7/'Distance noise'!$B$9)*2*(B92/'Distance noise'!$B$6)*'Distance noise'!$F$5)*SQRT(('Distance noise'!$B$7/'Distance noise'!$B$9)*2*(2*B92/'Distance noise'!$B$6)*'Distance noise'!$F$5)/SQRT(2) -> 6.8 | E92: =('Distance noise'!$F$4*1000/4)/(('Distance noise'!$B$7/'Distance noise'!$B$9)*2*(B92/'Distance noise'!$B$6)*'Distance noise'!$F$5)*SQRT(('Distance noise'!$B$7/'Distance noise'!$B$9)*2*((2*B92/'Distance noise'!$B$6)+('Distance noise'!$B$13/'Distance noise'!$B$6*'Distance noise'!$B$8))*'Distance noise'!$F$5)/SQRT(2) -> 16.1 | F92: =('Distance noise'!$F$4*1000/4)/(2*'Distance noise'!$B$6)*2*'Distance noise'!$B$11/SQRT(2) -> 19.4 | G92: =SQRT((C92*C92)+(D92*D92)+(F92*F92))/5 -> 4.3 | H92: =SQRT((C92*C92)+(E92*E92)+(F92*F92))/5 -> 5.2 | J92: =B92 -> 1,760 | K92: =G92 -> 4.3 | L92: =H92 -> 5.2 | M92: =IF(('Distance noise'!$F$29-21)<$J92," ",IF(('Distance noise'!$F$26-20)>$J92," ",IF(('Distance noise'!$F$26-1)<$J92,0,1000))) -> 0 | N92: =IF(('Distance noise'!$B$13-20)>$J92," ",IF(('Distance noise'!$B$13-1)<$J92,0,1000)) -> 
A93: 89 | B93: =A93*20 -> 1,780 | C93: =('Distance noise'!$F$4*1000/4)/(2*B93/'Distance noise'!$F$10)/SQRT(2) -> 6.0 | D93: =('Distance noise'!$F$4*1000/4)/(('Distance noise'!$B$7/'Distance noise'!$B$9)*2*(B93/'Distance noise'!$B$6)*'Distance noise'!$F$5)*SQRT(('Distance noise'!$B$7/'Distance noise'!$B$9)*2*(2*B93/'Distance noise'!$B$6)*'Distance noise'!$F$5)/SQRT(2) -> 6.8 | E93: =('Distance noise'!$F$4*1000/4)/(('Distance noise'!$B$7/'Distance noise'!$B$9)*2*(B93/'Distance noise'!$B$6)*'Distance noise'!$F$5)*SQRT(('Distance noise'!$B$7/'Distance noise'!$B$9)*2*((2*B93/'Distance noise'!$B$6)+('Distance noise'!$B$13/'Distance noise'!$B$6*'Distance noise'!$B$8))*'Distance noise'!$F$5)/SQRT(2) -> 16.0 | F93: =('Distance noise'!$F$4*1000/4)/(2*'Distance noise'!$B$6)*2*'Distance noise'!$B$11/SQRT(2) -> 19.4 | G93: =SQRT((C93*C93)+(D93*D93)+(F93*F93))/5 -> 4.3 | H93: =SQRT((C93*C93)+(E93*E93)+(F93*F93))/5 -> 5.2 | J93: =B93 -> 1,780 | K93: =G93 -> 4.3 | L93: =H93 -> 5.2 | M93: =IF(('Distance noise'!$F$29-21)<$J93," ",IF(('Distance noise'!$F$26-20)>$J93," ",IF(('Distance noise'!$F$26-1)<$J93,0,1000))) -> 0 | N93: =IF(('Distance noise'!$B$13-20)>$J93," ",IF(('Distance noise'!$B$13-1)<$J93,0,1000)) -> 
A94: 90 | B94: =A94*20 -> 1,800 | C94: =('Distance noise'!$F$4*1000/4)/(2*B94/'Distance noise'!$F$10)/SQRT(2) -> 5.9 | D94: =('Distance noise'!$F$4*1000/4)/(('Distance noise'!$B$7/'Distance noise'!$B$9)*2*(B94/'Distance noise'!$B$6)*'Distance noise'!$F$5)*SQRT(('Distance noise'!$B$7/'Distance noise'!$B$9)*2*(2*B94/'Distance noise'!$B$6)*'Distance noise'!$F$5)/SQRT(2) -> 6.8 | E94: =('Distance noise'!$F$4*1000/4)/(('Distance noise'!$B$7/'Distance noise'!$B$9)*2*(B94/'Distance noise'!$B$6)*'Distance noise'!$F$5)*SQRT(('Distance noise'!$B$7/'Distance noise'!$B$9)*2*((2*B94/'Distance noise'!$B$6)+('Distance noise'!$B$13/'Distance noise'!$B$6*'Distance noise'!$B$8))*'Distance noise'!$F$5)/SQRT(2) -> 15.8 | F94: =('Distance noise'!$F$4*1000/4)/(2*'Distance noise'!$B$6)*2*'Distance noise'!$B$11/SQRT(2) -> 19.4 | G94: =SQRT((C94*C94)+(D94*D94)+(F94*F94))/5 -> 4.3 | H94: =SQRT((C94*C94)+(E94*E94)+(F94*F94))/5 -> 5.1 | J94: =B94 -> 1,800 | K94: =G94 -> 4.3 | L94: =H94 -> 5.1 | M94: =IF(('Distance noise'!$F$29-21)<$J94," ",IF(('Distance noise'!$F$26-20)>$J94," ",IF(('Distance noise'!$F$26-1)<$J94,0,1000))) -> 0 | N94: =IF(('Distance noise'!$B$13-20)>$J94," ",IF(('Distance noise'!$B$13-1)<$J94,0,1000)) -> 
A95: 91 | B95: =A95*20 -> 1,820 | C95: =('Distance noise'!$F$4*1000/4)/(2*B95/'Distance noise'!$F$10)/SQRT(2) -> 5.8 | D95: =('Distance noise'!$F$4*1000/4)/(('Distance noise'!$B$7/'Distance noise'!$B$9)*2*(B95/'Distance noise'!$B$6)*'Distance noise'!$F$5)*SQRT(('Distance noise'!$B$7/'Distance noise'!$B$9)*2*(2*B95/'Distance noise'!$B$6)*'Distance noise'!$F$5)/SQRT(2) -> 6.7 | E95: =('Distance noise'!$F$4*1000/4)/(('Distance noise'!$B$7/'Distance noise'!$B$9)*2*(B95/'Distance noise'!$B$6)*'Distance noise'!$F$5)*SQRT(('Distance noise'!$B$7/'Distance noise'!$B$9)*2*((2*B95/'Distance noise'!$B$6)+('Distance noise'!$B$13/'Distance noise'!$B$6*'Distance noise'!$B$8))*'Distance noise'!$F$5)/SQRT(2) -> 15.6 | F95: =('Distance noise'!$F$4*1000/4)/(2*'Distance noise'!$B$6)*2*'Distance noise'!$B$11/SQRT(2) -> 19.4 | G95: =SQRT((C95*C95)+(D95*D95)+(F95*F95))/5 -> 4.3 | H95: =SQRT((C95*C95)+(E95*E95)+(F95*F95))/5 -> 5.1 | J95: =B95 -> 1,820 | K95: =G95 -> 4.3 | L95: =H95 -> 5.1 | M95: =IF(('Distance noise'!$F$29-21)<$J95," ",IF(('Distance noise'!$F$26-20)>$J95," ",IF(('Distance noise'!$F$26-1)<$J95,0,1000))) -> 0 | N95: =IF(('Distance noise'!$B$13-20)>$J95," ",IF(('Distance noise'!$B$13-1)<$J95,0,1000)) -> 
A96: 92 | B96: =A96*20 -> 1,840 | C96: =('Distance noise'!$F$4*1000/4)/(2*B96/'Distance noise'!$F$10)/SQRT(2) -> 5.8 | D96: =('Distance noise'!$F$4*1000/4)/(('Distance noise'!$B$7/'Distance noise'!$B$9)*2*(B96/'Distance noise'!$B$6)*'Distance noise'!$F$5)*SQRT(('Distance noise'!$B$7/'Distance noise'!$B$9)*2*(2*B96/'Distance noise'!$B$6)*'Distance noise'!$F$5)/SQRT(2) -> 6.7 | E96: =('Distance noise'!$F$4*1000/4)/(('Distance noise'!$B$7/'Distance noise'!$B$9)*2*(B96/'Distance noise'!$B$6)*'Distance noise'!$F$5)*SQRT(('Distance noise'!$B$7/'Distance noise'!$B$9)*2*((2*B96/'Distance noise'!$B$6)+('Distance noise'!$B$13/'Distance noise'!$B$6*'Distance noise'!$B$8))*'Distance noise'!$F$5)/SQRT(2) -> 15.5 | F96: =('Distance noise'!$F$4*1000/4)/(2*'Distance noise'!$B$6)*2*'Distance noise'!$B$11/SQRT(2) -> 19.4 | G96: =SQRT((C96*C96)+(D96*D96)+(F96*F96))/5 -> 4.3 | H96: =SQRT((C96*C96)+(E96*E96)+(F96*F96))/5 -> 5.1 | J96: =B96 -> 1,840 | K96: =G96 -> 4.3 | L96: =H96 -> 5.1 | M96: =IF(('Distance noise'!$F$29-21)<$J96," ",IF(('Distance noise'!$F$26-20)>$J96," ",IF(('Distance noise'!$F$26-1)<$J96,0,1000))) -> 0 | N96: =IF(('Distance noise'!$B$13-20)>$J96," ",IF(('Distance noise'!$B$13-1)<$J96,0,1000)) -> 
A97: 93 | B97: =A97*20 -> 1,860 | C97: =('Distance noise'!$F$4*1000/4)/(2*B97/'Distance noise'!$F$10)/SQRT(2) -> 5.7 | D97: =('Distance noise'!$F$4*1000/4)/(('Distance noise'!$B$7/'Distance noise'!$B$9)*2*(B97/'Distance noise'!$B$6)*'Distance noise'!$F$5)*SQRT(('Distance noise'!$B$7/'Distance noise'!$B$9)*2*(2*B97/'Distance noise'!$B$6)*'Distance noise'!$F$5)/SQRT(2) -> 6.7 | E97: =('Distance noise'!$F$4*1000/4)/(('Distance noise'!$B$7/'Distance noise'!$B$9)*2*(B97/'Distance noise'!$B$6)*'Distance noise'!$F$5)*SQRT(('Distance noise'!$B$7/'Distance noise'!$B$9)*2*((2*B97/'Distance noise'!$B$6)+('Distance noise'!$B$13/'Distance noise'!$B$6*'Distance noise'!$B$8))*'Distance noise'!$F$5)/SQRT(2) -> 15.3 | F97: =('Distance noise'!$F$4*1000/4)/(2*'Distance noise'!$B$6)*2*'Distance noise'!$B$11/SQRT(2) -> 19.4 | G97: =SQRT((C97*C97)+(D97*D97)+(F97*F97))/5 -> 4.3 | H97: =SQRT((C97*C97)+(E97*E97)+(F97*F97))/5 -> 5.1 | J97: =B97 -> 1,860 | K97: =G97 -> 4.3 | L97: =H97 -> 5.1 | M97: =IF(('Distance noise'!$F$29-21)<$J97," ",IF(('Distance noise'!$F$26-20)>$J97," ",IF(('Distance noise'!$F$26-1)<$J97,0,1000))) -> 0 | N97: =IF(('Distance noise'!$B$13-20)>$J97," ",IF(('Distance noise'!$B$13-1)<$J97,0,1000)) -> 
A98: 94 | B98: =A98*20 -> 1,880 | C98: =('Distance noise'!$F$4*1000/4)/(2*B98/'Distance noise'!$F$10)/SQRT(2) -> 5.6 | D98: =('Distance noise'!$F$4*1000/4)/(('Distance noise'!$B$7/'Distance noise'!$B$9)*2*(B98/'Distance noise'!$B$6)*'Distance noise'!$F$5)*SQRT(('Distance noise'!$B$7/'Distance noise'!$B$9)*2*(2*B98/'Distance noise'!$B$6)*'Distance noise'!$F$5)/SQRT(2) -> 6.6 | E98: =('Distance noise'!$F$4*1000/4)/(('Distance noise'!$B$7/'Distance noise'!$B$9)*2*(B98/'Distance noise'!$B$6)*'Distance noise'!$F$5)*SQRT(('Distance noise'!$B$7/'Distance noise'!$B$9)*2*((2*B98/'Distance noise'!$B$6)+('Distance noise'!$B$13/'Distance noise'!$B$6*'Distance noise'!$B$8))*'Distance noise'!$F$5)/SQRT(2) -> 15.2 | F98: =('Distance noise'!$F$4*1000/4)/(2*'Distance noise'!$B$6)*2*'Distance noise'!$B$11/SQRT(2) -> 19.4 | G98: =SQRT((C98*C98)+(D98*D98)+(F98*F98))/5 -> 4.3 | H98: =SQRT((C98*C98)+(E98*E98)+(F98*F98))/5 -> 5.1 | J98: =B98 -> 1,880 | K98: =G98 -> 4.3 | L98: =H98 -> 5.1 | M98: =IF(('Distance noise'!$F$29-21)<$J98," ",IF(('Distance noise'!$F$26-20)>$J98," ",IF(('Distance noise'!$F$26-1)<$J98,0,1000))) -> 0 | N98: =IF(('Distance noise'!$B$13-20)>$J98," ",IF(('Distance noise'!$B$13-1)<$J98,0,1000)) -> 
A99: 95 | B99: =A99*20 -> 1,900 | C99: =('Distance noise'!$F$4*1000/4)/(2*B99/'Distance noise'!$F$10)/SQRT(2) -> 5.6 | D99: =('Distance noise'!$F$4*1000/4)/(('Distance noise'!$B$7/'Distance noise'!$B$9)*2*(B99/'Distance noise'!$B$6)*'Distance noise'!$F$5)*SQRT(('Distance noise'!$B$7/'Distance noise'!$B$9)*2*(2*B99/'Distance noise'!$B$6)*'Distance noise'!$F$5)/SQRT(2) -> 6.6 | E99: =('Distance noise'!$F$4*1000/4)/(('Distance noise'!$B$7/'Distance noise'!$B$9)*2*(B99/'Distance noise'!$B$6)*'Distance noise'!$F$5)*SQRT(('Distance noise'!$B$7/'Distance noise'!$B$9)*2*((2*B99/'Distance noise'!$B$6)+('Distance noise'!$B$13/'Distance noise'!$B$6*'Distance noise'!$B$8))*'Distance noise'!$F$5)/SQRT(2) -> 15.0 | F99: =('Distance noise'!$F$4*1000/4)/(2*'Distance noise'!$B$6)*2*'Distance noise'!$B$11/SQRT(2) -> 19.4 | G99: =SQRT((C99*C99)+(D99*D99)+(F99*F99))/5 -> 4.3 | H99: =SQRT((C99*C99)+(E99*E99)+(F99*F99))/5 -> 5.0 | J99: =B99 -> 1,900 | K99: =G99 -> 4.3 | L99: =H99 -> 5.0 | M99: =IF(('Distance noise'!$F$29-21)<$J99," ",IF(('Distance noise'!$F$26-20)>$J99," ",IF(('Distance noise'!$F$26-1)<$J99,0,1000))) -> 0 | N99: =IF(('Distance noise'!$B$13-20)>$J99," ",IF(('Distance noise'!$B$13-1)<$J99,0,1000)) -> 
A100: 96 | B100: =A100*20 -> 1,920 | C100: =('Distance noise'!$F$4*1000/4)/(2*B100/'Distance noise'!$F$10)/SQRT(2) -> 5.5 | D100: =('Distance noise'!$F$4*1000/4)/(('Distance noise'!$B$7/'Distance noise'!$B$9)*2*(B100/'Distance noise'!$B$6)*'Distance noise'!$F$5)*SQRT(('Distance noise'!$B$7/'Distance noise'!$B$9)*2*(2*B100/'Distance noise'!$B$6)*'Distance noise'!$F$5)/SQRT(2) -> 6.6 | E100: =('Distance noise'!$F$4*1000/4)/(('Distance noise'!$B$7/'Distance noise'!$B$9)*2*(B100/'Distance noise'!$B$6)*'Distance noise'!$F$5)*SQRT(('Distance noise'!$B$7/'Distance noise'!$B$9)*2*((2*B100/'Distance noise'!$B$6)+('Distance noise'!$B$13/'Distance noise'!$B$6*'Distance noise'!$B$8))*'Distance noise'!$F$5)/SQRT(2) -> 14.9 | F100: =('Distance noise'!$F$4*1000/4)/(2*'Distance noise'!$B$6)*2*'Distance noise'!$B$11/SQRT(2) -> 19.4 | G100: =SQRT((C100*C100)+(D100*D100)+(F100*F100))/5 -> 4.2 | H100: =SQRT((C100*C100)+(E100*E100)+(F100*F100))/5 -> 5.0 | J100: =B100 -> 1,920 | K100: =G100 -> 4.2 | L100: =H100 -> 5.0 | M100: =IF(('Distance noise'!$F$29-21)<$J100," ",IF(('Distance noise'!$F$26-20)>$J100," ",IF(('Distance noise'!$F$26-1)<$J100,0,1000))) -> 0 | N100: =IF(('Distance noise'!$B$13-20)>$J100," ",IF(('Distance noise'!$B$13-1)<$J100,0,1000)) -> 
A101: 97 | B101: =A101*20 -> 1,940 | C101: =('Distance noise'!$F$4*1000/4)/(2*B101/'Distance noise'!$F$10)/SQRT(2) -> 5.5 | D101: =('Distance noise'!$F$4*1000/4)/(('Distance noise'!$B$7/'Distance noise'!$B$9)*2*(B101/'Distance noise'!$B$6)*'Distance noise'!$F$5)*SQRT(('Distance noise'!$B$7/'Distance noise'!$B$9)*2*(2*B101/'Distance noise'!$B$6)*'Distance noise'!$F$5)/SQRT(2) -> 6.5 | E101: =('Distance noise'!$F$4*1000/4)/(('Distance noise'!$B$7/'Distance noise'!$B$9)*2*(B101/'Distance noise'!$B$6)*'Distance noise'!$F$5)*SQRT(('Distance noise'!$B$7/'Distance noise'!$B$9)*2*((2*B101/'Distance noise'!$B$6)+('Distance noise'!$B$13/'Distance noise'!$B$6*'Distance noise'!$B$8))*'Distance noise'!$F$5)/SQRT(2) -> 14.8 | F101: =('Distance noise'!$F$4*1000/4)/(2*'Distance noise'!$B$6)*2*'Distance noise'!$B$11/SQRT(2) -> 19.4 | G101: =SQRT((C101*C101)+(D101*D101)+(F101*F101))/5 -> 4.2 | H101: =SQRT((C101*C101)+(E101*E101)+(F101*F101))/5 -> 5.0 | J101: =B101 -> 1,940 | K101: =G101 -> 4.2 | L101: =H101 -> 5.0 | M101: =IF(('Distance noise'!$F$29-21)<$J101," ",IF(('Distance noise'!$F$26-20)>$J101," ",IF(('Distance noise'!$F$26-1)<$J101,0,1000))) -> 0 | N101: =IF(('Distance noise'!$B$13-20)>$J101," ",IF(('Distance noise'!$B$13-1)<$J101,0,1000)) -> 
A102: 98 | B102: =A102*20 -> 1,960 | C102: =('Distance noise'!$F$4*1000/4)/(2*B102/'Distance noise'!$F$10)/SQRT(2) -> 5.4 | D102: =('Distance noise'!$F$4*1000/4)/(('Distance noise'!$B$7/'Distance noise'!$B$9)*2*(B102/'Distance noise'!$B$6)*'Distance noise'!$F$5)*SQRT(('Distance noise'!$B$7/'Distance noise'!$B$9)*2*(2*B102/'Distance noise'!$B$6)*'Distance noise'!$F$5)/SQRT(2) -> 6.5 | E102: =('Distance noise'!$F$4*1000/4)/(('Distance noise'!$B$7/'Distance noise'!$B$9)*2*(B102/'Distance noise'!$B$6)*'Distance noise'!$F$5)*SQRT(('Distance noise'!$B$7/'Distance noise'!$B$9)*2*((2*B102/'Distance noise'!$B$6)+('Distance noise'!$B$13/'Distance noise'!$B$6*'Distance noise'!$B$8))*'Distance noise'!$F$5)/SQRT(2) -> 14.6 | F102: =('Distance noise'!$F$4*1000/4)/(2*'Distance noise'!$B$6)*2*'Distance noise'!$B$11/SQRT(2) -> 19.4 | G102: =SQRT((C102*C102)+(D102*D102)+(F102*F102))/5 -> 4.2 | H102: =SQRT((C102*C102)+(E102*E102)+(F102*F102))/5 -> 5.0 | J102: =B102 -> 1,960 | K102: =G102 -> 4.2 | L102: =H102 -> 5.0 | M102: =IF(('Distance noise'!$F$29-21)<$J102," ",IF(('Distance noise'!$F$26-20)>$J102," ",IF(('Distance noise'!$F$26-1)<$J102,0,1000))) -> 0 | N102: =IF(('Distance noise'!$B$13-20)>$J102," ",IF(('Distance noise'!$B$13-1)<$J102,0,1000)) -> 
A103: 99 | B103: =A103*20 -> 1,980 | C103: =('Distance noise'!$F$4*1000/4)/(2*B103/'Distance noise'!$F$10)/SQRT(2) -> 5.4 | D103: =('Distance noise'!$F$4*1000/4)/(('Distance noise'!$B$7/'Distance noise'!$B$9)*2*(B103/'Distance noise'!$B$6)*'Distance noise'!$F$5)*SQRT(('Distance noise'!$B$7/'Distance noise'!$B$9)*2*(2*B103/'Distance noise'!$B$6)*'Distance noise'!$F$5)/SQRT(2) -> 6.5 | E103: =('Distance noise'!$F$4*1000/4)/(('Distance noise'!$B$7/'Distance noise'!$B$9)*2*(B103/'Distance noise'!$B$6)*'Distance noise'!$F$5)*SQRT(('Distance noise'!$B$7/'Distance noise'!$B$9)*2*((2*B103/'Distance noise'!$B$6)+('Distance noise'!$B$13/'Distance noise'!$B$6*'Distance noise'!$B$8))*'Distance noise'!$F$5)/SQRT(2) -> 14.5 | F103: =('Distance noise'!$F$4*1000/4)/(2*'Distance noise'!$B$6)*2*'Distance noise'!$B$11/SQRT(2) -> 19.4 | G103: =SQRT((C103*C103)+(D103*D103)+(F103*F103))/5 -> 4.2 | H103: =SQRT((C103*C103)+(E103*E103)+(F103*F103))/5 -> 5.0 | J103: =B103 -> 1,980 | K103: =G103 -> 4.2 | L103: =H103 -> 5.0 | M103: =IF(('Distance noise'!$F$29-21)<$J103," ",IF(('Distance noise'!$F$26-20)>$J103," ",IF(('Distance noise'!$F$26-1)<$J103,0,1000))) ->  | N103: =IF(('Distance noise'!$B$13-20)>$J103," ",IF(('Distance noise'!$B$13-1)<$J103,0,1000)) -> 1,000
A104: 100 | B104: =A104*20 -> 2,000 | C104: =('Distance noise'!$F$4*1000/4)/(2*B104/'Distance noise'!$F$10)/SQRT(2) -> 5.3 | D104: =('Distance noise'!$F$4*1000/4)/(('Distance noise'!$B$7/'Distance noise'!$B$9)*2*(B104/'Distance noise'!$B$6)*'Distance noise'!$F$5)*SQRT(('Distance noise'!$B$7/'Distance noise'!$B$9)*2*(2*B104/'Distance noise'!$B$6)*'Distance noise'!$F$5)/SQRT(2) -> 6.4 | E104: =('Distance noise'!$F$4*1000/4)/(('Distance noise'!$B$7/'Distance noise'!$B$9)*2*(B104/'Distance noise'!$B$6)*'Distance noise'!$F$5)*SQRT(('Distance noise'!$B$7/'Distance noise'!$B$9)*2*((2*B104/'Distance noise'!$B$6)+('Distance noise'!$B$13/'Distance noise'!$B$6*'Distance noise'!$B$8))*'Distance noise'!$F$5)/SQRT(2) -> 14.4 | F104: =('Distance noise'!$F$4*1000/4)/(2*'Distance noise'!$B$6)*2*'Distance noise'!$B$11/SQRT(2) -> 19.4 | G104: =SQRT((C104*C104)+(D104*D104)+(F104*F104))/5 -> 4.2 | H104: =SQRT((C104*C104)+(E104*E104)+(F104*F104))/5 -> 4.9 | J104: =B104 -> 2,000 | K104: =G104 -> 4.2 | L104: =H104 -> 4.9 | M104: =IF(('Distance noise'!$F$29-21)<$J104," ",IF(('Distance noise'!$F$26-20)>$J104," ",IF(('Distance noise'!$F$26-1)<$J104,0,1000))) ->  | N104: =IF(('Distance noise'!$B$13-20)>$J104," ",IF(('Distance noise'!$B$13-1)<$J104,0,1000)) -> 0
A105: 101 | B105: =A105*20 -> 2,020 | C105: =('Distance noise'!$F$4*1000/4)/(2*B105/'Distance noise'!$F$10)/SQRT(2) -> 5.3 | D105: =('Distance noise'!$F$4*1000/4)/(('Distance noise'!$B$7/'Distance noise'!$B$9)*2*(B105/'Distance noise'!$B$6)*'Distance noise'!$F$5)*SQRT(('Distance noise'!$B$7/'Distance noise'!$B$9)*2*(2*B105/'Distance noise'!$B$6)*'Distance noise'!$F$5)/SQRT(2) -> 6.4 | E105: =('Distance noise'!$F$4*1000/4)/(('Distance noise'!$B$7/'Distance noise'!$B$9)*2*(B105/'Distance noise'!$B$6)*'Distance noise'!$F$5)*SQRT(('Distance noise'!$B$7/'Distance noise'!$B$9)*2*((2*B105/'Distance noise'!$B$6)+('Distance noise'!$B$13/'Distance noise'!$B$6*'Distance noise'!$B$8))*'Distance noise'!$F$5)/SQRT(2) -> 14.2 | F105: =('Distance noise'!$F$4*1000/4)/(2*'Distance noise'!$B$6)*2*'Distance noise'!$B$11/SQRT(2) -> 19.4 | G105: =SQRT((C105*C105)+(D105*D105)+(F105*F105))/5 -> 4.2 | H105: =SQRT((C105*C105)+(E105*E105)+(F105*F105))/5 -> 4.9 | J105: =B105 -> 2,020 | K105: =G105 -> 4.2 | L105: =H105 -> 4.9 | M105: =IF(('Distance noise'!$F$29-21)<$J105," ",IF(('Distance noise'!$F$26-20)>$J105," ",IF(('Distance noise'!$F$26-1)<$J105,0,1000))) ->  | N105: =IF(('Distance noise'!$B$13-20)>$J105," ",IF(('Distance noise'!$B$13-1)<$J105,0,1000)) -> 0
A106: 102 | B106: =A106*20 -> 2,040 | C106: =('Distance noise'!$F$4*1000/4)/(2*B106/'Distance noise'!$F$10)/SQRT(2) -> 5.2 | D106: =('Distance noise'!$F$4*1000/4)/(('Distance noise'!$B$7/'Distance noise'!$B$9)*2*(B106/'Distance noise'!$B$6)*'Distance noise'!$F$5)*SQRT(('Distance noise'!$B$7/'Distance noise'!$B$9)*2*(2*B106/'Distance noise'!$B$6)*'Distance noise'!$F$5)/SQRT(2) -> 6.4 | E106: =('Distance noise'!$F$4*1000/4)/(('Distance noise'!$B$7/'Distance noise'!$B$9)*2*(B106/'Distance noise'!$B$6)*'Distance noise'!$F$5)*SQRT(('Distance noise'!$B$7/'Distance noise'!$B$9)*2*((2*B106/'Distance noise'!$B$6)+('Distance noise'!$B$13/'Distance noise'!$B$6*'Distance noise'!$B$8))*'Distance noise'!$F$5)/SQRT(2) -> 14.1 | F106: =('Distance noise'!$F$4*1000/4)/(2*'Distance noise'!$B$6)*2*'Distance noise'!$B$11/SQRT(2) -> 19.4 | G106: =SQRT((C106*C106)+(D106*D106)+(F106*F106))/5 -> 4.2 | H106: =SQRT((C106*C106)+(E106*E106)+(F106*F106))/5 -> 4.9 | J106: =B106 -> 2,040 | K106: =G106 -> 4.2 | L106: =H106 -> 4.9 | M106: =IF(('Distance noise'!$F$29-21)<$J106," ",IF(('Distance noise'!$F$26-20)>$J106," ",IF(('Distance noise'!$F$26-1)<$J106,0,1000))) ->  | N106: =IF(('Distance noise'!$B$13-20)>$J106," ",IF(('Distance noise'!$B$13-1)<$J106,0,1000)) -> 0
A107: 103 | B107: =A107*20 -> 2,060 | C107: =('Distance noise'!$F$4*1000/4)/(2*B107/'Distance noise'!$F$10)/SQRT(2) -> 5.1 | D107: =('Distance noise'!$F$4*1000/4)/(('Distance noise'!$B$7/'Distance noise'!$B$9)*2*(B107/'Distance noise'!$B$6)*'Distance noise'!$F$5)*SQRT(('Distance noise'!$B$7/'Distance noise'!$B$9)*2*(2*B107/'Distance noise'!$B$6)*'Distance noise'!$F$5)/SQRT(2) -> 6.3 | E107: =('Distance noise'!$F$4*1000/4)/(('Distance noise'!$B$7/'Distance noise'!$B$9)*2*(B107/'Distance noise'!$B$6)*'Distance noise'!$F$5)*SQRT(('Distance noise'!$B$7/'Distance noise'!$B$9)*2*((2*B107/'Distance noise'!$B$6)+('Distance noise'!$B$13/'Distance noise'!$B$6*'Distance noise'!$B$8))*'Distance noise'!$F$5)/SQRT(2) -> 14.0 | F107: =('Distance noise'!$F$4*1000/4)/(2*'Distance noise'!$B$6)*2*'Distance noise'!$B$11/SQRT(2) -> 19.4 | G107: =SQRT((C107*C107)+(D107*D107)+(F107*F107))/5 -> 4.2 | H107: =SQRT((C107*C107)+(E107*E107)+(F107*F107))/5 -> 4.9 | J107: =B107 -> 2,060 | K107: =G107 -> 4.2 | L107: =H107 -> 4.9 | M107: =IF(('Distance noise'!$F$29-21)<$J107," ",IF(('Distance noise'!$F$26-20)>$J107," ",IF(('Distance noise'!$F$26-1)<$J107,0,1000))) ->  | N107: =IF(('Distance noise'!$B$13-20)>$J107," ",IF(('Distance noise'!$B$13-1)<$J107,0,1000)) -> 0
A111: Min. accurate | B111: ='Distance noise'!B12/'Optical power calculation'!E45 -> 110 | C111: =('Distance noise'!$F$4*1000/4)/(2*B111/'Distance noise'!$F$10)/SQRT(2) -> 96.4 | D111: =('Distance noise'!$F$4*1000/4)/(('Distance noise'!$B$7/'Distance noise'!$B$9)*2*(B111/'Distance noise'!$B$6)*'Distance noise'!$F$5)*SQRT(('Distance noise'!$B$7/'Distance noise'!$B$9)*2*(2*B111/'Distance noise'!$B$6)*'Distance noise'!$F$5)/SQRT(2) -> 27.4 | E111: =('Distance noise'!$F$4*1000/4)/(('Distance noise'!$B$7/'Distance noise'!$B$9)*2*(B111/'Distance noise'!$B$6)*'Distance noise'!$F$5)*SQRT(('Distance noise'!$B$7/'Distance noise'!$B$9)*2*((2*B111/'Distance noise'!$B$6)+('Distance noise'!$B$13/'Distance noise'!$B$6*'Distance noise'!$B$8))*'Distance noise'!$F$5)/SQRT(2) -> 235.2 | F111: =('Distance noise'!$F$4*1000/4)/(2*'Distance noise'!$B$6)*2*'Distance noise'!$B$11/SQRT(2) -> 19.4 | G111: =SQRT((C111*C111)+(D111*D111)+(F111*F111))/5 -> 20.4 | H111: =SQRT((C111*C111)+(E111*E111)+(F111*F111))/5 -> 51.0
